BODY,BODY NAME,SUPPLIER CODE,SUPPLIER NAME,TRANSACTION NUMBER,INVOICE DATE,THEIR REF,NARR1,PAID DATE,VAT AMOUNT,EXCLUSIVE AMOUNT,INCLUSIVE AMOUNT,EXPENSE AREA,EXPENSE TYPE,EXPENSE CODE
http://statistics.data.gov.uk/id/local-authority/12UE,Huntingdonshire District Council,203152, DAS Certification Ltd,77331,08/02/2023,SI-00171,Consultancy Fees,17/03/2023,600,3000,3600,Domestic Waste Collection,Consultancy Fees,62400
http://statistics.data.gov.uk/id/local-authority/12UE,Huntingdonshire District Council,203152, DAS Certification Ltd,74404,22/12/2022,DAS003757,REDACTED,20/01/2023,150,750,900,Domestic Waste Collection,Consultancy Fees,62400
http://statistics.data.gov.uk/id/local-authority/12UE,Huntingdonshire District Council,200000,A C COMMERCIALS A C COMMERCIALS,76431,21/02/2023,INV0021394,Metal Cased Hose Reels,20/03/2023,136.8,684,820.8,Vehicle Maintenance,Equipment,61713
http://statistics.data.gov.uk/id/local-authority/12UE,Huntingdonshire District Council,200000,A C COMMERCIALS A C COMMERCIALS,73887,21/12/2022,INV0020482,OPS BULK DELIVERY,12/01/2023,198.4,992,1190.4,Domestic Waste Collection,Vehicle Repairs And Maintenance,60904
http://statistics.data.gov.uk/id/local-authority/12UE,Huntingdonshire District Council,200000,A C COMMERCIALS A C COMMERCIALS,73671,13/12/2022,INV0020330,LED Torch,06/01/2023,240.46,1202.28,1442.74,Domestic Waste Collection,Vehicle Repairs And Maintenance,60904
http://statistics.data.gov.uk/id/local-authority/12UE,Huntingdonshire District Council,200000,A C COMMERCIALS A C COMMERCIALS,74752,11/01/2023,INV0020698,Auto-'lube Grease,02/02/2023,30.85,154.23,185.08,Domestic Waste Collection,Vehicle Repairs And Maintenance,60904
http://statistics.data.gov.uk/id/local-authority/12UE,Huntingdonshire District Council,200000,A C COMMERCIALS A C COMMERCIALS,74503,05/01/2023,INV0020608,VN66CBX Brake Pads/Water 5Lt/Beacon,02/02/2023,61.16,305.8,366.96,Domestic Waste Collection,Vehicle Repairs And Maintenance,60904
http://statistics.data.gov.uk/id/local-authority/12UE,Huntingdonshire District Council,200000,A C COMMERCIALS A C COMMERCIALS,73887,21/12/2022,INV0020482,OPS BULK DELIVERY,12/01/2023,198.4,992,1190.4,Green Waste Collection,Vehicle Repairs And Maintenance,60904
http://statistics.data.gov.uk/id/local-authority/12UE,Huntingdonshire District Council,200000,A C COMMERCIALS A C COMMERCIALS,74752,11/01/2023,INV0020698,Auto-'lube Grease,02/02/2023,30.85,154.23,185.08,Green Waste Collection,Vehicle Repairs And Maintenance,60904
http://statistics.data.gov.uk/id/local-authority/12UE,Huntingdonshire District Council,200000,A C COMMERCIALS A C COMMERCIALS,75682,07/02/2023,INV0021176,VU66NUJ Batteries,03/03/2023,73.7,368.5,442.2,Green Waste Collection,Vehicle Repairs And Maintenance,60904
http://statistics.data.gov.uk/id/local-authority/12UE,Huntingdonshire District Council,200000,A C COMMERCIALS A C COMMERCIALS,73887,21/12/2022,INV0020482,OPS BULK DELIVERY,12/01/2023,79.36,396.8,476.16,Grounds Maintenance,Vehicle Repairs And Maintenance,60904
http://statistics.data.gov.uk/id/local-authority/12UE,Huntingdonshire District Council,200000,A C COMMERCIALS A C COMMERCIALS,73887,21/12/2022,INV0020482,OPS BULK DELIVERY,12/01/2023,198.4,992,1190.4,Recycling Collections,Vehicle Repairs And Maintenance,60904
http://statistics.data.gov.uk/id/local-authority/12UE,Huntingdonshire District Council,200000,A C COMMERCIALS A C COMMERCIALS,74752,11/01/2023,INV0020698,Auto-'lube Grease,02/02/2023,30.85,154.22,185.07,Recycling Collections,Vehicle Repairs And Maintenance,60904
http://statistics.data.gov.uk/id/local-authority/12UE,Huntingdonshire District Council,200000,A C COMMERCIALS A C COMMERCIALS,73887,21/12/2022,INV0020482,OPS BULK DELIVERY,12/01/2023,119.04,595.2,714.24,Street Cleansing,Vehicle Repairs And Maintenance,60904
http://statistics.data.gov.uk/id/local-authority/12UE,Huntingdonshire District Council,200000,A C COMMERCIALS A C COMMERCIALS,74752,11/01/2023,INV0020698,Auto-'lube Grease,02/02/2023,30.85,154.25,185.1,Street Cleansing,Vehicle Repairs And Maintenance,60904
http://statistics.data.gov.uk/id/local-authority/12UE,Huntingdonshire District Council,200004,AAA INFLATABLES LTD AAA INFLATABLES LTD,74740,23/08/2022,INV-2200,OLR Inflatables Inspection Etc,20/01/2023,55,275,330,OLR - Site & Centre Management,"Maintenance - Equipment, Furniture And Materials",61702
http://statistics.data.gov.uk/id/local-authority/12UE,Huntingdonshire District Council,203159,Abbey Locksmiths,77670,22/03/2023,INV-3017,St Ives BS Cyclical/Planned Maintenance,31/03/2023,0,290,290,Huntingdon Bus Station,Maintenance - Building,60201
http://statistics.data.gov.uk/id/local-authority/12UE,Huntingdonshire District Council,200009,ABC FOOD LAW LTD ABC FOOD LAW LTD,75259,24/01/2023,INV-3080,ABC Food Law Online Subscription,17/02/2023,45,225,270,Food Safety General,Membership And Subscriptions,64800
http://statistics.data.gov.uk/id/local-authority/12UE,Huntingdonshire District Council,200009,ABC FOOD LAW LTD ABC FOOD LAW LTD,75259,24/01/2023,INV-3080,ABC Food Law Online Subscription,17/02/2023,45,225,270,Food Safety General,Membership And Subscriptions,64800
http://statistics.data.gov.uk/id/local-authority/12UE,Huntingdonshire District Council,200009,ABC FOOD LAW LTD ABC FOOD LAW LTD,75259,24/01/2023,INV-3080,ABC Food Law Online Subscription,17/02/2023,45,225,270,Food Safety General,Membership And Subscriptions,64800
http://statistics.data.gov.uk/id/local-authority/12UE,Huntingdonshire District Council,200017,ACCESS & AUTOMATION LTD ACCESS & AUTOMATION LTD,77351,13/02/2023,8172,REDACTED,17/03/2023,0,3774,3774,Disables Facilities Grants,Mandatory Grants,64601
http://statistics.data.gov.uk/id/local-authority/12UE,Huntingdonshire District Council,200028,AEBI SCHMIDT AEBI SCHMIDT,75617,31/01/2023,60286816,AF16HJG Service Kit/Blade,23/02/2023,89.17,445.83,535,Street Cleansing,Vehicle Repairs And Maintenance,60904
http://statistics.data.gov.uk/id/local-authority/12UE,Huntingdonshire District Council,200028,AEBI SCHMIDT AEBI SCHMIDT,74005,23/12/2022,60285909,AJ66AVV Filter Kit,20/01/2023,113.48,567.42,680.9,Street Cleansing,Vehicle Repairs And Maintenance,60904
http://statistics.data.gov.uk/id/local-authority/12UE,Huntingdonshire District Council,200028,AEBI SCHMIDT AEBI SCHMIDT,77302,01/03/2023,60287644,AJ66AVV Dump Tank Cable,24/03/2023,81.33,406.66,487.99,Street Cleansing,Vehicle Repairs And Maintenance,60904
http://statistics.data.gov.uk/id/local-authority/12UE,Huntingdonshire District Council,202924,AGA Print Ltd T/A Solopress,77273,06/03/2023,3322391,OLSI Notepads Glued,24/03/2023,69.31,346.56,415.87,One Leisure Support Team,"Advertising, Publicity And Marketing",62005
http://statistics.data.gov.uk/id/local-authority/12UE,Huntingdonshire District Council,200034,AIRWAVE SOLUTIONS LTD AIRWAVE SOLUTIONS LTD,74855,17/01/2023,0900000307-055,Access Contact Extension,09/02/2023,57.96,289.81,347.77,Cctv Shared Service Hosting,Line Rental,64075
http://statistics.data.gov.uk/id/local-authority/12UE,Huntingdonshire District Council,203186,Alconbury Recreation Charity  - Youth Night Provisions,76142,22/02/2023,ACTIVE HUNTINGDONSHIRE GRANT,Active Huntingdonshire Grants,23/02/2023,0,252.86,252.86,Active Huntingdonshire,Sports Equipment,61708
http://statistics.data.gov.uk/id/local-authority/12UE,Huntingdonshire District Council,200042,ALFA TAIL LIFTS LTD ALFA TAIL LIFTS LTD,74667,03/01/2023,582164,LL67XCG Tail Lift Serv/Loler & Repairs,26/01/2023,62.09,310.46,372.55,Street Cleansing,Vehicle Repairs And Maintenance,60904
http://statistics.data.gov.uk/id/local-authority/12UE,Huntingdonshire District Council,203135,REDACTED,77062,07/03/2023,RELOCATION GRANT - REIMBURSE,Reimburse Relocations Costs,17/03/2023,0,1255.65,1255.65,Renovation/Improvement Grants,Grants And Contributions,64600
http://statistics.data.gov.uk/id/local-authority/12UE,Huntingdonshire District Council,200050,ANTALIS LTD ANTALIS LTD,74948,20/01/2023,2673059,40 Boxes,09/02/2023,193.8,969,1162.8,Printing,Paper,62803
http://statistics.data.gov.uk/id/local-authority/12UE,Huntingdonshire District Council,201474,APEX TRAINING CENTRES (UK) LTD,75289,03/09/2021,17873,REDACTED,02/02/2023,87.5,437.5,525,Domestic Waste Collection,Staff Development And Training,60115
http://statistics.data.gov.uk/id/local-authority/12UE,Huntingdonshire District Council,201474,APEX TRAINING CENTRES (UK) LTD,75289,03/09/2021,17873,REDACTED,02/02/2023,0,115,115,Domestic Waste Collection,Staff Development And Training,60115
http://statistics.data.gov.uk/id/local-authority/12UE,Huntingdonshire District Council,201474,APEX TRAINING CENTRES (UK) LTD,74907,25/10/2021,CN-18633,Credit 17781 - Course Cancelled,02/02/2023,0,-115,-115,Domestic Waste Collection,Staff Development And Training,60115
http://statistics.data.gov.uk/id/local-authority/12UE,Huntingdonshire District Council,201474,APEX TRAINING CENTRES (UK) LTD,74907,25/10/2021,CN-18633,Credit 17781 - Course Cancelled,02/02/2023,-95.5,-477.5,-573,Domestic Waste Collection,Staff Development And Training,60115
http://statistics.data.gov.uk/id/local-authority/12UE,Huntingdonshire District Council,200054.01,APSE,74657,16/01/2023,2223/2180,APSE Energy Membership Fee Jan-Mar23,09/02/2023,114,570,684,Environmental Policy Mu,Consultancy Fees,62400
http://statistics.data.gov.uk/id/local-authority/12UE,Huntingdonshire District Council,200054.01,APSE,76419,09/09/2022,2223/1335,LAMS Subscription Sep22-Aug23g,03/03/2023,63,315,378,Grounds Maintenance,Membership And Subscriptions,64800
http://statistics.data.gov.uk/id/local-authority/12UE,Huntingdonshire District Council,200054.01,APSE,76419,09/09/2022,2223/1335,LAMS Subscription Sep22-Aug23g,03/03/2023,63,315,378,Street Cleansing,Membership And Subscriptions,64800
http://statistics.data.gov.uk/id/local-authority/12UE,Huntingdonshire District Council,200054,APSE APSE,76500,07/12/2022,2122/1899,APSE Performance Seminar 2-3.12.22,03/03/2023,138,690,828,Domestic Waste Collection,Conference Expenses,64300
http://statistics.data.gov.uk/id/local-authority/12UE,Huntingdonshire District Council,200054,APSE APSE,76500,07/12/2022,2122/1899,APSE Performance Seminar 2-3.12.22,03/03/2023,56,280,336,Domestic Waste Collection,Conference Expenses,64300
http://statistics.data.gov.uk/id/local-authority/12UE,Huntingdonshire District Council,202059.01,AQUASERVE MAINTENANCE LTD,76583,01/03/2023,AQMAIN22054,Vegetation Clearance - Eynesbury Park,24/03/2023,340,1700,2040,Barford Road Pocket Park,Grounds Maintenance,60503
http://statistics.data.gov.uk/id/local-authority/12UE,Huntingdonshire District Council,202059,AQUASERVE MANAGEMENT LTD,74953,20/01/2023,AQMAN22032,Subcontractors,09/02/2023,288.31,1441.55,1729.86,Watercourses,Subcontractors,62401
http://statistics.data.gov.uk/id/local-authority/12UE,Huntingdonshire District Council,202059,AQUASERVE MANAGEMENT LTD,75732,12/02/2023,AQMAN22034,Subcontractor,09/03/2023,182.49,912.45,1094.94,Watercourses,Subcontractors,62401
http://statistics.data.gov.uk/id/local-authority/12UE,Huntingdonshire District Council,200060,ARTHUR IBBETT LTD ARTHUR IBBETT LTD,75546,31/01/2023,145253,HCP Materials,31/03/2023,20,99.99,119.99,Countryside Service Management,"Clothes, Uniform And Laundry",62000
http://statistics.data.gov.uk/id/local-authority/12UE,Huntingdonshire District Council,200060,ARTHUR IBBETT LTD ARTHUR IBBETT LTD,76719,23/02/2023,146592,Chainsaw/28 Inch Bar/Chain,24/03/2023,217.6,1088,1305.6,Arboricultural Team,Equipment,61713
http://statistics.data.gov.uk/id/local-authority/12UE,Huntingdonshire District Council,200060,ARTHUR IBBETT LTD ARTHUR IBBETT LTD,76719,23/02/2023,146592,Chainsaw/28 Inch Bar/Chain,24/03/2023,19.59,97.94,117.53,Arboricultural Team,Equipment,61713
http://statistics.data.gov.uk/id/local-authority/12UE,Huntingdonshire District Council,200060,ARTHUR IBBETT LTD ARTHUR IBBETT LTD,76719,23/02/2023,146592,Chainsaw/28 Inch Bar/Chain,24/03/2023,7.65,38.24,45.89,Arboricultural Team,Equipment,61713
http://statistics.data.gov.uk/id/local-authority/12UE,Huntingdonshire District Council,200060,ARTHUR IBBETT LTD ARTHUR IBBETT LTD,75546,31/01/2023,145253,HCP Materials,31/03/2023,12.22,61.12,73.34,Hinchingbrooke Park Management,Equipment,61713
http://statistics.data.gov.uk/id/local-authority/12UE,Huntingdonshire District Council,200060,ARTHUR IBBETT LTD ARTHUR IBBETT LTD,76905,21/02/2023,146469,Blower/Batteries,20/03/2023,116,580.02,696.02,Street Cleansing,Equipment,61713
http://statistics.data.gov.uk/id/local-authority/12UE,Huntingdonshire District Council,200060,ARTHUR IBBETT LTD ARTHUR IBBETT LTD,76905,21/02/2023,146469,Blower/Batteries,20/03/2023,122.4,611.98,734.38,Street Cleansing,Equipment,61713
http://statistics.data.gov.uk/id/local-authority/12UE,Huntingdonshire District Council,200060,ARTHUR IBBETT LTD ARTHUR IBBETT LTD,76905,21/02/2023,146469,Blower/Batteries,20/03/2023,31.5,157.5,189,Street Cleansing,Equipment,61713
http://statistics.data.gov.uk/id/local-authority/12UE,Huntingdonshire District Council,200060,ARTHUR IBBETT LTD ARTHUR IBBETT LTD,76905,21/02/2023,146469,Blower/Batteries,20/03/2023,94.5,472.5,567,Street Cleansing,Equipment,61713
http://statistics.data.gov.uk/id/local-authority/12UE,Huntingdonshire District Council,200060,ARTHUR IBBETT LTD ARTHUR IBBETT LTD,75546,31/01/2023,145253,HCP Materials,31/03/2023,79.92,399.58,479.5,Hinchingbrooke Park Management,Materials,61709
http://statistics.data.gov.uk/id/local-authority/12UE,Huntingdonshire District Council,200060,ARTHUR IBBETT LTD ARTHUR IBBETT LTD,75546,31/01/2023,145253,HCP Materials,31/03/2023,0.01,0,0.01,Finance,Over/Under VAT Rounding,68350
http://statistics.data.gov.uk/id/local-authority/12UE,Huntingdonshire District Council,200060,ARTHUR IBBETT LTD ARTHUR IBBETT LTD,76519,28/02/2023,146932,Telescopic Ladder/Workstation/Fold Step,24/03/2023,25,124.99,149.99,Parks & Open Spaces,Playground Equipment,61706
http://statistics.data.gov.uk/id/local-authority/12UE,Huntingdonshire District Council,200060,ARTHUR IBBETT LTD ARTHUR IBBETT LTD,76519,28/02/2023,146932,Telescopic Ladder/Workstation/Fold Step,24/03/2023,27.5,137.5,165,Parks & Open Spaces,Playground Equipment,61706
http://statistics.data.gov.uk/id/local-authority/12UE,Huntingdonshire District Council,200060,ARTHUR IBBETT LTD ARTHUR IBBETT LTD,76519,28/02/2023,146932,Telescopic Ladder/Workstation/Fold Step,24/03/2023,2.72,13.6,16.32,Parks & Open Spaces,Playground Equipment,61706
http://statistics.data.gov.uk/id/local-authority/12UE,Huntingdonshire District Council,200060,ARTHUR IBBETT LTD ARTHUR IBBETT LTD,74476,06/01/2023,144027,Log Splitter,02/02/2023,314,1570,1884,Domestic Waste Collection,Specialist Equipment For Service Provision,61704
http://statistics.data.gov.uk/id/local-authority/12UE,Huntingdonshire District Council,200060,ARTHUR IBBETT LTD ARTHUR IBBETT LTD,74050,06/12/2022,142708,Specialist Equipment - Post Driver,06/01/2023,134,670,804,Domestic Waste Collection,Specialist Equipment For Service Provision,61704
http://statistics.data.gov.uk/id/local-authority/12UE,Huntingdonshire District Council,200060,ARTHUR IBBETT LTD ARTHUR IBBETT LTD,76921,17/02/2023,146294,PM4030 Carb/Bearings/Rear/Front Wheels,17/03/2023,32.68,163.39,196.07,Grounds Maintenance,Vehicle Repairs And Maintenance,60904
http://statistics.data.gov.uk/id/local-authority/12UE,Huntingdonshire District Council,200060,ARTHUR IBBETT LTD ARTHUR IBBETT LTD,76921,17/02/2023,146294,PM4030 Carb/Bearings/Rear/Front Wheels,17/03/2023,31.84,159.2,191.04,Grounds Maintenance,Vehicle Repairs And Maintenance,60904
http://statistics.data.gov.uk/id/local-authority/12UE,Huntingdonshire District Council,200060,ARTHUR IBBETT LTD ARTHUR IBBETT LTD,75546,31/01/2023,145253,HCP Materials,31/03/2023,0.83,4.16,4.99,Hinchingbrooke Park Management,Vehicle Repairs And Maintenance,60904
http://statistics.data.gov.uk/id/local-authority/12UE,Huntingdonshire District Council,200060,ARTHUR IBBETT LTD ARTHUR IBBETT LTD,75546,31/01/2023,145253,HCP Materials,31/03/2023,9.12,45.6,54.72,Hinchingbrooke Park Management,Vehicle Repairs And Maintenance,60904
http://statistics.data.gov.uk/id/local-authority/12UE,Huntingdonshire District Council,201006,ASHCO BUILDING & MAINTENANCE SERVICES LTD,77143,27/01/2023,AC0215801,REDACTED,17/03/2023,0,13572.96,13572.96,Disables Facilities Grants,Mandatory Grants,64601
http://statistics.data.gov.uk/id/local-authority/12UE,Huntingdonshire District Council,201006,ASHCO BUILDING & MAINTENANCE SERVICES LTD,77142,23/02/2023,AC0215832,REDACTED,24/03/2023,0,12854.92,12854.92,Disables Facilities Grants,Mandatory Grants,64601
http://statistics.data.gov.uk/id/local-authority/12UE,Huntingdonshire District Council,201006,ASHCO BUILDING & MAINTENANCE SERVICES LTD,75983,30/01/2023,AC0215802,REDACTED,23/02/2023,0,10416,10416,Disables Facilities Grants,Mandatory Grants,64601
http://statistics.data.gov.uk/id/local-authority/12UE,Huntingdonshire District Council,201006,ASHCO BUILDING & MAINTENANCE SERVICES LTD,75079,23/11/2022,AC0215750,REDACTED,26/01/2023,0,10199.9,10199.9,Disables Facilities Grants,Mandatory Grants,64601
http://statistics.data.gov.uk/id/local-authority/12UE,Huntingdonshire District Council,201006,ASHCO BUILDING & MAINTENANCE SERVICES LTD,75467,21/12/2022,AC0215774,REDACTED,06/02/2023,0,9906.76,9906.76,Disables Facilities Grants,Mandatory Grants,64601
http://statistics.data.gov.uk/id/local-authority/12UE,Huntingdonshire District Council,201006,ASHCO BUILDING & MAINTENANCE SERVICES LTD,75556,17/11/2022,AC0215742,REDACTED,09/02/2023,0,9636,9636,Disables Facilities Grants,Mandatory Grants,64601
http://statistics.data.gov.uk/id/local-authority/12UE,Huntingdonshire District Council,201006,ASHCO BUILDING & MAINTENANCE SERVICES LTD,75111,08/12/2022,AC0215770,REDACTED,30/01/2023,0,7320,7320,Disables Facilities Grants,Mandatory Grants,64601
http://statistics.data.gov.uk/id/local-authority/12UE,Huntingdonshire District Council,201006,ASHCO BUILDING & MAINTENANCE SERVICES LTD,75076,27/10/2022,AC0215725,REDACTED,26/01/2023,0,7196.5,7196.5,Disables Facilities Grants,Mandatory Grants,64601
http://statistics.data.gov.uk/id/local-authority/12UE,Huntingdonshire District Council,201006,ASHCO BUILDING & MAINTENANCE SERVICES LTD,74277,27/10/2022,AC0215724,REDACTED,09/01/2023,0,7057,7057,Disables Facilities Grants,Mandatory Grants,64601
http://statistics.data.gov.uk/id/local-authority/12UE,Huntingdonshire District Council,201006,ASHCO BUILDING & MAINTENANCE SERVICES LTD,75078,22/12/2022,AC0215776,REDACTED,26/01/2023,0,4762.6,4762.6,Disables Facilities Grants,Mandatory Grants,64601
http://statistics.data.gov.uk/id/local-authority/12UE,Huntingdonshire District Council,201006,ASHCO BUILDING & MAINTENANCE SERVICES LTD,75823,31/01/2023,AC0215808,REDACTED,23/02/2023,0,4265.49,4265.49,Disables Facilities Grants,Mandatory Grants,64601
http://statistics.data.gov.uk/id/local-authority/12UE,Huntingdonshire District Council,201006,ASHCO BUILDING & MAINTENANCE SERVICES LTD,75165,13/01/2023,AC0215786,REDACTED,09/02/2023,0,2484.6,2484.6,Disables Facilities Grants,Mandatory Grants,64601
http://statistics.data.gov.uk/id/local-authority/12UE,Huntingdonshire District Council,200065,ASP ASP,74854,19/01/2023,15597,OLH Replace Touchscreens,09/02/2023,854.17,4270.86,5125.03,Leisure Cents - Future Improve,Maintenance - Building,60201
http://statistics.data.gov.uk/id/local-authority/12UE,Huntingdonshire District Council,201026,ASSOCIATION OF ELECTORAL ADMINISTRATORS AEA BOOKINGS,76718,06/03/2023,33335,AEA Online Foundation Course,31/03/2023,340.86,1704.3,2045.16,HR Services,Staff Development And Training,60115
http://statistics.data.gov.uk/id/local-authority/12UE,Huntingdonshire District Council,200742,ASTREA ACADEMY TRUST - ST IVO ACADEMY ST IVO SCHOOL,73726,20/12/2022,37SI 76,OLSI Water Re-Charge 28.07-31.11.22,12/01/2023,0,2094.18,2094.18,OLSI - Site & Centre Management,Water And Sewerage,60302
http://statistics.data.gov.uk/id/local-authority/12UE,Huntingdonshire District Council,200072,B & H DIGITAL LTD B & H DIGITAL LTD,77514,28/02/2023,40257,Health Walks Leaflets Print/Design,24/03/2023,202.3,1011.5,1213.8,Integrated Lifestyle Service,"Advertising, Publicity And Marketing",62005
http://statistics.data.gov.uk/id/local-authority/12UE,Huntingdonshire District Council,200072,B & H DIGITAL LTD B & H DIGITAL LTD,75434,31/01/2023,40074,One Leisure Flyers,23/02/2023,0,998,998,OLSI - Site & Centre Management,"Advertising, Publicity And Marketing",62005
http://statistics.data.gov.uk/id/local-authority/12UE,Huntingdonshire District Council,200072,B & H DIGITAL LTD B & H DIGITAL LTD,75433,31/01/2023,40073,One Leisure Flyers,23/02/2023,0,336.24,336.24,OLSI - Site & Centre Management,"Advertising, Publicity And Marketing",62005
http://statistics.data.gov.uk/id/local-authority/12UE,Huntingdonshire District Council,200072,B & H DIGITAL LTD B & H DIGITAL LTD,75203,30/01/2023,40034,Recycling Rejection Hangers,23/02/2023,222.46,1112.31,1334.77,Waste Minimisation,"Advertising, Publicity And Marketing",62005
http://statistics.data.gov.uk/id/local-authority/12UE,Huntingdonshire District Council,200072,B & H DIGITAL LTD B & H DIGITAL LTD,75174,11/07/2022,38868,Communal Mass Mailout,30/01/2023,82,410,492,Waste Minimisation,Communication Material,62009
http://statistics.data.gov.uk/id/local-authority/12UE,Huntingdonshire District Council,200072,B & H DIGITAL LTD B & H DIGITAL LTD,76413,31/08/2022,39139,Printing - Colour My Park,03/03/2023,237,1185,1422,Parks & Open Spaces,Consultancy Fees,62400
http://statistics.data.gov.uk/id/local-authority/12UE,Huntingdonshire District Council,200072,B & H DIGITAL LTD B & H DIGITAL LTD,74209,30/11/2022,39780,HDC Portal Development Jul-Sep22,06/01/2023,60,300,360,Printing,Consultancy Fees,62400
http://statistics.data.gov.uk/id/local-authority/12UE,Huntingdonshire District Council,200072,B & H DIGITAL LTD B & H DIGITAL LTD,75936,30/01/2023,40035,Print - Notice Stickers,23/02/2023,59,295,354,Car Park Management,Printing,62001
http://statistics.data.gov.uk/id/local-authority/12UE,Huntingdonshire District Council,200072,B & H DIGITAL LTD B & H DIGITAL LTD,75937,31/01/2023,40069,Print - Paxton Pits Leaflets,23/02/2023,107.88,539.42,647.3,Paxton Pits,Printing,62001
http://statistics.data.gov.uk/id/local-authority/12UE,Huntingdonshire District Council,200072,B & H DIGITAL LTD B & H DIGITAL LTD,77103,08/03/2023,40290,Printing - Green Bin Rejection Hangers,31/03/2023,222,1110,1332,Waste Minimisation,Printing,62001
http://statistics.data.gov.uk/id/local-authority/12UE,Huntingdonshire District Council,200075,B S GRAVES ELECTRICAL LTD B S GRAVES ELECTRICAL LTD,77366,29/11/2022,30948,Waitrose CP - Install 3 Spurs Lamps,17/03/2023,84.31,421.54,505.85,Cctv Shared Service Hosting,Maintenance - Building,60201
http://statistics.data.gov.uk/id/local-authority/12UE,Huntingdonshire District Council,200075,B S GRAVES ELECTRICAL LTD B S GRAVES ELECTRICAL LTD,74898,11/01/2023,31008,HBS Hand Dryer Repairs,02/02/2023,73.37,366.85,440.22,Huntingdon Bus Station,Maintenance - Building,60201
http://statistics.data.gov.uk/id/local-authority/12UE,Huntingdonshire District Council,200075,B S GRAVES ELECTRICAL LTD B S GRAVES ELECTRICAL LTD,75316,20/01/2023,31030,Hunts MSCP - Light Works,09/02/2023,537.63,2688.15,3225.78,MSCP (HUN),Maintenance - Building,60201
http://statistics.data.gov.uk/id/local-authority/12UE,Huntingdonshire District Council,200075,B S GRAVES ELECTRICAL LTD B S GRAVES ELECTRICAL LTD,77369,30/11/2022,30949,Sapley Pav New External Lights,17/03/2023,96,480,576,Parks & Open Spaces,Maintenance - Building,60201
http://statistics.data.gov.uk/id/local-authority/12UE,Huntingdonshire District Council,200075,B S GRAVES ELECTRICAL LTD B S GRAVES ELECTRICAL LTD,74895,23/12/2022,30990,PFH Various Electric Works,23/01/2023,69.28,346.4,415.68,Pathfinder House,Maintenance - Building,60201
http://statistics.data.gov.uk/id/local-authority/12UE,Huntingdonshire District Council,200075,B S GRAVES ELECTRICAL LTD B S GRAVES ELECTRICAL LTD,77370,02/12/2022,30955,St Ives BS Various Works,17/03/2023,101.42,507.1,608.52,St Ives Bus Station,Maintenance - Building,60201
http://statistics.data.gov.uk/id/local-authority/12UE,Huntingdonshire District Council,200075,B S GRAVES ELECTRICAL LTD B S GRAVES ELECTRICAL LTD,76833,23/02/2023,31081,Hunts MSCP Maintenance,22/03/2023,356.21,1781.05,2137.26,Car Park Management,"Maintenance - Equipment, Furniture And Materials",61702
http://statistics.data.gov.uk/id/local-authority/12UE,Huntingdonshire District Council,200075,B S GRAVES ELECTRICAL LTD B S GRAVES ELECTRICAL LTD,76832,23/02/2023,31082,St Neots Riverside CP Maintenance,22/03/2023,126,630,756,Car Park Management,"Maintenance - Equipment, Furniture And Materials",61702
http://statistics.data.gov.uk/id/local-authority/12UE,Huntingdonshire District Council,200075,B S GRAVES ELECTRICAL LTD B S GRAVES ELECTRICAL LTD,77366,29/11/2022,30948,Waitrose CP - Install 3 Spurs Lamps,17/03/2023,0.01,0,0.01,Finance,Over/Under VAT Rounding,68350
http://statistics.data.gov.uk/id/local-authority/12UE,Huntingdonshire District Council,200075,B S GRAVES ELECTRICAL LTD B S GRAVES ELECTRICAL LTD,76468,04/01/2023,30993,HCP Responsive Repairs,03/03/2023,81,405,486,Hinchingbrooke Park Management,Responsive Repairs - Building,60267
http://statistics.data.gov.uk/id/local-authority/12UE,Huntingdonshire District Council,200077,BADGEMASTER BADGEMASTER,73740,20/12/2022,1824336,HDC Name Badge,12/01/2023,10.8,54,64.8,OLH - Site & Centre Management,"Clothes, Uniform And Laundry",62000
http://statistics.data.gov.uk/id/local-authority/12UE,Huntingdonshire District Council,200077,BADGEMASTER BADGEMASTER,73740,20/12/2022,1824336,HDC Name Badge,12/01/2023,20.16,100.8,120.96,OLSI - Burgess Hall,"Clothes, Uniform And Laundry",62000
http://statistics.data.gov.uk/id/local-authority/12UE,Huntingdonshire District Council,200077,BADGEMASTER BADGEMASTER,73740,20/12/2022,1824336,HDC Name Badge,12/01/2023,1.99,9.95,11.94,OLSI - Site & Centre Management,"Clothes, Uniform And Laundry",62000
http://statistics.data.gov.uk/id/local-authority/12UE,Huntingdonshire District Council,200077,BADGEMASTER BADGEMASTER,73740,20/12/2022,1824336,HDC Name Badge,12/01/2023,9.36,46.8,56.16,OLSIO - Site & Centre Management,"Clothes, Uniform And Laundry",62000
http://statistics.data.gov.uk/id/local-authority/12UE,Huntingdonshire District Council,200077,BADGEMASTER BADGEMASTER,73740,20/12/2022,1824336,HDC Name Badge,12/01/2023,13.68,68.4,82.08,OLSN - Site & Centre Management,"Clothes, Uniform And Laundry",62000
http://statistics.data.gov.uk/id/local-authority/12UE,Huntingdonshire District Council,201155,BALFOUR BEATTY LIVING PLACES LTD,74118,30/12/2022,CSUK OU/INV/135471,Q4300 CCTV Nuns Way Cambridge,26/01/2023,81.34,406.68,488.02,Cctv Shared Service - City,Installation Fees,64073
http://statistics.data.gov.uk/id/local-authority/12UE,Huntingdonshire District Council,200079,BANDVULC TRUCK TYRES BANDVULC TRUCK TYRES,76508,27/02/2023,182923,Tyres P:2 W:0,24/03/2023,-0.01,0,-0.01,Finance,Over/Under VAT Rounding,68350
http://statistics.data.gov.uk/id/local-authority/12UE,Huntingdonshire District Council,200079,BANDVULC TRUCK TYRES BANDVULC TRUCK TYRES,76508,27/02/2023,182923,Tyres P:2 W:0,24/03/2023,57.67,288.34,346.01,Domestic Waste Collection,Vehicle Repairs And Maintenance,60904
http://statistics.data.gov.uk/id/local-authority/12UE,Huntingdonshire District Council,200079,BANDVULC TRUCK TYRES BANDVULC TRUCK TYRES,75270,30/01/2023,181781,Tyres P:1 W:0,23/02/2023,16.7,83.5,100.2,Domestic Waste Collection,Vehicle Repairs And Maintenance,60904
http://statistics.data.gov.uk/id/local-authority/12UE,Huntingdonshire District Council,200079,BANDVULC TRUCK TYRES BANDVULC TRUCK TYRES,75270,30/01/2023,181781,Tyres P:1 W:0,23/02/2023,31.28,156.38,187.66,Domestic Waste Collection,Vehicle Repairs And Maintenance,60904
http://statistics.data.gov.uk/id/local-authority/12UE,Huntingdonshire District Council,200079,BANDVULC TRUCK TYRES BANDVULC TRUCK TYRES,76508,27/02/2023,182923,Tyres P:2 W:0,24/03/2023,10.95,54.75,65.7,Domestic Waste Collection,Vehicle Repairs And Maintenance,60904
http://statistics.data.gov.uk/id/local-authority/12UE,Huntingdonshire District Council,200079,BANDVULC TRUCK TYRES BANDVULC TRUCK TYRES,76508,27/02/2023,182923,Tyres P:2 W:0,24/03/2023,52.2,261,313.2,Domestic Waste Collection,Vehicle Repairs And Maintenance,60904
http://statistics.data.gov.uk/id/local-authority/12UE,Huntingdonshire District Council,200079,BANDVULC TRUCK TYRES BANDVULC TRUCK TYRES,76508,27/02/2023,182923,Tyres P:2 W:0,24/03/2023,16.7,83.5,100.2,Domestic Waste Collection,Vehicle Repairs And Maintenance,60904
http://statistics.data.gov.uk/id/local-authority/12UE,Huntingdonshire District Council,200079,BANDVULC TRUCK TYRES BANDVULC TRUCK TYRES,75270,30/01/2023,181781,Tyres P:1 W:0,23/02/2023,51.2,256,307.2,Domestic Waste Collection,Vehicle Repairs And Maintenance,60904
http://statistics.data.gov.uk/id/local-authority/12UE,Huntingdonshire District Council,200079,BANDVULC TRUCK TYRES BANDVULC TRUCK TYRES,73979,29/12/2022,180508,Tyres P:12 W:0,26/01/2023,16.7,83.5,100.2,Domestic Waste Collection,Vehicle Repairs And Maintenance,60904
http://statistics.data.gov.uk/id/local-authority/12UE,Huntingdonshire District Council,200079,BANDVULC TRUCK TYRES BANDVULC TRUCK TYRES,76508,27/02/2023,182923,Tyres P:2 W:0,24/03/2023,14.68,73.38,88.06,Domestic Waste Collection,Vehicle Repairs And Maintenance,60904
http://statistics.data.gov.uk/id/local-authority/12UE,Huntingdonshire District Council,200079,BANDVULC TRUCK TYRES BANDVULC TRUCK TYRES,75270,30/01/2023,181781,Tyres P:1 W:0,23/02/2023,63.45,317.25,380.7,Domestic Waste Collection,Vehicle Repairs And Maintenance,60904
http://statistics.data.gov.uk/id/local-authority/12UE,Huntingdonshire District Council,200079,BANDVULC TRUCK TYRES BANDVULC TRUCK TYRES,76508,27/02/2023,182923,Tyres P:2 W:0,24/03/2023,122.73,613.63,736.36,Domestic Waste Collection,Vehicle Repairs And Maintenance,60904
http://statistics.data.gov.uk/id/local-authority/12UE,Huntingdonshire District Council,200079,BANDVULC TRUCK TYRES BANDVULC TRUCK TYRES,73979,29/12/2022,180508,Tyres P:12 W:0,26/01/2023,16.7,83.5,100.2,Domestic Waste Collection,Vehicle Repairs And Maintenance,60904
http://statistics.data.gov.uk/id/local-authority/12UE,Huntingdonshire District Council,200079,BANDVULC TRUCK TYRES BANDVULC TRUCK TYRES,76508,27/02/2023,182923,Tyres P:2 W:0,24/03/2023,51.2,256,307.2,Green Waste Collection,Vehicle Repairs And Maintenance,60904
http://statistics.data.gov.uk/id/local-authority/12UE,Huntingdonshire District Council,200079,BANDVULC TRUCK TYRES BANDVULC TRUCK TYRES,75270,30/01/2023,181781,Tyres P:1 W:0,23/02/2023,13.42,67.12,80.54,Green Waste Collection,Vehicle Repairs And Maintenance,60904
http://statistics.data.gov.uk/id/local-authority/12UE,Huntingdonshire District Council,200079,BANDVULC TRUCK TYRES BANDVULC TRUCK TYRES,76508,27/02/2023,182923,Tyres P:2 W:0,24/03/2023,38.18,190.89,229.07,Green Waste Collection,Vehicle Repairs And Maintenance,60904
http://statistics.data.gov.uk/id/local-authority/12UE,Huntingdonshire District Council,200079,BANDVULC TRUCK TYRES BANDVULC TRUCK TYRES,76508,27/02/2023,182923,Tyres P:2 W:0,24/03/2023,47.2,236,283.2,Green Waste Collection,Vehicle Repairs And Maintenance,60904
http://statistics.data.gov.uk/id/local-authority/12UE,Huntingdonshire District Council,200079,BANDVULC TRUCK TYRES BANDVULC TRUCK TYRES,76508,27/02/2023,182923,Tyres P:2 W:0,24/03/2023,21.29,106.46,127.75,Green Waste Collection,Vehicle Repairs And Maintenance,60904
http://statistics.data.gov.uk/id/local-authority/12UE,Huntingdonshire District Council,200079,BANDVULC TRUCK TYRES BANDVULC TRUCK TYRES,73979,29/12/2022,180508,Tyres P:12 W:0,26/01/2023,14.68,73.38,88.06,Green Waste Collection,Vehicle Repairs And Maintenance,60904
http://statistics.data.gov.uk/id/local-authority/12UE,Huntingdonshire District Council,200079,BANDVULC TRUCK TYRES BANDVULC TRUCK TYRES,76508,27/02/2023,182923,Tyres P:2 W:0,24/03/2023,21.9,109.5,131.4,Green Waste Collection,Vehicle Repairs And Maintenance,60904
http://statistics.data.gov.uk/id/local-authority/12UE,Huntingdonshire District Council,200079,BANDVULC TRUCK TYRES BANDVULC TRUCK TYRES,75270,30/01/2023,181781,Tyres P:1 W:0,23/02/2023,14.68,73.38,88.06,Green Waste Collection,Vehicle Repairs And Maintenance,60904
http://statistics.data.gov.uk/id/local-authority/12UE,Huntingdonshire District Council,200079,BANDVULC TRUCK TYRES BANDVULC TRUCK TYRES,73979,29/12/2022,180508,Tyres P:12 W:0,26/01/2023,63.45,317.25,380.7,Green Waste Collection,Vehicle Repairs And Maintenance,60904
http://statistics.data.gov.uk/id/local-authority/12UE,Huntingdonshire District Council,200079,BANDVULC TRUCK TYRES BANDVULC TRUCK TYRES,73979,29/12/2022,180508,Tyres P:12 W:0,26/01/2023,33.18,165.91,199.09,Green Waste Collection,Vehicle Repairs And Maintenance,60904
http://statistics.data.gov.uk/id/local-authority/12UE,Huntingdonshire District Council,200079,BANDVULC TRUCK TYRES BANDVULC TRUCK TYRES,75270,30/01/2023,181781,Tyres P:1 W:0,23/02/2023,117.25,586.27,703.52,Recycling Collections,Vehicle Repairs And Maintenance,60904
http://statistics.data.gov.uk/id/local-authority/12UE,Huntingdonshire District Council,200079,BANDVULC TRUCK TYRES BANDVULC TRUCK TYRES,76508,27/02/2023,182923,Tyres P:2 W:0,24/03/2023,125.2,626,751.2,Recycling Collections,Vehicle Repairs And Maintenance,60904
http://statistics.data.gov.uk/id/local-authority/12UE,Huntingdonshire District Council,200079,BANDVULC TRUCK TYRES BANDVULC TRUCK TYRES,76508,27/02/2023,182923,Tyres P:2 W:0,24/03/2023,111.33,556.63,667.96,Recycling Collections,Vehicle Repairs And Maintenance,60904
http://statistics.data.gov.uk/id/local-authority/12UE,Huntingdonshire District Council,200079,BANDVULC TRUCK TYRES BANDVULC TRUCK TYRES,73979,29/12/2022,180508,Tyres P:12 W:0,26/01/2023,16.7,83.5,100.2,Recycling Collections,Vehicle Repairs And Maintenance,60904
http://statistics.data.gov.uk/id/local-authority/12UE,Huntingdonshire District Council,200079,BANDVULC TRUCK TYRES BANDVULC TRUCK TYRES,75270,30/01/2023,181781,Tyres P:1 W:0,23/02/2023,254.71,1273.53,1528.24,Recycling Collections,Vehicle Repairs And Maintenance,60904
http://statistics.data.gov.uk/id/local-authority/12UE,Huntingdonshire District Council,200079,BANDVULC TRUCK TYRES BANDVULC TRUCK TYRES,73979,29/12/2022,180508,Tyres P:12 W:0,26/01/2023,10.95,54.75,65.7,Recycling Collections,Vehicle Repairs And Maintenance,60904
http://statistics.data.gov.uk/id/local-authority/12UE,Huntingdonshire District Council,200079,BANDVULC TRUCK TYRES BANDVULC TRUCK TYRES,76508,27/02/2023,182923,Tyres P:2 W:0,24/03/2023,10.95,54.75,65.7,Weekly Bags,Vehicle Repairs And Maintenance,60904
http://statistics.data.gov.uk/id/local-authority/12UE,Huntingdonshire District Council,202633,REDACTED,74342,01/01/2023,15,HCP Goods for Resale,26/01/2023,0,319.05,319.05,Hinchingbrook Park Gift Shop,Goods For Resale,61400
http://statistics.data.gov.uk/id/local-authority/12UE,Huntingdonshire District Council,200081,BARCHAM TREES BARCHAM TREES,75258,25/01/2023,156106,Marge Red Oak / Postage & Courier,09/02/2023,111.8,559,670.8,Arboricultural Team,Gardening Supplies,60506
http://statistics.data.gov.uk/id/local-authority/12UE,Huntingdonshire District Council,200081,BARCHAM TREES BARCHAM TREES,75258,25/01/2023,156106,Marge Red Oak / Postage & Courier,09/02/2023,22,110,132,Arboricultural Team,Postage And Courier Services,64100
http://statistics.data.gov.uk/id/local-authority/12UE,Huntingdonshire District Council,200083,BARKER STOREY MATTHEWS BARKER STOREY MATTHEWS,74466,05/12/2022,602058336,Consultancy Fees Re-Letting 20 Lev Ln,16/01/2023,250,1250,1500,Industrial Properties,Fees & Charges Income ,53000
http://statistics.data.gov.uk/id/local-authority/12UE,Huntingdonshire District Council,201553,BARNARDOS RETAIL LTD,76471,28/02/2023,BARFI000110,HCP Santa Event 2022,24/03/2023,0,800,800,Hinchingbrooke Park Cafe,Events,62900
http://statistics.data.gov.uk/id/local-authority/12UE,Huntingdonshire District Council,200092,BEEBYS LIMITED BEEBYS LIMITED,73878,19/12/2022,INV-70479,CARPARK MLTISTRY,12/01/2023,66.95,334.75,401.7,Car Park Management,Cleaning Contract,60502
http://statistics.data.gov.uk/id/local-authority/12UE,Huntingdonshire District Council,200092,BEEBYS LIMITED BEEBYS LIMITED,75717,31/01/2023,INV-70684,Window Clean,13/03/2023,132.36,661.78,794.14,Pathfinder House,Cleaning Contract,60502
http://statistics.data.gov.uk/id/local-authority/12UE,Huntingdonshire District Council,200092,BEEBYS LIMITED BEEBYS LIMITED,75717,31/01/2023,INV-70684,Window Clean,13/03/2023,131.84,659.22,791.06,Pathfinder House,Cleaning Contract,60502
http://statistics.data.gov.uk/id/local-authority/12UE,Huntingdonshire District Council,200092,BEEBYS LIMITED BEEBYS LIMITED,75717,31/01/2023,INV-70684,Window Clean,13/03/2023,68.5,342.48,410.98,Pathfinder House,Cleaning Contract,60502
http://statistics.data.gov.uk/id/local-authority/12UE,Huntingdonshire District Council,200092,BEEBYS LIMITED BEEBYS LIMITED,75717,31/01/2023,INV-70684,Window Clean,13/03/2023,-0.02,0,-0.02,Finance,Over/Under VAT Rounding,68350
http://statistics.data.gov.uk/id/local-authority/12UE,Huntingdonshire District Council,200096,BEN BURGESS & COMPANY BEN BURGESS & COMPANY,73768,20/12/2022,955582,OLSIO Vehicle Maintenance,12/01/2023,-0.01,0,-0.01,Finance,Over/Under VAT Rounding,68350
http://statistics.data.gov.uk/id/local-authority/12UE,Huntingdonshire District Council,200096,BEN BURGESS & COMPANY BEN BURGESS & COMPANY,73768,20/12/2022,955582,OLSIO Vehicle Maintenance,12/01/2023,176.87,884.35,1061.22,OLSIO - Site & Centre Management,Vehicle Maintenance - External,60921
http://statistics.data.gov.uk/id/local-authority/12UE,Huntingdonshire District Council,201540,REDACTED,75222,16/01/2023,PANTO JAN23 GUITAR PERFORM,Guitar Performance Panto Jan23,02/02/2023,0,350,350,OLSI - Burgess Hall,Materials,61709
http://statistics.data.gov.uk/id/local-authority/12UE,Huntingdonshire District Council,201730,BERKLEY STREET METHODIST CHURCH,76551,01/03/2023,COMMUNITY GRANT - BUSY BEES,Community Chest Grant-Berkley Busy Bees,24/03/2023,0,1000,1000,Voluntary Sector Grants,Grants And Contributions,64600
http://statistics.data.gov.uk/id/local-authority/12UE,Huntingdonshire District Council,200101,BID HUNTINGDON BID HUNTINGDON,74733,17/01/2023,INV-1970,Payment for Musicians,20/01/2023,0,350,350,Markets Management,Events,62900
http://statistics.data.gov.uk/id/local-authority/12UE,Huntingdonshire District Council,200101,BID HUNTINGDON BID HUNTINGDON,77229,13/03/2023,INV-1982,PA System Sales & Installation,17/03/2023,0,9563.8,9563.8,UK Shared Prosperity Fund,Grants And Contributions,64600
http://statistics.data.gov.uk/id/local-authority/12UE,Huntingdonshire District Council,200101,BID HUNTINGDON BID HUNTINGDON,74285,12/12/2022,INV-1965,BID Levy,09/01/2023,12455.14,62275.7,74730.84,Bid Revenue Account,Payment Of Amount Due,23003
http://statistics.data.gov.uk/id/local-authority/12UE,Huntingdonshire District Council,200101,BID HUNTINGDON BID HUNTINGDON,74370,03/01/2023,INV-1966,BID Levy,12/01/2023,6055.35,30276.75,36332.1,Bid Revenue Account,Payment Of Amount Due,23003
http://statistics.data.gov.uk/id/local-authority/12UE,Huntingdonshire District Council,200101,BID HUNTINGDON BID HUNTINGDON,77239,15/03/2023,INV-1985,BID Levy,20/03/2023,774.05,3870.23,4644.28,Bid Revenue Account,Payment Of Amount Due,23003
http://statistics.data.gov.uk/id/local-authority/12UE,Huntingdonshire District Council,200103,BIGPRINTING BIGPRINTING,76609,24/02/2023,1714973,Signage Replacement,24/03/2023,314,1570,1884,OLSI - Site & Centre Management,Maintenance - Building,60201
http://statistics.data.gov.uk/id/local-authority/12UE,Huntingdonshire District Council,202004,BLOOM PROCUREMENT SERVICES LTD,75402,25/01/2023,SIN039880,HCP Consultancy Fees Dec22,02/02/2023,518.13,2590.67,3108.8,Bridge Place Car Park Const,Consultancy Fees,62400
http://statistics.data.gov.uk/id/local-authority/12UE,Huntingdonshire District Council,202004,BLOOM PROCUREMENT SERVICES LTD,74212,16/12/2022,SIN038969,Consultancy Fees Nov22,09/01/2023,266.67,1333.33,1600,Bridge Place Car Park Const,Consultancy Fees,62400
http://statistics.data.gov.uk/id/local-authority/12UE,Huntingdonshire District Council,202004,BLOOM PROCUREMENT SERVICES LTD,75402,25/01/2023,SIN039880,HCP Consultancy Fees Dec22,02/02/2023,518.13,2590.67,3108.8,Hinchingbrooke Country Park,Consultancy Fees,62400
http://statistics.data.gov.uk/id/local-authority/12UE,Huntingdonshire District Council,202004,BLOOM PROCUREMENT SERVICES LTD,74212,16/12/2022,SIN038969,Consultancy Fees Nov22,09/01/2023,266.67,1333.34,1600.01,Hinchingbrooke Country Park,Consultancy Fees,62400
http://statistics.data.gov.uk/id/local-authority/12UE,Huntingdonshire District Council,202004,BLOOM PROCUREMENT SERVICES LTD,75402,25/01/2023,SIN039880,HCP Consultancy Fees Dec22,02/02/2023,518.13,2590.67,3108.8,St Neots Riverside Park Path/Cycle Imps,Consultancy Fees,62400
http://statistics.data.gov.uk/id/local-authority/12UE,Huntingdonshire District Council,202004,BLOOM PROCUREMENT SERVICES LTD,74212,16/12/2022,SIN038969,Consultancy Fees Nov22,09/01/2023,266.67,1333.33,1600,St Neots Riverside Park Path/Cycle Imps,Consultancy Fees,62400
http://statistics.data.gov.uk/id/local-authority/12UE,Huntingdonshire District Council,202004,BLOOM PROCUREMENT SERVICES LTD,74212,16/12/2022,SIN038969,Consultancy Fees Nov22,09/01/2023,-0.01,0,-0.01,Finance,Over/Under VAT Rounding,68350
http://statistics.data.gov.uk/id/local-authority/12UE,Huntingdonshire District Council,203100,Booker Wholesale Cambridge,76066,19/02/2023,3541185,BH/ZEST Catering/Vend/Confect/Bar/Mat,23/02/2023,265.55,1327.75,1593.3,OLSI - Burgess Bar,Bar Provisions,61905
http://statistics.data.gov.uk/id/local-authority/12UE,Huntingdonshire District Council,203100,Booker Wholesale Cambridge,74608,08/01/2023,3539931,OLSI Bar Provisions,16/01/2023,119.47,597.37,716.84,OLSI - Burgess Bar,Bar Provisions,61905
http://statistics.data.gov.uk/id/local-authority/12UE,Huntingdonshire District Council,203100,Booker Wholesale Cambridge,73931,22/12/2022,3539626,OLSTI DRINKS,06/01/2023,158.2,791.01,949.21,OLSI - Burgess Bar,Bar Provisions,61905
http://statistics.data.gov.uk/id/local-authority/12UE,Huntingdonshire District Council,203100,Booker Wholesale Cambridge,75413,01/02/2023,3540596,ZEST Bar Provisions/Confectionery,02/02/2023,86.34,431.68,518.02,OLSI - Burgess Bar,Bar Provisions,61905
http://statistics.data.gov.uk/id/local-authority/12UE,Huntingdonshire District Council,203100,Booker Wholesale Cambridge,77373,11/03/2023,433784,BH Bar/Confectionery/Cleaning/Materials,17/03/2023,19.76,98.8,118.56,OLSI - Burgess Bar,Bar Provisions,61905
http://statistics.data.gov.uk/id/local-authority/12UE,Huntingdonshire District Council,203100,Booker Wholesale Cambridge,73930,22/12/2022,370033,OLSI DRINKS,06/01/2023,56.78,283.92,340.7,OLSI - Burgess Bar,Bar Provisions,61905
http://statistics.data.gov.uk/id/local-authority/12UE,Huntingdonshire District Council,203100,Booker Wholesale Cambridge,73936,22/12/2022,370021,OLSTI CONDIMENTS,06/01/2023,30.93,154.67,185.6,OLSI - Burgess Bar,Bar Provisions,61905
http://statistics.data.gov.uk/id/local-authority/12UE,Huntingdonshire District Council,203100,Booker Wholesale Cambridge,76066,19/02/2023,3541185,BH/ZEST Catering/Vend/Confect/Bar/Mat,23/02/2023,20.95,104.73,125.68,OLSI - Hospitality,Bar Provisions,61905
http://statistics.data.gov.uk/id/local-authority/12UE,Huntingdonshire District Council,203100,Booker Wholesale Cambridge,75413,01/02/2023,3540596,ZEST Bar Provisions/Confectionery,02/02/2023,29.1,145.49,174.59,OLSI - Hospitality,Bar Provisions,61905
http://statistics.data.gov.uk/id/local-authority/12UE,Huntingdonshire District Council,203100,Booker Wholesale Cambridge,74608,08/01/2023,3539931,OLSI Bar Provisions,16/01/2023,0,327.84,327.84,Managing Directors Team,Catering Supplies,61900
http://statistics.data.gov.uk/id/local-authority/12UE,Huntingdonshire District Council,203100,Booker Wholesale Cambridge,76066,19/02/2023,3541185,BH/ZEST Catering/Vend/Confect/Bar/Mat,23/02/2023,0,122.42,122.42,OLSI - Burgess Bar,Catering Supplies,61900
http://statistics.data.gov.uk/id/local-authority/12UE,Huntingdonshire District Council,203100,Booker Wholesale Cambridge,73931,22/12/2022,3539626,OLSTI DRINKS,06/01/2023,0,50.65,50.65,OLSI - Burgess Bar,Catering Supplies,61900
http://statistics.data.gov.uk/id/local-authority/12UE,Huntingdonshire District Council,203100,Booker Wholesale Cambridge,73936,22/12/2022,370021,OLSTI CONDIMENTS,06/01/2023,0,31.81,31.81,OLSI - Burgess Bar,Catering Supplies,61900
http://statistics.data.gov.uk/id/local-authority/12UE,Huntingdonshire District Council,203100,Booker Wholesale Cambridge,77373,11/03/2023,433784,BH Bar/Confectionery/Cleaning/Materials,17/03/2023,4.2,20.99,25.19,OLSI - Burgess Bar,Cleaning Materials,61300
http://statistics.data.gov.uk/id/local-authority/12UE,Huntingdonshire District Council,203100,Booker Wholesale Cambridge,76066,19/02/2023,3541185,BH/ZEST Catering/Vend/Confect/Bar/Mat,23/02/2023,8.75,43.74,52.49,OLSI - Burgess Bar,Confectionery,61906
http://statistics.data.gov.uk/id/local-authority/12UE,Huntingdonshire District Council,203100,Booker Wholesale Cambridge,74608,08/01/2023,3539931,OLSI Bar Provisions,16/01/2023,173.48,867.42,1040.9,OLSI - Burgess Bar,Confectionery,61906
http://statistics.data.gov.uk/id/local-authority/12UE,Huntingdonshire District Council,203100,Booker Wholesale Cambridge,77373,11/03/2023,433784,BH Bar/Confectionery/Cleaning/Materials,17/03/2023,24.65,123.27,147.92,OLSI - Burgess Bar,Confectionery,61906
http://statistics.data.gov.uk/id/local-authority/12UE,Huntingdonshire District Council,203100,Booker Wholesale Cambridge,75413,01/02/2023,3540596,ZEST Bar Provisions/Confectionery,02/02/2023,4,19.98,23.98,OLSI - Hospitality,Confectionery,61906
http://statistics.data.gov.uk/id/local-authority/12UE,Huntingdonshire District Council,203100,Booker Wholesale Cambridge,76066,19/02/2023,3541185,BH/ZEST Catering/Vend/Confect/Bar/Mat,23/02/2023,53.55,267.73,321.28,OLSI - Burgess Bar,Materials,61709
http://statistics.data.gov.uk/id/local-authority/12UE,Huntingdonshire District Council,203100,Booker Wholesale Cambridge,73931,22/12/2022,3539626,OLSTI DRINKS,06/01/2023,47.99,239.94,287.93,OLSI - Burgess Bar,Materials,61709
http://statistics.data.gov.uk/id/local-authority/12UE,Huntingdonshire District Council,203100,Booker Wholesale Cambridge,77373,11/03/2023,433784,BH Bar/Confectionery/Cleaning/Materials,17/03/2023,12.67,63.33,76,OLSI - Burgess Bar,Materials,61709
http://statistics.data.gov.uk/id/local-authority/12UE,Huntingdonshire District Council,203100,Booker Wholesale Cambridge,73936,22/12/2022,370021,OLSTI CONDIMENTS,06/01/2023,13.09,65.46,78.55,OLSI - Burgess Bar,Materials,61709
http://statistics.data.gov.uk/id/local-authority/12UE,Huntingdonshire District Council,203100,Booker Wholesale Cambridge,76066,19/02/2023,3541185,BH/ZEST Catering/Vend/Confect/Bar/Mat,23/02/2023,-0.01,0,-0.01,Finance,Over/Under VAT Rounding,68350
http://statistics.data.gov.uk/id/local-authority/12UE,Huntingdonshire District Council,203100,Booker Wholesale Cambridge,74608,08/01/2023,3539931,OLSI Bar Provisions,16/01/2023,0.01,0,0.01,Finance,Over/Under VAT Rounding,68350
http://statistics.data.gov.uk/id/local-authority/12UE,Huntingdonshire District Council,203100,Booker Wholesale Cambridge,75413,01/02/2023,3540596,ZEST Bar Provisions/Confectionery,02/02/2023,-0.01,0,-0.01,Finance,Over/Under VAT Rounding,68350
http://statistics.data.gov.uk/id/local-authority/12UE,Huntingdonshire District Council,203100,Booker Wholesale Cambridge,73936,22/12/2022,370021,OLSTI CONDIMENTS,06/01/2023,0.01,0,0.01,Finance,Over/Under VAT Rounding,68350
http://statistics.data.gov.uk/id/local-authority/12UE,Huntingdonshire District Council,201490,BPHA LTD,76012,15/02/2023,REDACTED,REDACTED,20/02/2023,0,260,260,Homelessness,Homeless Prevention Payments,64403
http://statistics.data.gov.uk/id/local-authority/12UE,Huntingdonshire District Council,201490,BPHA LTD,75328,26/01/2023,506333300,REDACTED,02/02/2023,0,515.52,515.52,Homelessness,Homeless Prevention Payments,64403
http://statistics.data.gov.uk/id/local-authority/12UE,Huntingdonshire District Council,201490,BPHA LTD,75591,07/02/2023,30074054,REDACTED,09/02/2023,0,1379.94,1379.94,Homelessness,Homeless Prevention Payments,64403
http://statistics.data.gov.uk/id/local-authority/12UE,Huntingdonshire District Council,200117,BRAMBLE HUB LTD BRAMBLE HUB LTD,74362,07/12/2022,INV-12820,IT Software,12/01/2023,20675.16,103375.81,124050.97,HDC Business Case ,Ict Software,64071
http://statistics.data.gov.uk/id/local-authority/12UE,Huntingdonshire District Council,200117,BRAMBLE HUB LTD BRAMBLE HUB LTD,74708,16/01/2023,INV-12910,IT Software Pulse Trakk System OL,09/02/2023,71.94,359.72,431.66,OLR - Impressions,Ict Software,64071
http://statistics.data.gov.uk/id/local-authority/12UE,Huntingdonshire District Council,200117,BRAMBLE HUB LTD BRAMBLE HUB LTD,74708,16/01/2023,INV-12910,IT Software Pulse Trakk System OL,09/02/2023,107.92,539.58,647.5,OLSI - Impressions,Ict Software,64071
http://statistics.data.gov.uk/id/local-authority/12UE,Huntingdonshire District Council,200117,BRAMBLE HUB LTD BRAMBLE HUB LTD,74708,16/01/2023,INV-12910,IT Software Pulse Trakk System OL,09/02/2023,107.92,539.59,647.51,OLSN - Impressions,Ict Software,64071
http://statistics.data.gov.uk/id/local-authority/12UE,Huntingdonshire District Council,200117,BRAMBLE HUB LTD BRAMBLE HUB LTD,77635,14/03/2023,INV-12985,Maintenance Equipment,24/03/2023,563.33,2816.65,3379.98,HDC Business Case ,"Maintenance - Equipment, Furniture And Materials",61702
http://statistics.data.gov.uk/id/local-authority/12UE,Huntingdonshire District Council,200117,BRAMBLE HUB LTD BRAMBLE HUB LTD,77635,14/03/2023,INV-12985,Maintenance Equipment,24/03/2023,2270.68,11353.42,13624.1,HDC Business Case ,"Maintenance - Equipment, Furniture And Materials",61702
http://statistics.data.gov.uk/id/local-authority/12UE,Huntingdonshire District Council,202381,BRAMPTON VILLAGE HUB,76168,23/02/2023,HEALTH INEQUALITIES 230223,Health Inequalities Project 23.02.23,23/02/2023,0,7250,7250,Integrated Care System Project,Grants And Contributions,64600
http://statistics.data.gov.uk/id/local-authority/12UE,Huntingdonshire District Council,202936,Bridge Planning Ltd,74388,09/01/2023,INV-038,Planning Consultant 03-06.01.23,12/01/2023,333,1665,1998,Development Management,Agency Staff,60011
http://statistics.data.gov.uk/id/local-authority/12UE,Huntingdonshire District Council,202936,Bridge Planning Ltd,74828,13/01/2023,INV-039,Planning Consultant 09-12.01.23,20/01/2023,333,1665,1998,Development Management,Agency Staff,60011
http://statistics.data.gov.uk/id/local-authority/12UE,Huntingdonshire District Council,202936,Bridge Planning Ltd,74950,19/01/2023,INV-040,Planning Consultant 16-19.01.23,26/01/2023,333,1665,1998,Development Management,Agency Staff,60011
http://statistics.data.gov.uk/id/local-authority/12UE,Huntingdonshire District Council,202936,Bridge Planning Ltd,75360,27/01/2023,INV-041,Planning Consultant 24-27.01.23,02/02/2023,333,1665,1998,Development Management,Agency Staff,60011
http://statistics.data.gov.uk/id/local-authority/12UE,Huntingdonshire District Council,202936,Bridge Planning Ltd,75518,03/02/2023,INV-042,Planning Consultant 30.01-03.02.23,06/02/2023,333,1665,1998,Development Management,Agency Staff,60011
http://statistics.data.gov.uk/id/local-authority/12UE,Huntingdonshire District Council,202936,Bridge Planning Ltd,75832,10/02/2023,INV-043,Planning Consultant 06-09.02.23,17/02/2023,333,1665,1998,Development Management,Agency Staff,60011
http://statistics.data.gov.uk/id/local-authority/12UE,Huntingdonshire District Council,202936,Bridge Planning Ltd,76127,16/02/2023,INV-044,Planning Consultant 13-16.02.23,23/02/2023,333,1665,1998,Development Management,Agency Staff,60011
http://statistics.data.gov.uk/id/local-authority/12UE,Huntingdonshire District Council,202936,Bridge Planning Ltd,76327,27/02/2023,INV-045,Planning Consultant 20-23.02.23,03/03/2023,333,1665,1998,Development Management,Agency Staff,60011
http://statistics.data.gov.uk/id/local-authority/12UE,Huntingdonshire District Council,202936,Bridge Planning Ltd,76648,03/03/2023,INV-046,Planning Consultant 27.02-02.23.23,03/03/2023,333,1665,1998,Development Management,Agency Staff,60011
http://statistics.data.gov.uk/id/local-authority/12UE,Huntingdonshire District Council,202936,Bridge Planning Ltd,77643,13/03/2023,INV-047,Planning Consultant 06-09.03.23,24/03/2023,333,1665,1998,Development Management,Agency Staff,60011
http://statistics.data.gov.uk/id/local-authority/12UE,Huntingdonshire District Council,202936,Bridge Planning Ltd,77662,16/03/2023,INV-048,Planning Consultant 13-16.03.23,24/03/2023,333,1665,1998,Development Management,Agency Staff,60011
http://statistics.data.gov.uk/id/local-authority/12UE,Huntingdonshire District Council,202936,Bridge Planning Ltd,77974,23/03/2023,INV-049,Planning Consultant 20-23.03.23,31/03/2023,333,1665,1998,Development Management,Agency Staff,60011
http://statistics.data.gov.uk/id/local-authority/12UE,Huntingdonshire District Council,200123,BRITANNIA FIRE & SECURITY LTD BRITANNIA FIRE & SECURITY LTD,74585,25/10/2022,106590,HCP Intruder Alarm Maintenance 22/23,16/01/2023,52,260,312,Hinchingbrooke Park Management,Maintenance - Building,60201
http://statistics.data.gov.uk/id/local-authority/12UE,Huntingdonshire District Council,200123,BRITANNIA FIRE & SECURITY LTD BRITANNIA FIRE & SECURITY LTD,74585,25/10/2022,106590,HCP Intruder Alarm Maintenance 22/23,16/01/2023,82.8,414,496.8,Hinchingbrooke Park Management,Maintenance - Building,60201
http://statistics.data.gov.uk/id/local-authority/12UE,Huntingdonshire District Council,200126,BRITISH GAS BUSINESS BRITISH GAS BUSINESS,75494,03/02/2023,310956727,EFH Jan23,09/02/2023,132.31,661.53,793.84,Eastfield House,Gas,60305
http://statistics.data.gov.uk/id/local-authority/12UE,Huntingdonshire District Council,200126,BRITISH GAS BUSINESS BRITISH GAS BUSINESS,74244,05/01/2023,972801926,EFH Dec22,12/01/2023,131.22,656.08,787.3,Eastfield House,Gas,60305
http://statistics.data.gov.uk/id/local-authority/12UE,Huntingdonshire District Council,200126,BRITISH GAS BUSINESS BRITISH GAS BUSINESS,77309,03/03/2023,993559584,EFH Feb23,17/03/2023,113.3,566.51,679.81,Eastfield House,Gas,60305
http://statistics.data.gov.uk/id/local-authority/12UE,Huntingdonshire District Council,200126,BRITISH GAS BUSINESS BRITISH GAS BUSINESS,74167,05/01/2023,972801919,OLH Dry Dec22,12/01/2023,159.96,799.81,959.77,OLH - Site & Centre Management,Gas,60305
http://statistics.data.gov.uk/id/local-authority/12UE,Huntingdonshire District Council,200126,BRITISH GAS BUSINESS BRITISH GAS BUSINESS,75459,03/02/2023,310956720,OLH Dry Jan23,09/02/2023,147.56,737.82,885.38,OLH - Site & Centre Management,Gas,60305
http://statistics.data.gov.uk/id/local-authority/12UE,Huntingdonshire District Council,200126,BRITISH GAS BUSINESS BRITISH GAS BUSINESS,76707,03/03/2023,993559577,OLH Dry Feb23,09/03/2023,128.84,644.2,773.04,OLH - Site & Centre Management,Gas,60305
http://statistics.data.gov.uk/id/local-authority/12UE,Huntingdonshire District Council,200126,BRITISH GAS BUSINESS BRITISH GAS BUSINESS,74166,05/01/2023,972801921,OLH Wet Dec22,12/01/2023,462.75,2313.73,2776.48,OLH - Swimming,Gas,60305
http://statistics.data.gov.uk/id/local-authority/12UE,Huntingdonshire District Council,200126,BRITISH GAS BUSINESS BRITISH GAS BUSINESS,75499,03/02/2023,310956722,OLH Wet Jan23,09/02/2023,403.23,2016.17,2419.4,OLH - Swimming,Gas,60305
http://statistics.data.gov.uk/id/local-authority/12UE,Huntingdonshire District Council,200126,BRITISH GAS BUSINESS BRITISH GAS BUSINESS,76706,03/03/2023,993559579,OLH Wet Feb23,09/03/2023,327.25,1636.26,1963.51,OLH - Swimming,Gas,60305
http://statistics.data.gov.uk/id/local-authority/12UE,Huntingdonshire District Council,200126,BRITISH GAS BUSINESS BRITISH GAS BUSINESS,76709,03/03/2023,993559580,OLSI Feb23,09/03/2023,1092.66,5463.31,6555.97,OLSI - Site & Centre Management,Gas,60305
http://statistics.data.gov.uk/id/local-authority/12UE,Huntingdonshire District Council,200126,BRITISH GAS BUSINESS BRITISH GAS BUSINESS,75462,03/02/2023,310956723,OLSI Jan23,09/02/2023,1042.02,5210.12,6252.14,OLSI - Site & Centre Management,Gas,60305
http://statistics.data.gov.uk/id/local-authority/12UE,Huntingdonshire District Council,200126,BRITISH GAS BUSINESS BRITISH GAS BUSINESS,74165,05/01/2023,972801922,OLSI Dec22,12/01/2023,972.12,4860.62,5832.74,OLSI - Site & Centre Management,Gas,60305
http://statistics.data.gov.uk/id/local-authority/12UE,Huntingdonshire District Council,200126,BRITISH GAS BUSINESS BRITISH GAS BUSINESS,74172,05/01/2023,972801925,OLSIO Dec22,12/01/2023,121.25,606.24,727.49,OLSIO - Site & Centre Management,Gas,60305
http://statistics.data.gov.uk/id/local-authority/12UE,Huntingdonshire District Council,200126,BRITISH GAS BUSINESS BRITISH GAS BUSINESS,75498,03/02/2023,310956726,OLSIO Jan23,09/02/2023,116.05,580.23,696.28,OLSIO - Site & Centre Management,Gas,60305
http://statistics.data.gov.uk/id/local-authority/12UE,Huntingdonshire District Council,200126,BRITISH GAS BUSINESS BRITISH GAS BUSINESS,76708,03/03/2023,993559583,OLSO Feb23,09/03/2023,95.96,479.78,575.74,OLSIO - Site & Centre Management,Gas,60305
http://statistics.data.gov.uk/id/local-authority/12UE,Huntingdonshire District Council,200126,BRITISH GAS BUSINESS BRITISH GAS BUSINESS,74173,05/01/2023,972801923,OLSN Dry Dec22,12/01/2023,78.73,393.67,472.4,OLSN - Site & Centre Management,Gas,60305
http://statistics.data.gov.uk/id/local-authority/12UE,Huntingdonshire District Council,200126,BRITISH GAS BUSINESS BRITISH GAS BUSINESS,74168,05/01/2023,972801920,OLSN Wet Dec22,12/01/2023,865.54,4327.69,5193.23,OLSN - Swimming,Gas,60305
http://statistics.data.gov.uk/id/local-authority/12UE,Huntingdonshire District Council,200126,BRITISH GAS BUSINESS BRITISH GAS BUSINESS,75452,03/02/2023,310956721,OLSN Wet Jan23,09/02/2023,848.75,4243.77,5092.52,OLSN - Swimming,Gas,60305
http://statistics.data.gov.uk/id/local-authority/12UE,Huntingdonshire District Council,200126,BRITISH GAS BUSINESS BRITISH GAS BUSINESS,76704,03/03/2023,993559578,OLSN Wet Feb23,09/03/2023,742.65,3713.24,4455.89,OLSN - Swimming,Gas,60305
http://statistics.data.gov.uk/id/local-authority/12UE,Huntingdonshire District Council,200126,BRITISH GAS BUSINESS BRITISH GAS BUSINESS,75493,03/02/2023,310956725,PFH Jan23,09/02/2023,232.56,1162.8,1395.36,Pathfinder House,Gas,60305
http://statistics.data.gov.uk/id/local-authority/12UE,Huntingdonshire District Council,200126,BRITISH GAS BUSINESS BRITISH GAS BUSINESS,77308,03/03/2023,993559582,PFH Feb23,17/03/2023,232.52,1162.58,1395.1,Pathfinder House,Gas,60305
http://statistics.data.gov.uk/id/local-authority/12UE,Huntingdonshire District Council,200126,BRITISH GAS BUSINESS BRITISH GAS BUSINESS,74245,05/01/2023,972801924,PFH Dec22,12/01/2023,228.66,1143.29,1371.95,Pathfinder House,Gas,60305
http://statistics.data.gov.uk/id/local-authority/12UE,Huntingdonshire District Council,200126,BRITISH GAS BUSINESS BRITISH GAS BUSINESS,74168,05/01/2023,972801920,OLSN Wet Dec22,12/01/2023,-0.01,0,-0.01,Finance,Over/Under VAT Rounding,68350
http://statistics.data.gov.uk/id/local-authority/12UE,Huntingdonshire District Council,200126,BRITISH GAS BUSINESS BRITISH GAS BUSINESS,76704,03/03/2023,993559578,OLSN Wet Feb23,09/03/2023,-0.01,0,-0.01,Finance,Over/Under VAT Rounding,68350
http://statistics.data.gov.uk/id/local-authority/12UE,Huntingdonshire District Council,200126,BRITISH GAS BUSINESS BRITISH GAS BUSINESS,74166,05/01/2023,972801921,OLH Wet Dec22,12/01/2023,-0.01,0,-0.01,Finance,Over/Under VAT Rounding,68350
http://statistics.data.gov.uk/id/local-authority/12UE,Huntingdonshire District Council,200126,BRITISH GAS BUSINESS BRITISH GAS BUSINESS,74245,05/01/2023,972801924,PFH Dec22,12/01/2023,-0.01,0,-0.01,Finance,Over/Under VAT Rounding,68350
http://statistics.data.gov.uk/id/local-authority/12UE,Huntingdonshire District Council,200126,BRITISH GAS BUSINESS BRITISH GAS BUSINESS,75494,03/02/2023,310956727,EFH Jan23,09/02/2023,-0.01,0,-0.01,Finance,Over/Under VAT Rounding,68350
http://statistics.data.gov.uk/id/local-authority/12UE,Huntingdonshire District Council,200126,BRITISH GAS BUSINESS BRITISH GAS BUSINESS,74244,05/01/2023,972801926,EFH Dec22,12/01/2023,-0.01,0,-0.01,Finance,Over/Under VAT Rounding,68350
http://statistics.data.gov.uk/id/local-authority/12UE,Huntingdonshire District Council,200126,BRITISH GAS BUSINESS BRITISH GAS BUSINESS,74172,05/01/2023,972801925,OLSIO Dec22,12/01/2023,-0.01,0,-0.01,Finance,Over/Under VAT Rounding,68350
http://statistics.data.gov.uk/id/local-authority/12UE,Huntingdonshire District Council,200126,BRITISH GAS BUSINESS BRITISH GAS BUSINESS,75498,03/02/2023,310956726,OLSIO Jan23,09/02/2023,-0.01,0,-0.01,Finance,Over/Under VAT Rounding,68350
http://statistics.data.gov.uk/id/local-authority/12UE,Huntingdonshire District Council,200126,BRITISH GAS BUSINESS BRITISH GAS BUSINESS,76708,03/03/2023,993559583,OLSO Feb23,09/03/2023,-0.01,0,-0.01,Finance,Over/Under VAT Rounding,68350
http://statistics.data.gov.uk/id/local-authority/12UE,Huntingdonshire District Council,200129,BRITISH TELECOMMUNICATIONS PLC BRITISH TELECOMMUNICATIONS PLC,77303,01/11/2022,20035011,Guildhall Analogue Rental Nov22-23,17/03/2023,374.82,1874.08,2248.9,Cctv Shared Service - City,Broadband Line Rental,64080
http://statistics.data.gov.uk/id/local-authority/12UE,Huntingdonshire District Council,200129,BRITISH TELECOMMUNICATIONS PLC BRITISH TELECOMMUNICATIONS PLC,74250,10/12/2022,VP 01976770 Q00401,One Bill Invoice,09/01/2023,102.76,513.78,616.54,Cctv Shared Service Hosting,Broadband Line Rental,64080
http://statistics.data.gov.uk/id/local-authority/12UE,Huntingdonshire District Council,200129,BRITISH TELECOMMUNICATIONS PLC BRITISH TELECOMMUNICATIONS PLC,77867,07/03/2023,218949,REDACTED,28/03/2023,1700,8500,10200,Cctv Huntingdonshire,"Purchase - Equipment, Furniture And Materials",61703
http://statistics.data.gov.uk/id/local-authority/12UE,Huntingdonshire District Council,200129,BRITISH TELECOMMUNICATIONS PLC BRITISH TELECOMMUNICATIONS PLC,77594,02/11/2021,20033036,Telecommunications - CCTV,24/03/2023,374.82,1874.08,2248.9,Cctv Huntingdonshire,Telecommunications,60301
http://statistics.data.gov.uk/id/local-authority/12UE,Huntingdonshire District Council,200131,BROXAP LTD BROXAP LTD,74301,05/01/2023,300648,Memorial Bench + Plaque,02/02/2023,151.4,757,908.4,Parks & Open Spaces,Site Alterations And Materials,60273
http://statistics.data.gov.uk/id/local-authority/12UE,Huntingdonshire District Council,200132,BRYAN LECOCHE LTD BRYAN LECOCHE LTD,73770,21/12/2022,7085,Subcontractors,12/01/2023,559.8,2799,3358.8,Env Protection,Subcontractors,62401
http://statistics.data.gov.uk/id/local-authority/12UE,Huntingdonshire District Council,200132,BRYAN LECOCHE LTD BRYAN LECOCHE LTD,77653,01/03/2023,7251,Subcontractors,24/03/2023,67.14,335.7,402.84,Env Protection,Subcontractors,62401
http://statistics.data.gov.uk/id/local-authority/12UE,Huntingdonshire District Council,200133,BSG PROPERTY SERVICES LTD BSG PROPERTY SERVICES LTD,76414,29/06/2022,S54442,REDACTED,03/03/2023,0,21252.77,21252.77,Disables Facilities Grants,Mandatory Grants,64601
http://statistics.data.gov.uk/id/local-authority/12UE,Huntingdonshire District Council,201207,Bury Parish Council,75260,31/01/2023,19/01881/OUT,Grant Provisions 19/1881/OUT,02/02/2023,0,34946.23,34946.23,S106 Agreements Exp & Inc,S106 Community Facilities (Parish) Payment,66454
http://statistics.data.gov.uk/id/local-authority/12UE,Huntingdonshire District Council,200148,CALLCREDIT LTD CALLCREDIT LTD,75610,01/02/2023,952244,Usage Charge Jan23,23/02/2023,273.6,1368,1641.6,Benefits Management,Enquiries,63400
http://statistics.data.gov.uk/id/local-authority/12UE,Huntingdonshire District Council,200148,CALLCREDIT LTD CALLCREDIT LTD,77407,01/03/2023,954707,Usage Charge Feb23,24/03/2023,170.73,853.63,1024.36,Benefits Management,Enquiries,63400
http://statistics.data.gov.uk/id/local-authority/12UE,Huntingdonshire District Council,200148,CALLCREDIT LTD CALLCREDIT LTD,74441,01/01/2023,947539,Dec-22,26/01/2023,168.07,840.35,1008.42,Benefits Management,Enquiries,63400
http://statistics.data.gov.uk/id/local-authority/12UE,Huntingdonshire District Council,200148,CALLCREDIT LTD CALLCREDIT LTD,75610,01/02/2023,952244,Usage Charge Jan23,23/02/2023,0.49,2.43,2.92,Finance,Enquiries,63400
http://statistics.data.gov.uk/id/local-authority/12UE,Huntingdonshire District Council,200148,CALLCREDIT LTD CALLCREDIT LTD,77407,01/03/2023,954707,Usage Charge Feb23,24/03/2023,23.59,117.95,141.54,Finance,Enquiries,63400
http://statistics.data.gov.uk/id/local-authority/12UE,Huntingdonshire District Council,200148,CALLCREDIT LTD CALLCREDIT LTD,74441,01/01/2023,947539,Dec-22,26/01/2023,4.46,22.32,26.78,Finance,Enquiries,63400
http://statistics.data.gov.uk/id/local-authority/12UE,Huntingdonshire District Council,200149,CAMBRIDGE CITY COUNCIL CAMBRIDGE CITY COUNCIL,76738,02/03/2023,12089673,Cambs HIA Fees QTR 4,31/03/2023,0,72898.8,72898.8,Disables Facilities Grants,Home Improvement Agency Fees,67200
http://statistics.data.gov.uk/id/local-authority/12UE,Huntingdonshire District Council,200149,CAMBRIDGE CITY COUNCIL CAMBRIDGE CITY COUNCIL,76646,02/03/2023,12089692,Licences Feb 2023/24,31/03/2023,635.2,3176,3811.2,Risk and Control,Licences,60410
http://statistics.data.gov.uk/id/local-authority/12UE,Huntingdonshire District Council,200150,CAMBRIDGE CONSULTANCY IN COUNSELLING CAMBRIDGE CONSULTANCY IN COUNSELLING,76513,30/11/2022,103484,Monthly Payment Plan Nov22,03/03/2023,0,666.5,666.5,HR Services,Occupational Health,60111
http://statistics.data.gov.uk/id/local-authority/12UE,Huntingdonshire District Council,200150,CAMBRIDGE CONSULTANCY IN COUNSELLING CAMBRIDGE CONSULTANCY IN COUNSELLING,76514,31/12/2022,103504,Monthly Payment Plan Dec22,03/03/2023,0,666.5,666.5,HR Services,Occupational Health,60111
http://statistics.data.gov.uk/id/local-authority/12UE,Huntingdonshire District Council,200150,CAMBRIDGE CONSULTANCY IN COUNSELLING CAMBRIDGE CONSULTANCY IN COUNSELLING,76515,31/01/2023,103529,Monthly Payment Plan Jan23,03/03/2023,0,666.5,666.5,HR Services,Occupational Health,60111
http://statistics.data.gov.uk/id/local-authority/12UE,Huntingdonshire District Council,203016,Cambridge Trees Ltd,77783,23/02/2023,INV-3889,Priory Park - Tree Works,31/03/2023,1095,5475,6570,Arboricultural Team,Subcontractors,62401
http://statistics.data.gov.uk/id/local-authority/12UE,Huntingdonshire District Council,203016,Cambridge Trees Ltd,77782,02/02/2023,INV-3853,REDACTED,27/03/2023,200,1000,1200,Arboricultural Team,Subcontractors,62401
http://statistics.data.gov.uk/id/local-authority/12UE,Huntingdonshire District Council,203016,Cambridge Trees Ltd,73940,24/11/2022,INV-3751,REDACTED,06/01/2023,170,850,1020,Arboricultural Team,Subcontractors,62401
http://statistics.data.gov.uk/id/local-authority/12UE,Huntingdonshire District Council,203016,Cambridge Trees Ltd,75730,11/02/2023,INV-3875,Clear Horse Chestnut,23/02/2023,90,450,540,Arboricultural Team,Subcontractors,62401
http://statistics.data.gov.uk/id/local-authority/12UE,Huntingdonshire District Council,203016,Cambridge Trees Ltd,73934,30/12/2022,INV-3805,FALLEN TREE,06/01/2023,70,350,420,Arboricultural Team,Subcontractors,62401
http://statistics.data.gov.uk/id/local-authority/12UE,Huntingdonshire District Council,203016,Cambridge Trees Ltd,76716,22/02/2023,INV-3887,Clear Boathouse Roof - Priory Centre,06/03/2023,60,300,360,Arboricultural Team,Subcontractors,62401
http://statistics.data.gov.uk/id/local-authority/12UE,Huntingdonshire District Council,203016,Cambridge Trees Ltd,73939,25/08/2022,INV-3635,REDACTED,06/01/2023,50,250,300,Arboricultural Team,Subcontractors,62401
http://statistics.data.gov.uk/id/local-authority/12UE,Huntingdonshire District Council,200156,CAMBRIDGE VENDING LTD T/A THE VENDING PEOPLE CAMBRIDGE VENDING,76273,24/12/2021,INT021492,Crane Voce SFB - Main Canteen,27/02/2023,0,1222.87,1222.87,Eastfield House,Catering Supplies,61900
http://statistics.data.gov.uk/id/local-authority/12UE,Huntingdonshire District Council,200156,CAMBRIDGE VENDING LTD T/A THE VENDING PEOPLE CAMBRIDGE VENDING,76271,19/11/2021,INT018508,Crane Voce SFB - Main Canteen,27/02/2023,0,633.56,633.56,Eastfield House,Catering Supplies,61900
http://statistics.data.gov.uk/id/local-authority/12UE,Huntingdonshire District Council,200156,CAMBRIDGE VENDING LTD T/A THE VENDING PEOPLE CAMBRIDGE VENDING,76272,20/08/2021,INT010492,Crane Voce SFB - Main Canteen,27/02/2023,0,519.84,519.84,Eastfield House,Catering Supplies,61900
http://statistics.data.gov.uk/id/local-authority/12UE,Huntingdonshire District Council,200156,CAMBRIDGE VENDING LTD T/A THE VENDING PEOPLE CAMBRIDGE VENDING,76263,23/07/2021,INT008404,Crane Voce - Main Canteen,27/02/2023,0,519.27,519.27,Eastfield House,Catering Supplies,61900
http://statistics.data.gov.uk/id/local-authority/12UE,Huntingdonshire District Council,200156,CAMBRIDGE VENDING LTD T/A THE VENDING PEOPLE CAMBRIDGE VENDING,76270,22/10/2021,INT016360,Crane Voce SFB - Main Canteen,27/02/2023,0,512.08,512.08,Eastfield House,Catering Supplies,61900
http://statistics.data.gov.uk/id/local-authority/12UE,Huntingdonshire District Council,200156,CAMBRIDGE VENDING LTD T/A THE VENDING PEOPLE CAMBRIDGE VENDING,76268,21/01/2022,INT023590,Crane Voce - Main Canteen,27/02/2023,0,260.39,260.39,Eastfield House,Catering Supplies,61900
http://statistics.data.gov.uk/id/local-authority/12UE,Huntingdonshire District Council,201033,CAMBRIDGESHIRE COUNTY COUNCIL,74234,06/01/2023,4.23E+11,HDC Contribution Cambs/P'Borough Parks,02/02/2023,0,5000,5000,Parks & Open Spaces,Grants And Contributions,64600
http://statistics.data.gov.uk/id/local-authority/12UE,Huntingdonshire District Council,201033,CAMBRIDGESHIRE COUNTY COUNCIL,76423,10/02/2023,4.23E+11,Housing Monitoring CCC 22/23,09/03/2023,2000,10000,12000,Planning Projects General,Grants And Contributions,64600
http://statistics.data.gov.uk/id/local-authority/12UE,Huntingdonshire District Council,201033,CAMBRIDGESHIRE COUNTY COUNCIL,73514,15/12/2022,4.23E+11,Trade/Food Waste Disposal Costs Nov22,12/01/2023,0,11925.27,11925.27,Trade Refuse,Waste Disposal Costs,64050
http://statistics.data.gov.uk/id/local-authority/12UE,Huntingdonshire District Council,201033,CAMBRIDGESHIRE COUNTY COUNCIL,73514,15/12/2022,4.23E+11,Trade/Food Waste Disposal Costs Nov22,12/01/2023,0,131.8,131.8,Trade Refuse,Waste Disposal Costs,64050
http://statistics.data.gov.uk/id/local-authority/12UE,Huntingdonshire District Council,201033,CAMBRIDGESHIRE COUNTY COUNCIL,76206,23/02/2023,4.23E+11,Food/Trade Waste Disposal Jan23,20/03/2023,0,109.08,109.08,Trade Refuse,Waste Disposal Costs,64050
http://statistics.data.gov.uk/id/local-authority/12UE,Huntingdonshire District Council,201033,CAMBRIDGESHIRE COUNTY COUNCIL,76206,23/02/2023,4.23E+11,Food/Trade Waste Disposal Jan23,20/03/2023,0,10864,10864,Trade Refuse,Waste Disposal Costs,64050
http://statistics.data.gov.uk/id/local-authority/12UE,Huntingdonshire District Council,201033,CAMBRIDGESHIRE COUNTY COUNCIL,77138,14/01/2023,4.23E+11,Trade/Food Waste Disposal Costs Dec22,17/03/2023,0,10265.33,10265.33,Trade Refuse,Waste Disposal Costs,64050
http://statistics.data.gov.uk/id/local-authority/12UE,Huntingdonshire District Council,201033,CAMBRIDGESHIRE COUNTY COUNCIL,77138,14/01/2023,4.23E+11,Trade/Food Waste Disposal Costs Dec22,17/03/2023,0,171.57,171.57,Trade Refuse,Waste Disposal Costs,64050
http://statistics.data.gov.uk/id/local-authority/12UE,Huntingdonshire District Council,200159,CAMBRIDGESHIRE COUNTY COUNCIL CAMBRIDGESHIRE COUNTY COUNCIL,76223,02/02/2023,4.23E+11,CCC Staff Charges Feb-Jul22,23/02/2023,33310.13,166550.66,199860.79,Transport Project,Consultancy Fees,62400
http://statistics.data.gov.uk/id/local-authority/12UE,Huntingdonshire District Council,200159,CAMBRIDGESHIRE COUNTY COUNCIL CAMBRIDGESHIRE COUNTY COUNCIL,76224,01/02/2023,4.23E+11,Forecasted CCC Staff Charges,23/02/2023,24065.35,120326.77,144392.12,Transport Project,Consultancy Fees,62400
http://statistics.data.gov.uk/id/local-authority/12UE,Huntingdonshire District Council,200159,CAMBRIDGESHIRE COUNTY COUNCIL CAMBRIDGESHIRE COUNTY COUNCIL,76474,28/02/2023,4.23E+11,Highway Searches CCC Fees,24/03/2023,2689.6,13448,16137.6,Land Enquiry Con 29 Full,General Office Expenses,62004
http://statistics.data.gov.uk/id/local-authority/12UE,Huntingdonshire District Council,200159,CAMBRIDGESHIRE COUNTY COUNCIL CAMBRIDGESHIRE COUNTY COUNCIL,73586,14/12/2022,4.23E+11,Joint Financing -DHR Contribution 22/23,06/01/2023,0,4000,4000,Community Development,Grants And Contributions,64600
http://statistics.data.gov.uk/id/local-authority/12UE,Huntingdonshire District Council,200159,CAMBRIDGESHIRE COUNTY COUNCIL CAMBRIDGESHIRE COUNTY COUNCIL,76122,21/02/2023,HC LIBRARY COMMUN CHEST GRANT,Hunts Library Community Chest Grant,23/02/2023,0,500,500,Voluntary Sector Grants,Grants And Contributions,64600
http://statistics.data.gov.uk/id/local-authority/12UE,Huntingdonshire District Council,201054,Cambridgeshire Pension Fund,74921,23/09/2022,4.23E+11,Unfunded Benefits Aug22,26/01/2023,0,13810,13810,Non Distributed Costs,Pension Increase Act Payments,60101
http://statistics.data.gov.uk/id/local-authority/12UE,Huntingdonshire District Council,201054,Cambridgeshire Pension Fund,74916,16/11/2022,4.23E+11,Unfunded Benefit Oct22,26/01/2023,0,13346.96,13346.96,Non Distributed Costs,Pension Increase Act Payments,60101
http://statistics.data.gov.uk/id/local-authority/12UE,Huntingdonshire District Council,201054,Cambridgeshire Pension Fund,74918,13/12/2022,4.23E+11,Unfunded Benefits Nov22,26/01/2023,0,13346.96,13346.96,Non Distributed Costs,Pension Increase Act Payments,60101
http://statistics.data.gov.uk/id/local-authority/12UE,Huntingdonshire District Council,201054,Cambridgeshire Pension Fund,77102,07/02/2023,4.23E+11,Unfunded Benefit 2022/23,17/03/2023,0,13182.47,13182.47,Non Distributed Costs,Pension Increase Act Payments,60101
http://statistics.data.gov.uk/id/local-authority/12UE,Huntingdonshire District Council,201054,Cambridgeshire Pension Fund,77826,11/01/2023,4.23E+11,Unfunded Benefit 2022/23,28/03/2023,0,13108.31,13108.31,Non Distributed Costs,Pension Increase Act Payments,60101
http://statistics.data.gov.uk/id/local-authority/12UE,Huntingdonshire District Council,201054,Cambridgeshire Pension Fund,73797,23/12/2022,4.23E+11,Revised IAS19 Report Following Audit,20/01/2023,60,300,360,Non Distributed Costs,Pension Increase Act Payments,60101
http://statistics.data.gov.uk/id/local-authority/12UE,Huntingdonshire District Council,202211,CAMBRIDGESHIRE SAND AND GRAVEL LTD,76579,28/02/2023,2802031,REDACTED,03/03/2023,288,1440,1728,Hinchingbrooke Park Management,Materials,61709
http://statistics.data.gov.uk/id/local-authority/12UE,Huntingdonshire District Council,200163,CAMLINE CAMBRIDGE LIMITED CAMLINE CAMBRIDGE LIMITED,73394,12/12/2022,V17568,olst disabled car bays,06/01/2023,0,455,455,Leisure Cents - Future Improve,Cash - Bank Account,10001
http://statistics.data.gov.uk/id/local-authority/12UE,Huntingdonshire District Council,201595,CAMPDEN BRI (CHIPPING CAMPDEN) LTD,77912,08/03/2023,20227126,Membership/Subscription,31/03/2023,120,600,720,Food Safety General,Membership And Subscriptions,64800
http://statistics.data.gov.uk/id/local-authority/12UE,Huntingdonshire District Council,200166,CAPITA CAPITA,74848,20/12/2022,6095286777,IT Software - Annual sCloud Maintenance,23/01/2023,1700,8500,10200,HDC Recoverable,Ict Software,64071
http://statistics.data.gov.uk/id/local-authority/12UE,Huntingdonshire District Council,200166,CAPITA CAPITA,75366,20/12/2022,6095286782,Annual sCloud Maintenance,02/02/2023,3500,17500,21000,SCDC Business Case ,Ict Software,64071
http://statistics.data.gov.uk/id/local-authority/12UE,Huntingdonshire District Council,200169,CARE CHECK LTD CARE CHECK LTD,74269,30/12/2022,441152,DBS Check,26/01/2023,0,304,304,Homes for Ukraine,Enquiries,63400
http://statistics.data.gov.uk/id/local-authority/12UE,Huntingdonshire District Council,200169,CARE CHECK LTD CARE CHECK LTD,74269,30/12/2022,441152,DBS Check,26/01/2023,8,40,48,Homes for Ukraine,Enquiries,63400
http://statistics.data.gov.uk/id/local-authority/12UE,Huntingdonshire District Council,200169,CARE CHECK LTD CARE CHECK LTD,74269,30/12/2022,441152,DBS Check,26/01/2023,0,72,72,Homes for Ukraine,Enquiries,63400
http://statistics.data.gov.uk/id/local-authority/12UE,Huntingdonshire District Council,200169,CARE CHECK LTD CARE CHECK LTD,74269,30/12/2022,441152,DBS Check,26/01/2023,4,20,24,Homes for Ukraine,Enquiries,63400
http://statistics.data.gov.uk/id/local-authority/12UE,Huntingdonshire District Council,200169,CARE CHECK LTD CARE CHECK LTD,76096,31/01/2023,449901,H4U DBS Checks,23/02/2023,0,72,72,Homes for Ukraine,Enquiries,63400
http://statistics.data.gov.uk/id/local-authority/12UE,Huntingdonshire District Council,200169,CARE CHECK LTD CARE CHECK LTD,76096,31/01/2023,449901,H4U DBS Checks,23/02/2023,4,20,24,Homes for Ukraine,Enquiries,63400
http://statistics.data.gov.uk/id/local-authority/12UE,Huntingdonshire District Council,200169,CARE CHECK LTD CARE CHECK LTD,76096,31/01/2023,449901,H4U DBS Checks,23/02/2023,0,228,228,Homes for Ukraine,Enquiries,63400
http://statistics.data.gov.uk/id/local-authority/12UE,Huntingdonshire District Council,200169,CARE CHECK LTD CARE CHECK LTD,76096,31/01/2023,449901,H4U DBS Checks,23/02/2023,6,30,36,Homes for Ukraine,Enquiries,63400
http://statistics.data.gov.uk/id/local-authority/12UE,Huntingdonshire District Council,200169,CARE CHECK LTD CARE CHECK LTD,74176,30/12/2022,441162,DBS Check/Fees,26/01/2023,0,278,278,HR Services,Enquiries,63400
http://statistics.data.gov.uk/id/local-authority/12UE,Huntingdonshire District Council,200169,CARE CHECK LTD CARE CHECK LTD,74176,30/12/2022,441162,DBS Check/Fees,26/01/2023,11,55,66,HR Services,Enquiries,63400
http://statistics.data.gov.uk/id/local-authority/12UE,Huntingdonshire District Council,202302,CARESCO LTD,77338,09/03/2023,705,Full Page Colour Ad - 2 Issues,17/03/2023,105.23,526.17,631.4,Domestic Waste Collection,"Advertising, Publicity And Marketing",62005
http://statistics.data.gov.uk/id/local-authority/12UE,Huntingdonshire District Council,202302,CARESCO LTD,74753,18/01/2023,HEALTH INEQUALITIES PROJECT,Health Inequalities Project 18.01.23,20/01/2023,0,7500,7500,Integrated Care System Project,Grants And Contributions,64600
http://statistics.data.gov.uk/id/local-authority/12UE,Huntingdonshire District Council,203090,REDACTED,76844,01/03/2023,4,OL Call Centre - Additional Training,24/03/2023,0,600,600,One Leisure Management Team,Consultancy Fees,62400
http://statistics.data.gov.uk/id/local-authority/12UE,Huntingdonshire District Council,203090,REDACTED,76844,01/03/2023,4,OL Call Centre - Additional Training,24/03/2023,0,3000,3000,One Leisure Management Team,Consultancy Fees,62400
http://statistics.data.gov.uk/id/local-authority/12UE,Huntingdonshire District Council,203090,REDACTED,74064,01/01/2023,2,OL Sales Support Programme,26/01/2023,0,3000,3000,One Leisure Management Team,Consultancy Fees,62400
http://statistics.data.gov.uk/id/local-authority/12UE,Huntingdonshire District Council,203090,REDACTED,75582,01/02/2023,3,Delivery OL Sales Support Programme,23/02/2023,0,3000,3000,One Leisure Management Team,Consultancy Fees,62400
http://statistics.data.gov.uk/id/local-authority/12UE,Huntingdonshire District Council,202458,CARRINGTON WEST LTD,74937,19/01/2023,240665,REDACTED,09/02/2023,303.67,1518.35,1822.02,Development Management,Agency Staff,60011
http://statistics.data.gov.uk/id/local-authority/12UE,Huntingdonshire District Council,202458,CARRINGTON WEST LTD,75829,02/02/2023,242955,REDACTED,03/03/2023,298.08,1490.4,1788.48,Development Management,Agency Staff,60011
http://statistics.data.gov.uk/id/local-authority/12UE,Huntingdonshire District Council,202458,CARRINGTON WEST LTD,75978,16/02/2023,245239,REDACTED,17/03/2023,298.08,1490.4,1788.48,Development Management,Agency Staff,60011
http://statistics.data.gov.uk/id/local-authority/12UE,Huntingdonshire District Council,202458,CARRINGTON WEST LTD,76099,09/02/2023,244104,REDACTED,09/03/2023,298.08,1490.4,1788.48,Development Management,Agency Staff,60011
http://statistics.data.gov.uk/id/local-authority/12UE,Huntingdonshire District Council,202458,CARRINGTON WEST LTD,76229,23/02/2023,246456,REDACTED,24/03/2023,290.63,1453.14,1743.77,Development Management,Agency Staff,60011
http://statistics.data.gov.uk/id/local-authority/12UE,Huntingdonshire District Council,202458,CARRINGTON WEST LTD,76999,26/01/2023,241790,REDACTED,09/03/2023,290.63,1453.14,1743.77,Development Management,Agency Staff,60011
http://statistics.data.gov.uk/id/local-authority/12UE,Huntingdonshire District Council,202458,CARRINGTON WEST LTD,73720,15/12/2022,235767,REDACTED,12/01/2023,275.72,1378.62,1654.34,Development Management,Agency Staff,60011
http://statistics.data.gov.uk/id/local-authority/12UE,Huntingdonshire District Council,202458,CARRINGTON WEST LTD,73796,22/12/2022,236925,REDACTED,20/01/2023,275.72,1378.62,1654.34,Development Management,Agency Staff,60011
http://statistics.data.gov.uk/id/local-authority/12UE,Huntingdonshire District Council,202458,CARRINGTON WEST LTD,74059,29/12/2022,237883,REDACTED,26/01/2023,275.72,1378.62,1654.34,Development Management,Agency Staff,60011
http://statistics.data.gov.uk/id/local-authority/12UE,Huntingdonshire District Council,202458,CARRINGTON WEST LTD,74814,12/01/2023,239595,REDACTED,09/02/2023,253.37,1266.84,1520.21,Development Management,Agency Staff,60011
http://statistics.data.gov.uk/id/local-authority/12UE,Huntingdonshire District Council,202458,CARRINGTON WEST LTD,76647,02/03/2023,247747,REDACTED,31/03/2023,61.48,307.39,368.87,Development Management,Agency Staff,60011
http://statistics.data.gov.uk/id/local-authority/12UE,Huntingdonshire District Council,202458,CARRINGTON WEST LTD,74300,15/12/2022,235769,REDACTED,12/01/2023,382.95,1914.75,2297.7,Development Management,Consultancy Fees,62400
http://statistics.data.gov.uk/id/local-authority/12UE,Huntingdonshire District Council,202458,CARRINGTON WEST LTD,74303,15/12/2022,235770,REDACTED,12/01/2023,382.95,1914.75,2297.7,Development Management,Consultancy Fees,62400
http://statistics.data.gov.uk/id/local-authority/12UE,Huntingdonshire District Council,202458,CARRINGTON WEST LTD,74306,15/12/2022,235768,REDACTED,12/01/2023,382.95,1914.75,2297.7,Development Management,Consultancy Fees,62400
http://statistics.data.gov.uk/id/local-authority/12UE,Huntingdonshire District Council,202458,CARRINGTON WEST LTD,75475,02/02/2023,242954,REDACTED,03/03/2023,382.95,1914.75,2297.7,Development Management,Consultancy Fees,62400
http://statistics.data.gov.uk/id/local-authority/12UE,Huntingdonshire District Council,202458,CARRINGTON WEST LTD,76228,09/02/2023,244106,REDACTED,09/03/2023,382.95,1914.75,2297.7,Development Management,Consultancy Fees,62400
http://statistics.data.gov.uk/id/local-authority/12UE,Huntingdonshire District Council,202458,CARRINGTON WEST LTD,76230,09/02/2023,244105,REDACTED,09/03/2023,382.95,1914.75,2297.7,Development Management,Consultancy Fees,62400
http://statistics.data.gov.uk/id/local-authority/12UE,Huntingdonshire District Council,202458,CARRINGTON WEST LTD,77000,02/02/2023,242953,REDACTED,09/03/2023,382.95,1914.75,2297.7,Development Management,Consultancy Fees,62400
http://statistics.data.gov.uk/id/local-authority/12UE,Huntingdonshire District Council,202458,CARRINGTON WEST LTD,75476,02/02/2023,242950,REDACTED,03/03/2023,372.6,1863,2235.6,Development Management,Consultancy Fees,62400
http://statistics.data.gov.uk/id/local-authority/12UE,Huntingdonshire District Council,202458,CARRINGTON WEST LTD,75478,02/02/2023,242951,REDACTED,03/03/2023,351.9,1759.5,2111.4,Development Management,Consultancy Fees,62400
http://statistics.data.gov.uk/id/local-authority/12UE,Huntingdonshire District Council,202458,CARRINGTON WEST LTD,74354,15/12/2022,235766,REDACTED,12/01/2023,296.73,1483.67,1780.4,Development Management,Consultancy Fees,62400
http://statistics.data.gov.uk/id/local-authority/12UE,Huntingdonshire District Council,202458,CARRINGTON WEST LTD,75374,02/02/2023,242952,REDACTED,03/03/2023,289.8,1449,1738.8,Development Management,Consultancy Fees,62400
http://statistics.data.gov.uk/id/local-authority/12UE,Huntingdonshire District Council,201011,CENTENNIAL PROPERTY LTD,75472,01/02/2023,CEN-202301024,TA - Jan23,06/02/2023,80,400,480,Homelessness,B&B Accommodation,64401
http://statistics.data.gov.uk/id/local-authority/12UE,Huntingdonshire District Council,201011,CENTENNIAL PROPERTY LTD,74422,01/01/2023,CEN-202212020,TA - Dec22,12/01/2023,126,630,756,Homelessness,B&B Accommodation,64401
http://statistics.data.gov.uk/id/local-authority/12UE,Huntingdonshire District Council,201011,CENTENNIAL PROPERTY LTD,74422,01/01/2023,CEN-202212020,TA - Dec22,12/01/2023,60,300,360,Homelessness,B&B Accommodation,64401
http://statistics.data.gov.uk/id/local-authority/12UE,Huntingdonshire District Council,201011,CENTENNIAL PROPERTY LTD,74422,01/01/2023,CEN-202212020,TA - Dec22,12/01/2023,72,360,432,Homelessness,B&B Accommodation,64401
http://statistics.data.gov.uk/id/local-authority/12UE,Huntingdonshire District Council,201011,CENTENNIAL PROPERTY LTD,74422,01/01/2023,CEN-202212020,TA - Dec22,12/01/2023,80,400,480,Homelessness,B&B Accommodation,64401
http://statistics.data.gov.uk/id/local-authority/12UE,Huntingdonshire District Council,201011,CENTENNIAL PROPERTY LTD,74422,01/01/2023,CEN-202212020,TA - Dec22,12/01/2023,0,0,0,Homelessness,B&B Accommodation,64401
http://statistics.data.gov.uk/id/local-authority/12UE,Huntingdonshire District Council,201011,CENTENNIAL PROPERTY LTD,76660,01/03/2023,CEN-202302025,TA - 01-28.02.23,03/03/2023,25.2,126,151.2,Homelessness,B&B Accommodation,64401
http://statistics.data.gov.uk/id/local-authority/12UE,Huntingdonshire District Council,201011,CENTENNIAL PROPERTY LTD,75472,01/02/2023,CEN-202301024,TA - Jan23,06/02/2023,260.4,1302,1562.4,Homelessness,B&B Accommodation,64401
http://statistics.data.gov.uk/id/local-authority/12UE,Huntingdonshire District Council,201011,CENTENNIAL PROPERTY LTD,74422,01/01/2023,CEN-202212020,TA - Dec22,12/01/2023,84,420,504,Homelessness,B&B Accommodation,64401
http://statistics.data.gov.uk/id/local-authority/12UE,Huntingdonshire District Council,201011,CENTENNIAL PROPERTY LTD,76660,01/03/2023,CEN-202302025,TA - 01-28.02.23,03/03/2023,235.2,1176,1411.2,Homelessness,B&B Accommodation,64401
http://statistics.data.gov.uk/id/local-authority/12UE,Huntingdonshire District Council,201011,CENTENNIAL PROPERTY LTD,75472,01/02/2023,CEN-202301024,TA - Jan23,06/02/2023,184.8,924,1108.8,Homelessness,B&B Accommodation,64401
http://statistics.data.gov.uk/id/local-authority/12UE,Huntingdonshire District Council,201011,CENTENNIAL PROPERTY LTD,74422,01/01/2023,CEN-202212020,TA - Dec22,12/01/2023,260.4,1302,1562.4,Homelessness,B&B Accommodation,64401
http://statistics.data.gov.uk/id/local-authority/12UE,Huntingdonshire District Council,201011,CENTENNIAL PROPERTY LTD,75472,01/02/2023,CEN-202301024,TA - Jan23,06/02/2023,260.4,1302,1562.4,Homelessness,B&B Accommodation,64401
http://statistics.data.gov.uk/id/local-authority/12UE,Huntingdonshire District Council,201011,CENTENNIAL PROPERTY LTD,74422,01/01/2023,CEN-202212020,TA - Dec22,12/01/2023,260.4,1302,1562.4,Homelessness,B&B Accommodation,64401
http://statistics.data.gov.uk/id/local-authority/12UE,Huntingdonshire District Council,201011,CENTENNIAL PROPERTY LTD,76660,01/03/2023,CEN-202302025,TA - 01-28.02.23,03/03/2023,235.2,1176,1411.2,Homelessness,B&B Accommodation,64401
http://statistics.data.gov.uk/id/local-authority/12UE,Huntingdonshire District Council,201011,CENTENNIAL PROPERTY LTD,77078,01/03/2023,CEN-202302025A,TA - 06-28.02.23,13/03/2023,42,210,252,Homelessness,B&B Accommodation,64401
http://statistics.data.gov.uk/id/local-authority/12UE,Huntingdonshire District Council,201011,CENTENNIAL PROPERTY LTD,75472,01/02/2023,CEN-202301024,TA - Jan23,06/02/2023,310,1550,1860,Homelessness,B&B Accommodation,64401
http://statistics.data.gov.uk/id/local-authority/12UE,Huntingdonshire District Council,201011,CENTENNIAL PROPERTY LTD,74422,01/01/2023,CEN-202212020,TA - Dec22,12/01/2023,310,1550,1860,Homelessness,B&B Accommodation,64401
http://statistics.data.gov.uk/id/local-authority/12UE,Huntingdonshire District Council,201011,CENTENNIAL PROPERTY LTD,76660,01/03/2023,CEN-202302025,TA - 01-28.02.23,03/03/2023,280,1400,1680,Homelessness,B&B Accommodation,64401
http://statistics.data.gov.uk/id/local-authority/12UE,Huntingdonshire District Council,201011,CENTENNIAL PROPERTY LTD,75472,01/02/2023,CEN-202301024,TA - Jan23,06/02/2023,310,1550,1860,Homelessness,B&B Accommodation,64401
http://statistics.data.gov.uk/id/local-authority/12UE,Huntingdonshire District Council,201011,CENTENNIAL PROPERTY LTD,74422,01/01/2023,CEN-202212020,TA - Dec22,12/01/2023,310,1550,1860,Homelessness,B&B Accommodation,64401
http://statistics.data.gov.uk/id/local-authority/12UE,Huntingdonshire District Council,201011,CENTENNIAL PROPERTY LTD,76660,01/03/2023,CEN-202302025,TA - 01-28.02.23,03/03/2023,280,1400,1680,Homelessness,B&B Accommodation,64401
http://statistics.data.gov.uk/id/local-authority/12UE,Huntingdonshire District Council,201011,CENTENNIAL PROPERTY LTD,75472,01/02/2023,CEN-202301024,TA - Jan23,06/02/2023,310,1550,1860,Homelessness,B&B Accommodation,64401
http://statistics.data.gov.uk/id/local-authority/12UE,Huntingdonshire District Council,201011,CENTENNIAL PROPERTY LTD,74422,01/01/2023,CEN-202212020,TA - Dec22,12/01/2023,310,1550,1860,Homelessness,B&B Accommodation,64401
http://statistics.data.gov.uk/id/local-authority/12UE,Huntingdonshire District Council,201011,CENTENNIAL PROPERTY LTD,76660,01/03/2023,CEN-202302025,TA - 01-28.02.23,03/03/2023,280,1400,1680,Homelessness,B&B Accommodation,64401
http://statistics.data.gov.uk/id/local-authority/12UE,Huntingdonshire District Council,201011,CENTENNIAL PROPERTY LTD,75472,01/02/2023,CEN-202301024,TA - Jan23,06/02/2023,310,1550,1860,Homelessness,B&B Accommodation,64401
http://statistics.data.gov.uk/id/local-authority/12UE,Huntingdonshire District Council,201011,CENTENNIAL PROPERTY LTD,74422,01/01/2023,CEN-202212020,TA - Dec22,12/01/2023,190,950,1140,Homelessness,B&B Accommodation,64401
http://statistics.data.gov.uk/id/local-authority/12UE,Huntingdonshire District Council,201011,CENTENNIAL PROPERTY LTD,76660,01/03/2023,CEN-202302025,TA - 01-28.02.23,03/03/2023,280,1400,1680,Homelessness,B&B Accommodation,64401
http://statistics.data.gov.uk/id/local-authority/12UE,Huntingdonshire District Council,201011,CENTENNIAL PROPERTY LTD,75472,01/02/2023,CEN-202301024,TA - Jan23,06/02/2023,310,1550,1860,Homelessness,B&B Accommodation,64401
http://statistics.data.gov.uk/id/local-authority/12UE,Huntingdonshire District Council,201011,CENTENNIAL PROPERTY LTD,74422,01/01/2023,CEN-202212020,TA - Dec22,12/01/2023,260,1300,1560,Homelessness,B&B Accommodation,64401
http://statistics.data.gov.uk/id/local-authority/12UE,Huntingdonshire District Council,201011,CENTENNIAL PROPERTY LTD,76660,01/03/2023,CEN-202302025,TA - 01-28.02.23,03/03/2023,50,250,300,Homelessness,B&B Accommodation,64401
http://statistics.data.gov.uk/id/local-authority/12UE,Huntingdonshire District Council,201011,CENTENNIAL PROPERTY LTD,75472,01/02/2023,CEN-202301024,TA - Jan23,06/02/2023,372,1860,2232,Homelessness,B&B Accommodation,64401
http://statistics.data.gov.uk/id/local-authority/12UE,Huntingdonshire District Council,201011,CENTENNIAL PROPERTY LTD,74422,01/01/2023,CEN-202212020,TA - Dec22,12/01/2023,240,1200,1440,Homelessness,B&B Accommodation,64401
http://statistics.data.gov.uk/id/local-authority/12UE,Huntingdonshire District Council,201011,CENTENNIAL PROPERTY LTD,76660,01/03/2023,CEN-202302025,TA - 01-28.02.23,03/03/2023,336,1680,2016,Homelessness,B&B Accommodation,64401
http://statistics.data.gov.uk/id/local-authority/12UE,Huntingdonshire District Council,201011,CENTENNIAL PROPERTY LTD,77078,01/03/2023,CEN-202302025A,TA - 06-28.02.23,13/03/2023,20,100,120,Housing Needs & Resources,B&B Accommodation,64401
http://statistics.data.gov.uk/id/local-authority/12UE,Huntingdonshire District Council,200178,CENTRE THEATRE PLAYERS CENTRE THEATRE PLAYERS,75619,31/01/2023,ALADDIN EXPENSES JAN23,Aladdin Expenses Jan23,09/02/2023,0,1007.18,1007.18,OLSI - Burgess Hall,Materials,61709
http://statistics.data.gov.uk/id/local-authority/12UE,Huntingdonshire District Council,200179,CERTAS ENERGY T/A PACE FUELCARE CERTAS ENERGY T/A PACE FUELCARE,75986,01/02/2023,8261644,"Transport Fuel 30,000L Road Diesel",23/02/2023,7792.98,38964.9,46757.88,Operations Diesel Stock,General Stock Account,11601
http://statistics.data.gov.uk/id/local-authority/12UE,Huntingdonshire District Council,200179,CERTAS ENERGY T/A PACE FUELCARE CERTAS ENERGY T/A PACE FUELCARE,74938,05/01/2023,8150538,"Transport Fuel 30,000L Road Diesel",02/02/2023,7723.12,38615.57,46338.69,Operations Diesel Stock,General Stock Account,11601
http://statistics.data.gov.uk/id/local-authority/12UE,Huntingdonshire District Council,200179,CERTAS ENERGY T/A PACE FUELCARE CERTAS ENERGY T/A PACE FUELCARE,76901,24/02/2023,8385322,"Transport Fuel 30,000L Road Diesel",24/03/2023,7265.4,36327,43592.4,Operations Diesel Stock,General Stock Account,11601
http://statistics.data.gov.uk/id/local-authority/12UE,Huntingdonshire District Council,200179,CERTAS ENERGY T/A PACE FUELCARE CERTAS ENERGY T/A PACE FUELCARE,73730,13/12/2022,8013265,"Transport Fuel 30,000L Road Diesel",06/01/2023,7148.42,35742.1,42890.52,Operations Diesel Stock,General Stock Account,11601
http://statistics.data.gov.uk/id/local-authority/12UE,Huntingdonshire District Council,200179,CERTAS ENERGY T/A PACE FUELCARE CERTAS ENERGY T/A PACE FUELCARE,74938,05/01/2023,8150538,"Transport Fuel 30,000L Road Diesel",02/02/2023,-0.01,0,-0.01,Finance,Over/Under VAT Rounding,68350
http://statistics.data.gov.uk/id/local-authority/12UE,Huntingdonshire District Council,200181,CFL ESTATE SERVICES CFL ESTATE SERVICES,74268,06/01/2023,HDC142,Bridge Place CP Sales Work,02/02/2023,0,344,344,Bridge Place Car Park Const,Consultancy Fees,62400
http://statistics.data.gov.uk/id/local-authority/12UE,Huntingdonshire District Council,201078,CHARTERED INSTITUTE OF ENVIRONMENTAL HEALTH,75731,09/02/2023,PS017849,Staff Training & Development,09/03/2023,0,70,70,Commercial Team,Staff Development And Training,60115
http://statistics.data.gov.uk/id/local-authority/12UE,Huntingdonshire District Council,201078,CHARTERED INSTITUTE OF ENVIRONMENTAL HEALTH,75731,09/02/2023,PS017849,Staff Training & Development,09/03/2023,0,180,180,Env Protection,Staff Development And Training,60115
http://statistics.data.gov.uk/id/local-authority/12UE,Huntingdonshire District Council,201078,CHARTERED INSTITUTE OF ENVIRONMENTAL HEALTH,75731,09/02/2023,PS017849,Staff Training & Development,09/03/2023,0,180,180,Env Protection,Staff Development And Training,60115
http://statistics.data.gov.uk/id/local-authority/12UE,Huntingdonshire District Council,203176,Chin Min Ltd T/A Dor-2-Dor Cambridge,76234,14/02/2023,INV-0981,"Delivery 5,000 Leaflets St Ives Feb23",23/02/2023,105,525,630,OLSI - Site & Centre Management,"Advertising, Publicity And Marketing",62005
http://statistics.data.gov.uk/id/local-authority/12UE,Huntingdonshire District Council,203176,Chin Min Ltd T/A Dor-2-Dor Cambridge,77695,08/03/2023,INV-0995,OLSI Leaflet Delivery - EDIT,24/03/2023,69.35,346.75,416.1,One Leisure Support Team,"Advertising, Publicity And Marketing",62005
http://statistics.data.gov.uk/id/local-authority/12UE,Huntingdonshire District Council,200190,CHIPSIDE CHIPSIDE,74296,31/12/2022,S231459,MiPermit Fees Dec22,26/01/2023,512.28,2561.42,3073.7,Car Park Management,Contract Charges ,61800
http://statistics.data.gov.uk/id/local-authority/12UE,Huntingdonshire District Council,200190,CHIPSIDE CHIPSIDE,74296,31/12/2022,S231459,MiPermit Fees Dec22,26/01/2023,1.14,5.7,6.84,Car Park Management,Contract Charges ,61800
http://statistics.data.gov.uk/id/local-authority/12UE,Huntingdonshire District Council,200190,CHIPSIDE CHIPSIDE,77311,28/02/2023,S232597,MiPermit Fee Feb23,24/03/2023,409.4,2047,2456.4,Car Park Management,Contract Charges ,61800
http://statistics.data.gov.uk/id/local-authority/12UE,Huntingdonshire District Council,200190,CHIPSIDE CHIPSIDE,77311,28/02/2023,S232597,MiPermit Fee Feb23,24/03/2023,0.78,3.9,4.68,Car Park Management,Contract Charges ,61800
http://statistics.data.gov.uk/id/local-authority/12UE,Huntingdonshire District Council,200190,CHIPSIDE CHIPSIDE,77312,28/02/2023,S232685,MiPermit Charge Feb23,24/03/2023,98.24,491.21,589.45,Car Park Management,Contract Charges ,61800
http://statistics.data.gov.uk/id/local-authority/12UE,Huntingdonshire District Council,200190,CHIPSIDE CHIPSIDE,77312,28/02/2023,S232685,MiPermit Charge Feb23,24/03/2023,0.1,0.48,0.58,Car Park Management,Contract Charges ,61800
http://statistics.data.gov.uk/id/local-authority/12UE,Huntingdonshire District Council,200190,CHIPSIDE CHIPSIDE,74297,31/12/2022,S231547,MiPermit Charge Dec22,26/01/2023,94.64,473.21,567.85,Car Park Management,Contract Charges ,61800
http://statistics.data.gov.uk/id/local-authority/12UE,Huntingdonshire District Council,200190,CHIPSIDE CHIPSIDE,74297,31/12/2022,S231547,MiPermit Charge Dec22,26/01/2023,0.1,0.48,0.58,Car Park Management,Contract Charges ,61800
http://statistics.data.gov.uk/id/local-authority/12UE,Huntingdonshire District Council,200190,CHIPSIDE CHIPSIDE,75716,31/01/2023,S232236,MiPermit Charge Jan23,23/02/2023,91.93,459.67,551.6,Car Park Management,Contract Charges ,61800
http://statistics.data.gov.uk/id/local-authority/12UE,Huntingdonshire District Council,200190,CHIPSIDE CHIPSIDE,75716,31/01/2023,S232236,MiPermit Charge Jan23,23/02/2023,0.1,0.48,0.58,Car Park Management,Contract Charges ,61800
http://statistics.data.gov.uk/id/local-authority/12UE,Huntingdonshire District Council,200190,CHIPSIDE CHIPSIDE,74900,10/01/2023,S231732,Rugged Boot with Hand Strap,02/02/2023,78,390,468,Car Park Management,Specialist Equipment For Service Provision,61704
http://statistics.data.gov.uk/id/local-authority/12UE,Huntingdonshire District Council,202708,CINOS LIMITED,73332,11/12/2022,UK12570,IT Software - Content Guru,06/01/2023,10,50,60,Cambridge City Business Case ,Consultancy Fees,62400
http://statistics.data.gov.uk/id/local-authority/12UE,Huntingdonshire District Council,202708,CINOS LIMITED,73332,11/12/2022,UK12570,IT Software - Content Guru,06/01/2023,84,420,504,Cambridge City Business Case ,Ict Software,64071
http://statistics.data.gov.uk/id/local-authority/12UE,Huntingdonshire District Council,200195,CIPFA BUSINESS LIMITED CIPFA BUSINESS LIMITED,76693,05/03/2023,3167293,Finance Advisory Network Apr23-Mar24,31/03/2023,1059,5295,6354,Finance,Membership And Subscriptions,64800
http://statistics.data.gov.uk/id/local-authority/12UE,Huntingdonshire District Council,202817,CIVICA ELECTION SERVICES LIMITED,75334,16/01/2023,CES2300160,Xpress IER 2022 Fees,09/02/2023,978.9,4894.49,5873.39,Electoral Registration,Management Charge,60411
http://statistics.data.gov.uk/id/local-authority/12UE,Huntingdonshire District Council,200197,CIVICA UK LTD CIVICA UK LTD,76069,15/02/2023,M/MG111994,Modern.GOV Annual Licence Support/Maint,09/03/2023,1822.13,9110.65,10932.78,Cambridge City Business Case ,Ict Software,64071
http://statistics.data.gov.uk/id/local-authority/12UE,Huntingdonshire District Council,200197,CIVICA UK LTD CIVICA UK LTD,76422,15/02/2023,M/RB111690,IT Software - 2023/24,09/03/2023,14485.65,72428.23,86913.88,SCDC Business Case ,Ict Software,64071
http://statistics.data.gov.uk/id/local-authority/12UE,Huntingdonshire District Council,200197,CIVICA UK LTD CIVICA UK LTD,76393,15/02/2023,M/RB111691,IT Software,09/03/2023,5166.83,25834.14,31000.97,SCDC Business Case ,Ict Software,64071
http://statistics.data.gov.uk/id/local-authority/12UE,Huntingdonshire District Council,200197,CIVICA UK LTD CIVICA UK LTD,76527,15/02/2023,M/MG111989,IT Software - Modern.gov Annual Licenses,09/03/2023,1822.13,9110.65,10932.78,SCDC Business Case ,Ict Software,64071
http://statistics.data.gov.uk/id/local-authority/12UE,Huntingdonshire District Council,200197,CIVICA UK LTD CIVICA UK LTD,76527,15/02/2023,M/MG111989,IT Software - Modern.gov Annual Licenses,09/03/2023,376.99,1884.96,2261.95,SCDC Business Case ,Ict Software,64071
http://statistics.data.gov.uk/id/local-authority/12UE,Huntingdonshire District Council,200197,CIVICA UK LTD CIVICA UK LTD,76383,15/02/2023,M/RB111668,IT Software,09/03/2023,1222.15,6110.74,7332.89,SCDC Business Case ,Ict Software,64071
http://statistics.data.gov.uk/id/local-authority/12UE,Huntingdonshire District Council,200197,CIVICA UK LTD CIVICA UK LTD,73613,15/12/2022,M/RB109132,NDR Modelling Tool,06/01/2023,242.54,1212.7,1455.24,SCDC Business Case ,Ict Software,64071
http://statistics.data.gov.uk/id/local-authority/12UE,Huntingdonshire District Council,200197,CIVICA UK LTD CIVICA UK LTD,76383,15/02/2023,M/RB111668,IT Software,09/03/2023,-0.01,0,-0.01,Finance,Over/Under VAT Rounding,68350
http://statistics.data.gov.uk/id/local-authority/12UE,Huntingdonshire District Council,203064,CLH Consultancy,76948,27/01/2023,CLH0428,Consultancy Fees 31.08.22,09/03/2023,0,1082.85,1082.85,Domestic Waste Collection,Consultancy Fees,62400
http://statistics.data.gov.uk/id/local-authority/12UE,Huntingdonshire District Council,203064,CLH Consultancy,73738,13/12/2022,CLH0422,Consultancy Fess,06/01/2023,0,557.85,557.85,Domestic Waste Collection,Consultancy Fees,62400
http://statistics.data.gov.uk/id/local-authority/12UE,Huntingdonshire District Council,201371,Climb Global Solutions Ltd,73941,28/12/2022,CD202319803,IT Software - Sharegate,20/01/2023,1022.17,5110.83,6133,3CICT NON STAFF HOLDING ACCOUNT,Ict Software,64071
http://statistics.data.gov.uk/id/local-authority/12UE,Huntingdonshire District Council,201012,COACH & HORSES,77387,12/03/2023,583,TA - 06-12.03.23,17/03/2023,200,1000,1200,Homelessness,B&B Accommodation,64401
http://statistics.data.gov.uk/id/local-authority/12UE,Huntingdonshire District Council,201012,COACH & HORSES,75081,22/01/2023,576,TA - 16-22.01.23,26/01/2023,10,50,60,Homelessness,B&B Accommodation,64401
http://statistics.data.gov.uk/id/local-authority/12UE,Huntingdonshire District Council,201012,COACH & HORSES,75081,22/01/2023,576,TA - 16-22.01.23,26/01/2023,10,50,60,Homelessness,B&B Accommodation,64401
http://statistics.data.gov.uk/id/local-authority/12UE,Huntingdonshire District Council,201012,COACH & HORSES,75081,22/01/2023,576,TA - 16-22.01.23,26/01/2023,0,0,0,Homelessness,B&B Accommodation,64401
http://statistics.data.gov.uk/id/local-authority/12UE,Huntingdonshire District Council,201012,COACH & HORSES,77720,12/03/2023,584,TA - 13-19.03.23,24/03/2023,50,250,300,Homelessness,B&B Accommodation,64401
http://statistics.data.gov.uk/id/local-authority/12UE,Huntingdonshire District Council,201012,COACH & HORSES,74766,15/01/2023,575,TA - 09-15.01.23,20/01/2023,0,0,0,Homelessness,B&B Accommodation,64401
http://statistics.data.gov.uk/id/local-authority/12UE,Huntingdonshire District Council,201012,COACH & HORSES,77100,29/01/2023,577,TA 23-29.01.23,17/03/2023,20,100,120,Homelessness,B&B Accommodation,64401
http://statistics.data.gov.uk/id/local-authority/12UE,Huntingdonshire District Council,201012,COACH & HORSES,77387,12/03/2023,583,TA - 06-12.03.23,17/03/2023,70,350,420,Homelessness,B&B Accommodation,64401
http://statistics.data.gov.uk/id/local-authority/12UE,Huntingdonshire District Council,201012,COACH & HORSES,75081,22/01/2023,576,TA - 16-22.01.23,26/01/2023,70,350,420,Homelessness,B&B Accommodation,64401
http://statistics.data.gov.uk/id/local-authority/12UE,Huntingdonshire District Council,201012,COACH & HORSES,77720,12/03/2023,584,TA - 13-19.03.23,24/03/2023,70,350,420,Homelessness,B&B Accommodation,64401
http://statistics.data.gov.uk/id/local-authority/12UE,Huntingdonshire District Council,201012,COACH & HORSES,76692,05/03/2023,582,TA - 27.02-05.03.23,09/03/2023,70,350,420,Homelessness,B&B Accommodation,64401
http://statistics.data.gov.uk/id/local-authority/12UE,Huntingdonshire District Council,201012,COACH & HORSES,74766,15/01/2023,575,TA - 09-15.01.23,20/01/2023,70,350,420,Homelessness,B&B Accommodation,64401
http://statistics.data.gov.uk/id/local-authority/12UE,Huntingdonshire District Council,201012,COACH & HORSES,76518,27/02/2023,581,TA - 20-26.02.23,03/03/2023,70,350,420,Homelessness,B&B Accommodation,64401
http://statistics.data.gov.uk/id/local-authority/12UE,Huntingdonshire District Council,201012,COACH & HORSES,77387,12/03/2023,583,TA - 06-12.03.23,17/03/2023,70,350,420,Homelessness,B&B Accommodation,64401
http://statistics.data.gov.uk/id/local-authority/12UE,Huntingdonshire District Council,201012,COACH & HORSES,75990,12/02/2023,579,TA - 06-12.02.23,20/02/2023,70,350,420,Homelessness,B&B Accommodation,64401
http://statistics.data.gov.uk/id/local-authority/12UE,Huntingdonshire District Council,201012,COACH & HORSES,77720,12/03/2023,584,TA - 13-19.03.23,24/03/2023,70,350,420,Homelessness,B&B Accommodation,64401
http://statistics.data.gov.uk/id/local-authority/12UE,Huntingdonshire District Council,201012,COACH & HORSES,76692,05/03/2023,582,TA - 27.02-05.03.23,09/03/2023,70,350,420,Homelessness,B&B Accommodation,64401
http://statistics.data.gov.uk/id/local-authority/12UE,Huntingdonshire District Council,201012,COACH & HORSES,76518,27/02/2023,581,TA - 20-26.02.23,03/03/2023,70,350,420,Homelessness,B&B Accommodation,64401
http://statistics.data.gov.uk/id/local-authority/12UE,Huntingdonshire District Council,201012,COACH & HORSES,76125,19/02/2023,580,TA - 13-19.02.23,23/02/2023,70,350,420,Homelessness,B&B Accommodation,64401
http://statistics.data.gov.uk/id/local-authority/12UE,Huntingdonshire District Council,201012,COACH & HORSES,75542,05/02/2023,578,TA - 30.01-05.02.23,09/02/2023,10,50,60,Homelessness,B&B Accommodation,64401
http://statistics.data.gov.uk/id/local-authority/12UE,Huntingdonshire District Council,201012,COACH & HORSES,77387,12/03/2023,583,TA - 06-12.03.23,17/03/2023,70,350,420,Homelessness,B&B Accommodation,64401
http://statistics.data.gov.uk/id/local-authority/12UE,Huntingdonshire District Council,201012,COACH & HORSES,75081,22/01/2023,576,TA - 16-22.01.23,26/01/2023,70,350,420,Homelessness,B&B Accommodation,64401
http://statistics.data.gov.uk/id/local-authority/12UE,Huntingdonshire District Council,201012,COACH & HORSES,75990,12/02/2023,579,TA - 06-12.02.23,20/02/2023,70,350,420,Homelessness,B&B Accommodation,64401
http://statistics.data.gov.uk/id/local-authority/12UE,Huntingdonshire District Council,201012,COACH & HORSES,77720,12/03/2023,584,TA - 13-19.03.23,24/03/2023,70,350,420,Homelessness,B&B Accommodation,64401
http://statistics.data.gov.uk/id/local-authority/12UE,Huntingdonshire District Council,201012,COACH & HORSES,76692,05/03/2023,582,TA - 27.02-05.03.23,09/03/2023,70,350,420,Homelessness,B&B Accommodation,64401
http://statistics.data.gov.uk/id/local-authority/12UE,Huntingdonshire District Council,201012,COACH & HORSES,74766,15/01/2023,575,TA - 09-15.01.23,20/01/2023,30,150,180,Homelessness,B&B Accommodation,64401
http://statistics.data.gov.uk/id/local-authority/12UE,Huntingdonshire District Council,201012,COACH & HORSES,77100,29/01/2023,577,TA 23-29.01.23,17/03/2023,70,350,420,Homelessness,B&B Accommodation,64401
http://statistics.data.gov.uk/id/local-authority/12UE,Huntingdonshire District Council,201012,COACH & HORSES,76518,27/02/2023,581,TA - 20-26.02.23,03/03/2023,70,350,420,Homelessness,B&B Accommodation,64401
http://statistics.data.gov.uk/id/local-authority/12UE,Huntingdonshire District Council,201012,COACH & HORSES,76125,19/02/2023,580,TA - 13-19.02.23,23/02/2023,70,350,420,Homelessness,B&B Accommodation,64401
http://statistics.data.gov.uk/id/local-authority/12UE,Huntingdonshire District Council,201012,COACH & HORSES,75542,05/02/2023,578,TA - 30.01-05.02.23,09/02/2023,70,350,420,Homelessness,B&B Accommodation,64401
http://statistics.data.gov.uk/id/local-authority/12UE,Huntingdonshire District Council,201012,COACH & HORSES,77387,12/03/2023,583,TA - 06-12.03.23,17/03/2023,70,350,420,Homelessness,B&B Accommodation,64401
http://statistics.data.gov.uk/id/local-authority/12UE,Huntingdonshire District Council,201012,COACH & HORSES,75081,22/01/2023,576,TA - 16-22.01.23,26/01/2023,40,200,240,Homelessness,B&B Accommodation,64401
http://statistics.data.gov.uk/id/local-authority/12UE,Huntingdonshire District Council,201012,COACH & HORSES,75990,12/02/2023,579,TA - 06-12.02.23,20/02/2023,70,350,420,Homelessness,B&B Accommodation,64401
http://statistics.data.gov.uk/id/local-authority/12UE,Huntingdonshire District Council,201012,COACH & HORSES,77720,12/03/2023,584,TA - 13-19.03.23,24/03/2023,70,350,420,Homelessness,B&B Accommodation,64401
http://statistics.data.gov.uk/id/local-authority/12UE,Huntingdonshire District Council,201012,COACH & HORSES,76692,05/03/2023,582,TA - 27.02-05.03.23,09/03/2023,70,350,420,Homelessness,B&B Accommodation,64401
http://statistics.data.gov.uk/id/local-authority/12UE,Huntingdonshire District Council,201012,COACH & HORSES,77100,29/01/2023,577,TA 23-29.01.23,17/03/2023,70,350,420,Homelessness,B&B Accommodation,64401
http://statistics.data.gov.uk/id/local-authority/12UE,Huntingdonshire District Council,201012,COACH & HORSES,76518,27/02/2023,581,TA - 20-26.02.23,03/03/2023,70,350,420,Homelessness,B&B Accommodation,64401
http://statistics.data.gov.uk/id/local-authority/12UE,Huntingdonshire District Council,201012,COACH & HORSES,76125,19/02/2023,580,TA - 13-19.02.23,23/02/2023,70,350,420,Homelessness,B&B Accommodation,64401
http://statistics.data.gov.uk/id/local-authority/12UE,Huntingdonshire District Council,201012,COACH & HORSES,75542,05/02/2023,578,TA - 30.01-05.02.23,09/02/2023,70,350,420,Homelessness,B&B Accommodation,64401
http://statistics.data.gov.uk/id/local-authority/12UE,Huntingdonshire District Council,201012,COACH & HORSES,77387,12/03/2023,583,TA - 06-12.03.23,17/03/2023,50,250,300,Homelessness,B&B Accommodation,64401
http://statistics.data.gov.uk/id/local-authority/12UE,Huntingdonshire District Council,201012,COACH & HORSES,77720,12/03/2023,584,TA - 13-19.03.23,24/03/2023,70,350,420,Homelessness,B&B Accommodation,64401
http://statistics.data.gov.uk/id/local-authority/12UE,Huntingdonshire District Council,201012,COACH & HORSES,77387,12/03/2023,583,TA - 06-12.03.23,17/03/2023,70,350,420,Homelessness,B&B Accommodation,64401
http://statistics.data.gov.uk/id/local-authority/12UE,Huntingdonshire District Council,201012,COACH & HORSES,77720,12/03/2023,584,TA - 13-19.03.23,24/03/2023,70,350,420,Homelessness,B&B Accommodation,64401
http://statistics.data.gov.uk/id/local-authority/12UE,Huntingdonshire District Council,201012,COACH & HORSES,76692,05/03/2023,582,TA - 27.02-05.03.23,09/03/2023,70,350,420,Homelessness,B&B Accommodation,64401
http://statistics.data.gov.uk/id/local-authority/12UE,Huntingdonshire District Council,201012,COACH & HORSES,76518,27/02/2023,581,TA - 20-26.02.23,03/03/2023,30,150,180,Homelessness,B&B Accommodation,64401
http://statistics.data.gov.uk/id/local-authority/12UE,Huntingdonshire District Council,201012,COACH & HORSES,74766,15/01/2023,575,TA - 09-15.01.23,20/01/2023,70,350,420,Homelessness,B&B Accommodation,64401
http://statistics.data.gov.uk/id/local-authority/12UE,Huntingdonshire District Council,201012,COACH & HORSES,74471,08/01/2023,574,TA - 02-08.01.23,16/01/2023,70,350,420,Homelessness,B&B Accommodation,64401
http://statistics.data.gov.uk/id/local-authority/12UE,Huntingdonshire District Council,201012,COACH & HORSES,74102,25/12/2022,572,TA - 19-25.12.22,06/01/2023,70,350,420,Homelessness,B&B Accommodation,64401
http://statistics.data.gov.uk/id/local-authority/12UE,Huntingdonshire District Council,201012,COACH & HORSES,74126,01/01/2023,573,TA - 26.12-01.01.23,06/01/2023,70,350,420,Homelessness,B&B Accommodation,64401
http://statistics.data.gov.uk/id/local-authority/12UE,Huntingdonshire District Council,201012,COACH & HORSES,75264,04/12/2022,569,TA - 28.11-04.12.22,02/02/2023,20,100,120,Homelessness,B&B Accommodation,64401
http://statistics.data.gov.uk/id/local-authority/12UE,Huntingdonshire District Council,201012,COACH & HORSES,75081,22/01/2023,576,TA - 16-22.01.23,26/01/2023,60,300,360,Homelessness,B&B Accommodation,64401
http://statistics.data.gov.uk/id/local-authority/12UE,Huntingdonshire District Council,201012,COACH & HORSES,75264,04/12/2022,569,TA - 28.11-04.12.22,02/02/2023,60,300,360,Homelessness,B&B Accommodation,64401
http://statistics.data.gov.uk/id/local-authority/12UE,Huntingdonshire District Council,201012,COACH & HORSES,75081,22/01/2023,576,TA - 16-22.01.23,26/01/2023,40,200,240,Homelessness,B&B Accommodation,64401
http://statistics.data.gov.uk/id/local-authority/12UE,Huntingdonshire District Council,201012,COACH & HORSES,75081,22/01/2023,576,TA - 16-22.01.23,26/01/2023,20,100,120,Homelessness,B&B Accommodation,64401
http://statistics.data.gov.uk/id/local-authority/12UE,Huntingdonshire District Council,201012,COACH & HORSES,75081,22/01/2023,576,TA - 16-22.01.23,26/01/2023,70,350,420,Homelessness,B&B Accommodation,64401
http://statistics.data.gov.uk/id/local-authority/12UE,Huntingdonshire District Council,201012,COACH & HORSES,74766,15/01/2023,575,TA - 09-15.01.23,20/01/2023,70,350,420,Homelessness,B&B Accommodation,64401
http://statistics.data.gov.uk/id/local-authority/12UE,Huntingdonshire District Council,201012,COACH & HORSES,77100,29/01/2023,577,TA 23-29.01.23,17/03/2023,20,100,120,Homelessness,B&B Accommodation,64401
http://statistics.data.gov.uk/id/local-authority/12UE,Huntingdonshire District Council,201012,COACH & HORSES,74471,08/01/2023,574,TA - 02-08.01.23,16/01/2023,70,350,420,Homelessness,B&B Accommodation,64401
http://statistics.data.gov.uk/id/local-authority/12UE,Huntingdonshire District Council,201012,COACH & HORSES,74102,25/12/2022,572,TA - 19-25.12.22,06/01/2023,70,350,420,Homelessness,B&B Accommodation,64401
http://statistics.data.gov.uk/id/local-authority/12UE,Huntingdonshire District Council,201012,COACH & HORSES,74126,01/01/2023,573,TA - 26.12-01.01.23,06/01/2023,70,350,420,Homelessness,B&B Accommodation,64401
http://statistics.data.gov.uk/id/local-authority/12UE,Huntingdonshire District Council,201012,COACH & HORSES,75264,04/12/2022,569,TA - 28.11-04.12.22,02/02/2023,70,350,420,Homelessness,B&B Accommodation,64401
http://statistics.data.gov.uk/id/local-authority/12UE,Huntingdonshire District Council,201012,COACH & HORSES,75264,04/12/2022,569,TA - 28.11-04.12.22,02/02/2023,70,350,420,Homelessness,B&B Accommodation,64401
http://statistics.data.gov.uk/id/local-authority/12UE,Huntingdonshire District Council,201012,COACH & HORSES,75264,04/12/2022,569,TA - 28.11-04.12.22,02/02/2023,70,350,420,Homelessness,B&B Accommodation,64401
http://statistics.data.gov.uk/id/local-authority/12UE,Huntingdonshire District Council,201012,COACH & HORSES,75081,22/01/2023,576,TA - 16-22.01.23,26/01/2023,70,350,420,Homelessness,B&B Accommodation,64401
http://statistics.data.gov.uk/id/local-authority/12UE,Huntingdonshire District Council,201012,COACH & HORSES,75990,12/02/2023,579,TA - 06-12.02.23,20/02/2023,70,350,420,Homelessness,B&B Accommodation,64401
http://statistics.data.gov.uk/id/local-authority/12UE,Huntingdonshire District Council,201012,COACH & HORSES,76692,05/03/2023,582,TA - 27.02-05.03.23,09/03/2023,40,200,240,Homelessness,B&B Accommodation,64401
http://statistics.data.gov.uk/id/local-authority/12UE,Huntingdonshire District Council,201012,COACH & HORSES,74766,15/01/2023,575,TA - 09-15.01.23,20/01/2023,70,350,420,Homelessness,B&B Accommodation,64401
http://statistics.data.gov.uk/id/local-authority/12UE,Huntingdonshire District Council,201012,COACH & HORSES,77100,29/01/2023,577,TA 23-29.01.23,17/03/2023,70,350,420,Homelessness,B&B Accommodation,64401
http://statistics.data.gov.uk/id/local-authority/12UE,Huntingdonshire District Council,201012,COACH & HORSES,76518,27/02/2023,581,TA - 20-26.02.23,03/03/2023,70,350,420,Homelessness,B&B Accommodation,64401
http://statistics.data.gov.uk/id/local-authority/12UE,Huntingdonshire District Council,201012,COACH & HORSES,76125,19/02/2023,580,TA - 13-19.02.23,23/02/2023,70,350,420,Homelessness,B&B Accommodation,64401
http://statistics.data.gov.uk/id/local-authority/12UE,Huntingdonshire District Council,201012,COACH & HORSES,75542,05/02/2023,578,TA - 30.01-05.02.23,09/02/2023,70,350,420,Homelessness,B&B Accommodation,64401
http://statistics.data.gov.uk/id/local-authority/12UE,Huntingdonshire District Council,201012,COACH & HORSES,74471,08/01/2023,574,TA - 02-08.01.23,16/01/2023,70,350,420,Homelessness,B&B Accommodation,64401
http://statistics.data.gov.uk/id/local-authority/12UE,Huntingdonshire District Council,201012,COACH & HORSES,74102,25/12/2022,572,TA - 19-25.12.22,06/01/2023,70,350,420,Homelessness,B&B Accommodation,64401
http://statistics.data.gov.uk/id/local-authority/12UE,Huntingdonshire District Council,201012,COACH & HORSES,74126,01/01/2023,573,TA - 26.12-01.01.23,06/01/2023,70,350,420,Homelessness,B&B Accommodation,64401
http://statistics.data.gov.uk/id/local-authority/12UE,Huntingdonshire District Council,201012,COACH & HORSES,77387,12/03/2023,583,TA - 06-12.03.23,17/03/2023,70,350,420,Homelessness,B&B Accommodation,64401
http://statistics.data.gov.uk/id/local-authority/12UE,Huntingdonshire District Council,201012,COACH & HORSES,75081,22/01/2023,576,TA - 16-22.01.23,26/01/2023,70,350,420,Homelessness,B&B Accommodation,64401
http://statistics.data.gov.uk/id/local-authority/12UE,Huntingdonshire District Council,201012,COACH & HORSES,75990,12/02/2023,579,TA - 06-12.02.23,20/02/2023,70,350,420,Homelessness,B&B Accommodation,64401
http://statistics.data.gov.uk/id/local-authority/12UE,Huntingdonshire District Council,201012,COACH & HORSES,77720,12/03/2023,584,TA - 13-19.03.23,24/03/2023,70,350,420,Homelessness,B&B Accommodation,64401
http://statistics.data.gov.uk/id/local-authority/12UE,Huntingdonshire District Council,201012,COACH & HORSES,76692,05/03/2023,582,TA - 27.02-05.03.23,09/03/2023,70,350,420,Homelessness,B&B Accommodation,64401
http://statistics.data.gov.uk/id/local-authority/12UE,Huntingdonshire District Council,201012,COACH & HORSES,74766,15/01/2023,575,TA - 09-15.01.23,20/01/2023,70,350,420,Homelessness,B&B Accommodation,64401
http://statistics.data.gov.uk/id/local-authority/12UE,Huntingdonshire District Council,201012,COACH & HORSES,77100,29/01/2023,577,TA 23-29.01.23,17/03/2023,70,350,420,Homelessness,B&B Accommodation,64401
http://statistics.data.gov.uk/id/local-authority/12UE,Huntingdonshire District Council,201012,COACH & HORSES,76518,27/02/2023,581,TA - 20-26.02.23,03/03/2023,70,350,420,Homelessness,B&B Accommodation,64401
http://statistics.data.gov.uk/id/local-authority/12UE,Huntingdonshire District Council,201012,COACH & HORSES,76125,19/02/2023,580,TA - 13-19.02.23,23/02/2023,70,350,420,Homelessness,B&B Accommodation,64401
http://statistics.data.gov.uk/id/local-authority/12UE,Huntingdonshire District Council,201012,COACH & HORSES,75542,05/02/2023,578,TA - 30.01-05.02.23,09/02/2023,70,350,420,Homelessness,B&B Accommodation,64401
http://statistics.data.gov.uk/id/local-authority/12UE,Huntingdonshire District Council,201012,COACH & HORSES,74471,08/01/2023,574,TA - 02-08.01.23,16/01/2023,70,350,420,Homelessness,B&B Accommodation,64401
http://statistics.data.gov.uk/id/local-authority/12UE,Huntingdonshire District Council,201012,COACH & HORSES,74102,25/12/2022,572,TA - 19-25.12.22,06/01/2023,70,350,420,Homelessness,B&B Accommodation,64401
http://statistics.data.gov.uk/id/local-authority/12UE,Huntingdonshire District Council,201012,COACH & HORSES,74126,01/01/2023,573,TA - 26.12-01.01.23,06/01/2023,70,350,420,Homelessness,B&B Accommodation,64401
http://statistics.data.gov.uk/id/local-authority/12UE,Huntingdonshire District Council,201012,COACH & HORSES,75081,22/01/2023,576,TA - 16-22.01.23,26/01/2023,70,350,420,Homelessness,B&B Accommodation,64401
http://statistics.data.gov.uk/id/local-authority/12UE,Huntingdonshire District Council,201012,COACH & HORSES,74766,15/01/2023,575,TA - 09-15.01.23,20/01/2023,70,350,420,Homelessness,B&B Accommodation,64401
http://statistics.data.gov.uk/id/local-authority/12UE,Huntingdonshire District Council,201012,COACH & HORSES,77100,29/01/2023,577,TA 23-29.01.23,17/03/2023,30,150,180,Homelessness,B&B Accommodation,64401
http://statistics.data.gov.uk/id/local-authority/12UE,Huntingdonshire District Council,201012,COACH & HORSES,74471,08/01/2023,574,TA - 02-08.01.23,16/01/2023,70,350,420,Homelessness,B&B Accommodation,64401
http://statistics.data.gov.uk/id/local-authority/12UE,Huntingdonshire District Council,201012,COACH & HORSES,74102,25/12/2022,572,TA - 19-25.12.22,06/01/2023,70,350,420,Homelessness,B&B Accommodation,64401
http://statistics.data.gov.uk/id/local-authority/12UE,Huntingdonshire District Council,201012,COACH & HORSES,74126,01/01/2023,573,TA - 26.12-01.01.23,06/01/2023,70,350,420,Homelessness,B&B Accommodation,64401
http://statistics.data.gov.uk/id/local-authority/12UE,Huntingdonshire District Council,201012,COACH & HORSES,74102,25/12/2022,572,TA - 19-25.12.22,06/01/2023,30,150,180,Homelessness,B&B Accommodation,64401
http://statistics.data.gov.uk/id/local-authority/12UE,Huntingdonshire District Council,201012,COACH & HORSES,75081,22/01/2023,576,TA - 16-22.01.23,26/01/2023,10,50,60,Homelessness,B&B Accommodation,64401
http://statistics.data.gov.uk/id/local-authority/12UE,Huntingdonshire District Council,201012,COACH & HORSES,74766,15/01/2023,575,TA - 09-15.01.23,20/01/2023,70,350,420,Homelessness,B&B Accommodation,64401
http://statistics.data.gov.uk/id/local-authority/12UE,Huntingdonshire District Council,201012,COACH & HORSES,74471,08/01/2023,574,TA - 02-08.01.23,16/01/2023,70,350,420,Homelessness,B&B Accommodation,64401
http://statistics.data.gov.uk/id/local-authority/12UE,Huntingdonshire District Council,201012,COACH & HORSES,74102,25/12/2022,572,TA - 19-25.12.22,06/01/2023,70,350,420,Homelessness,B&B Accommodation,64401
http://statistics.data.gov.uk/id/local-authority/12UE,Huntingdonshire District Council,201012,COACH & HORSES,74126,01/01/2023,573,TA - 26.12-01.01.23,06/01/2023,70,350,420,Homelessness,B&B Accommodation,64401
http://statistics.data.gov.uk/id/local-authority/12UE,Huntingdonshire District Council,201012,COACH & HORSES,75081,22/01/2023,576,TA - 16-22.01.23,26/01/2023,20,100,120,Homelessness,B&B Accommodation,64401
http://statistics.data.gov.uk/id/local-authority/12UE,Huntingdonshire District Council,201012,COACH & HORSES,74766,15/01/2023,575,TA - 09-15.01.23,20/01/2023,70,350,420,Homelessness,B&B Accommodation,64401
http://statistics.data.gov.uk/id/local-authority/12UE,Huntingdonshire District Council,201012,COACH & HORSES,74471,08/01/2023,574,TA - 02-08.01.23,16/01/2023,70,350,420,Homelessness,B&B Accommodation,64401
http://statistics.data.gov.uk/id/local-authority/12UE,Huntingdonshire District Council,201012,COACH & HORSES,74102,25/12/2022,572,TA - 19-25.12.22,06/01/2023,70,350,420,Homelessness,B&B Accommodation,64401
http://statistics.data.gov.uk/id/local-authority/12UE,Huntingdonshire District Council,201012,COACH & HORSES,74126,01/01/2023,573,TA - 26.12-01.01.23,06/01/2023,70,350,420,Homelessness,B&B Accommodation,64401
http://statistics.data.gov.uk/id/local-authority/12UE,Huntingdonshire District Council,201012,COACH & HORSES,75990,12/02/2023,579,TA - 06-12.02.23,20/02/2023,70,350,420,Homelessness,B&B Accommodation,64401
http://statistics.data.gov.uk/id/local-authority/12UE,Huntingdonshire District Council,201012,COACH & HORSES,77100,29/01/2023,577,TA 23-29.01.23,17/03/2023,70,350,420,Homelessness,B&B Accommodation,64401
http://statistics.data.gov.uk/id/local-authority/12UE,Huntingdonshire District Council,201012,COACH & HORSES,76125,19/02/2023,580,TA - 13-19.02.23,23/02/2023,70,350,420,Homelessness,B&B Accommodation,64401
http://statistics.data.gov.uk/id/local-authority/12UE,Huntingdonshire District Council,201012,COACH & HORSES,75542,05/02/2023,578,TA - 30.01-05.02.23,09/02/2023,70,350,420,Homelessness,B&B Accommodation,64401
http://statistics.data.gov.uk/id/local-authority/12UE,Huntingdonshire District Council,201012,COACH & HORSES,74471,08/01/2023,574,TA - 02-08.01.23,16/01/2023,70,350,420,Homelessness,B&B Accommodation,64401
http://statistics.data.gov.uk/id/local-authority/12UE,Huntingdonshire District Council,201012,COACH & HORSES,74126,01/01/2023,573,TA - 26.12-01.01.23,06/01/2023,30,150,180,Homelessness,B&B Accommodation,64401
http://statistics.data.gov.uk/id/local-authority/12UE,Huntingdonshire District Council,201012,COACH & HORSES,77387,12/03/2023,583,TA - 06-12.03.23,17/03/2023,70,350,420,Homelessness,B&B Accommodation,64401
http://statistics.data.gov.uk/id/local-authority/12UE,Huntingdonshire District Council,201012,COACH & HORSES,75081,22/01/2023,576,TA - 16-22.01.23,26/01/2023,70,350,420,Homelessness,B&B Accommodation,64401
http://statistics.data.gov.uk/id/local-authority/12UE,Huntingdonshire District Council,201012,COACH & HORSES,75990,12/02/2023,579,TA - 06-12.02.23,20/02/2023,70,350,420,Homelessness,B&B Accommodation,64401
http://statistics.data.gov.uk/id/local-authority/12UE,Huntingdonshire District Council,201012,COACH & HORSES,77720,12/03/2023,584,TA - 13-19.03.23,24/03/2023,70,350,420,Homelessness,B&B Accommodation,64401
http://statistics.data.gov.uk/id/local-authority/12UE,Huntingdonshire District Council,201012,COACH & HORSES,76692,05/03/2023,582,TA - 27.02-05.03.23,09/03/2023,70,350,420,Homelessness,B&B Accommodation,64401
http://statistics.data.gov.uk/id/local-authority/12UE,Huntingdonshire District Council,201012,COACH & HORSES,74766,15/01/2023,575,TA - 09-15.01.23,20/01/2023,20,100,120,Homelessness,B&B Accommodation,64401
http://statistics.data.gov.uk/id/local-authority/12UE,Huntingdonshire District Council,201012,COACH & HORSES,77100,29/01/2023,577,TA 23-29.01.23,17/03/2023,70,350,420,Homelessness,B&B Accommodation,64401
http://statistics.data.gov.uk/id/local-authority/12UE,Huntingdonshire District Council,201012,COACH & HORSES,76518,27/02/2023,581,TA - 20-26.02.23,03/03/2023,70,350,420,Homelessness,B&B Accommodation,64401
http://statistics.data.gov.uk/id/local-authority/12UE,Huntingdonshire District Council,201012,COACH & HORSES,76125,19/02/2023,580,TA - 13-19.02.23,23/02/2023,70,350,420,Homelessness,B&B Accommodation,64401
http://statistics.data.gov.uk/id/local-authority/12UE,Huntingdonshire District Council,201012,COACH & HORSES,75542,05/02/2023,578,TA - 30.01-05.02.23,09/02/2023,70,350,420,Homelessness,B&B Accommodation,64401
http://statistics.data.gov.uk/id/local-authority/12UE,Huntingdonshire District Council,201012,COACH & HORSES,75990,12/02/2023,579,TA - 06-12.02.23,20/02/2023,70,350,420,Homelessness,B&B Accommodation,64401
http://statistics.data.gov.uk/id/local-authority/12UE,Huntingdonshire District Council,201012,COACH & HORSES,76692,05/03/2023,582,TA - 27.02-05.03.23,09/03/2023,30,150,180,Homelessness,B&B Accommodation,64401
http://statistics.data.gov.uk/id/local-authority/12UE,Huntingdonshire District Council,201012,COACH & HORSES,77100,29/01/2023,577,TA 23-29.01.23,17/03/2023,70,350,420,Homelessness,B&B Accommodation,64401
http://statistics.data.gov.uk/id/local-authority/12UE,Huntingdonshire District Council,201012,COACH & HORSES,76518,27/02/2023,581,TA - 20-26.02.23,03/03/2023,70,350,420,Homelessness,B&B Accommodation,64401
http://statistics.data.gov.uk/id/local-authority/12UE,Huntingdonshire District Council,201012,COACH & HORSES,76125,19/02/2023,580,TA - 13-19.02.23,23/02/2023,70,350,420,Homelessness,B&B Accommodation,64401
http://statistics.data.gov.uk/id/local-authority/12UE,Huntingdonshire District Council,201012,COACH & HORSES,75542,05/02/2023,578,TA - 30.01-05.02.23,09/02/2023,70,350,420,Homelessness,B&B Accommodation,64401
http://statistics.data.gov.uk/id/local-authority/12UE,Huntingdonshire District Council,201012,COACH & HORSES,75990,12/02/2023,579,TA - 06-12.02.23,20/02/2023,20,100,120,Homelessness,B&B Accommodation,64401
http://statistics.data.gov.uk/id/local-authority/12UE,Huntingdonshire District Council,201012,COACH & HORSES,77100,29/01/2023,577,TA 23-29.01.23,17/03/2023,40,200,240,Homelessness,B&B Accommodation,64401
http://statistics.data.gov.uk/id/local-authority/12UE,Huntingdonshire District Council,201012,COACH & HORSES,75542,05/02/2023,578,TA - 30.01-05.02.23,09/02/2023,70,350,420,Homelessness,B&B Accommodation,64401
http://statistics.data.gov.uk/id/local-authority/12UE,Huntingdonshire District Council,201012,COACH & HORSES,77387,12/03/2023,583,TA - 06-12.03.23,17/03/2023,30,150,180,Homelessness,B&B Accommodation,64401
http://statistics.data.gov.uk/id/local-authority/12UE,Huntingdonshire District Council,201012,COACH & HORSES,75990,12/02/2023,579,TA - 06-12.02.23,20/02/2023,70,350,420,Homelessness,B&B Accommodation,64401
http://statistics.data.gov.uk/id/local-authority/12UE,Huntingdonshire District Council,201012,COACH & HORSES,76692,05/03/2023,582,TA - 27.02-05.03.23,09/03/2023,70,350,420,Homelessness,B&B Accommodation,64401
http://statistics.data.gov.uk/id/local-authority/12UE,Huntingdonshire District Council,201012,COACH & HORSES,76125,19/02/2023,580,TA - 13-19.02.23,23/02/2023,20,100,120,Homelessness,B&B Accommodation,64401
http://statistics.data.gov.uk/id/local-authority/12UE,Huntingdonshire District Council,201012,COACH & HORSES,75990,12/02/2023,579,TA - 06-12.02.23,20/02/2023,10,50,60,Homelessness,B&B Accommodation,64401
http://statistics.data.gov.uk/id/local-authority/12UE,Huntingdonshire District Council,201012,COACH & HORSES,75990,12/02/2023,579,TA - 06-12.02.23,20/02/2023,20,100,120,Homelessness,B&B Accommodation,64401
http://statistics.data.gov.uk/id/local-authority/12UE,Huntingdonshire District Council,201012,COACH & HORSES,77720,12/03/2023,584,TA - 13-19.03.23,24/03/2023,40,200,240,Homelessness,B&B Accommodation,64401
http://statistics.data.gov.uk/id/local-authority/12UE,Huntingdonshire District Council,201012,COACH & HORSES,77720,12/03/2023,584,TA - 13-19.03.23,24/03/2023,10,50,60,Homelessness,B&B Accommodation,64401
http://statistics.data.gov.uk/id/local-authority/12UE,Huntingdonshire District Council,202749,COMPLETE POOL CONTROLS LTD,74985,24/01/2023,INV083201,OLH Pool Chemicals,09/02/2023,180.84,904.2,1085.04,OLH - Swimming,Chemicals,64000
http://statistics.data.gov.uk/id/local-authority/12UE,Huntingdonshire District Council,202749,COMPLETE POOL CONTROLS LTD,76023,14/02/2023,INV083858,OLH Pool Chemicals,09/03/2023,156.1,780.49,936.59,OLH - Swimming,Chemicals,64000
http://statistics.data.gov.uk/id/local-authority/12UE,Huntingdonshire District Council,202749,COMPLETE POOL CONTROLS LTD,77316,07/03/2023,INV084526,OLH Pool Chemicals,31/03/2023,109.84,549.18,659.02,OLH - Swimming,Chemicals,64000
http://statistics.data.gov.uk/id/local-authority/12UE,Huntingdonshire District Council,202749,COMPLETE POOL CONTROLS LTD,74535,09/01/2023,INV082794,OLSI Pool Chemicals,02/02/2023,144.95,724.76,869.71,OLSI - Swimming,Chemicals,64000
http://statistics.data.gov.uk/id/local-authority/12UE,Huntingdonshire District Council,202749,COMPLETE POOL CONTROLS LTD,76019,13/02/2023,INV083812,OLSN Pool Chemicals,09/03/2023,182.15,910.76,1092.91,OLSN - Swimming,Chemicals,64000
http://statistics.data.gov.uk/id/local-authority/12UE,Huntingdonshire District Council,202749,COMPLETE POOL CONTROLS LTD,74744,09/01/2023,INV082796,OLSN Pool Chemicals,02/02/2023,148.16,740.81,888.97,OLSN - Swimming,Chemicals,64000
http://statistics.data.gov.uk/id/local-authority/12UE,Huntingdonshire District Council,202749,COMPLETE POOL CONTROLS LTD,76019,13/02/2023,INV083812,OLSN Pool Chemicals,09/03/2023,0.01,0,0.01,Finance,Over/Under VAT Rounding,68350
http://statistics.data.gov.uk/id/local-authority/12UE,Huntingdonshire District Council,200210,COMPUTERSHARE VOUCHERS LTD COMPUTERSHARE VOUCHERS LTD,75099,25/01/2023,C-0003393109,Childcare Admin Voucher,30/01/2023,0,1103,1103,Child Care Vouchers - Payroll,Childcare Admin Vouchers,60106
http://statistics.data.gov.uk/id/local-authority/12UE,Huntingdonshire District Council,200210,COMPUTERSHARE VOUCHERS LTD COMPUTERSHARE VOUCHERS LTD,76160,22/02/2023,C-0003401255,Childcare Admin Voucher,23/02/2023,0,1103,1103,Child Care Vouchers - Payroll,Childcare Admin Vouchers,60106
http://statistics.data.gov.uk/id/local-authority/12UE,Huntingdonshire District Council,200210,COMPUTERSHARE VOUCHERS LTD COMPUTERSHARE VOUCHERS LTD,77973,23/03/2023,C-0003409348,Childcare Admin Voucher,31/03/2023,0,860,860,Child Care Vouchers - Payroll,Childcare Admin Vouchers,60106
http://statistics.data.gov.uk/id/local-authority/12UE,Huntingdonshire District Council,200210,COMPUTERSHARE VOUCHERS LTD COMPUTERSHARE VOUCHERS LTD,75099,25/01/2023,C-0003393109,Childcare Admin Voucher,30/01/2023,5.52,27.58,33.1,Payroll Services,Childcare Admin Vouchers,60106
http://statistics.data.gov.uk/id/local-authority/12UE,Huntingdonshire District Council,200210,COMPUTERSHARE VOUCHERS LTD COMPUTERSHARE VOUCHERS LTD,76160,22/02/2023,C-0003401255,Childcare Admin Voucher,23/02/2023,5.52,27.58,33.1,Payroll Services,Childcare Admin Vouchers,60106
http://statistics.data.gov.uk/id/local-authority/12UE,Huntingdonshire District Council,200210,COMPUTERSHARE VOUCHERS LTD COMPUTERSHARE VOUCHERS LTD,77973,23/03/2023,C-0003409348,Childcare Admin Voucher,31/03/2023,4.3,21.5,25.8,Payroll Services,Childcare Admin Vouchers,60106
http://statistics.data.gov.uk/id/local-authority/12UE,Huntingdonshire District Council,203112,Contego Safety Solutions Ltd,76828,24/01/2023,274083,Waterproof Gloves,09/03/2023,316.51,1582.56,1899.07,Domestic Waste Collection,"Clothes, Uniform And Laundry",62000
http://statistics.data.gov.uk/id/local-authority/12UE,Huntingdonshire District Council,203112,Contego Safety Solutions Ltd,73712,19/12/2022,271737,Trousers/Shirts/Storm Coat,12/01/2023,280.64,1403.2,1683.84,Domestic Waste Collection,"Clothes, Uniform And Laundry",62000
http://statistics.data.gov.uk/id/local-authority/12UE,Huntingdonshire District Council,203112,Contego Safety Solutions Ltd,73712,19/12/2022,271737,Trousers/Shirts/Storm Coat,12/01/2023,112.92,564.6,677.52,Domestic Waste Collection,"Clothes, Uniform And Laundry",62000
http://statistics.data.gov.uk/id/local-authority/12UE,Huntingdonshire District Council,203112,Contego Safety Solutions Ltd,73712,19/12/2022,271737,Trousers/Shirts/Storm Coat,12/01/2023,64.84,324.2,389.04,Domestic Waste Collection,"Clothes, Uniform And Laundry",62000
http://statistics.data.gov.uk/id/local-authority/12UE,Huntingdonshire District Council,203112,Contego Safety Solutions Ltd,76828,24/01/2023,274083,Waterproof Gloves,09/03/2023,316.51,1582.56,1899.07,Green Waste Collection,"Clothes, Uniform And Laundry",62000
http://statistics.data.gov.uk/id/local-authority/12UE,Huntingdonshire District Council,203112,Contego Safety Solutions Ltd,73867,22/12/2022,272071,OPS THERMALS,20/01/2023,949.54,4747.68,5697.22,Recycling Collections,"Clothes, Uniform And Laundry",62000
http://statistics.data.gov.uk/id/local-authority/12UE,Huntingdonshire District Council,203112,Contego Safety Solutions Ltd,76828,24/01/2023,274083,Waterproof Gloves,09/03/2023,316.51,1582.56,1899.07,Recycling Collections,"Clothes, Uniform And Laundry",62000
http://statistics.data.gov.uk/id/local-authority/12UE,Huntingdonshire District Council,203112,Contego Safety Solutions Ltd,73867,22/12/2022,272071,OPS THERMALS,20/01/2023,-0.01,0,-0.01,Finance,Over/Under VAT Rounding,68350
http://statistics.data.gov.uk/id/local-authority/12UE,Huntingdonshire District Council,200212,COOLER AID LTD COOLER AID LTD,76102,16/11/2022,466185,OLH Water Cooler Rental 22,23/02/2023,107.8,539,646.8,OLH - Site & Centre Management,Hire - Equipment Furniture And Materials,61700
http://statistics.data.gov.uk/id/local-authority/12UE,Huntingdonshire District Council,200215,CORNERSTONE BARRISTERS CORNERSTONE BARRISTERS,75082,20/01/2023,155390 20.01.23,Rose Homes - Case 155390,09/02/2023,450,2250,2700,Development Management,Consultancy Fees,62400
http://statistics.data.gov.uk/id/local-authority/12UE,Huntingdonshire District Council,200215,CORNERSTONE BARRISTERS CORNERSTONE BARRISTERS,75570,30/01/2023,163584 28.01.23,Counsel Advice 22/01594/OUT,23/02/2023,500,2500,3000,Strategic Sites,Consultancy Fees,62400
http://statistics.data.gov.uk/id/local-authority/12UE,Huntingdonshire District Council,201283,CRACKNELL WILDLIFE & VETERINARY SERVICES,75726,30/01/2023,JC22-27,Zoo Licence Inspection 20.01.23,23/02/2023,0,2032.19,2032.19,Animal Licensing - Inspections,Vets,62407
http://statistics.data.gov.uk/id/local-authority/12UE,Huntingdonshire District Council,200900,CRAEMER UK LTD,78017,01/03/2023,3049935,,31/03/2023,1855,9275,11130,Wheeled Bins,Recycling Bins,61201
http://statistics.data.gov.uk/id/local-authority/12UE,Huntingdonshire District Council,200900,CRAEMER UK LTD,78017,01/03/2023,3049935,,31/03/2023,1630.2,8151,9781.2,Wheeled Bins,Recycling Bins,61201
http://statistics.data.gov.uk/id/local-authority/12UE,Huntingdonshire District Council,200900,CRAEMER UK LTD,76405,22/02/2023,3049812,Refuse Containers,20/03/2023,476,2380,2856,Wheeled Bins,Recycling Bins,61201
http://statistics.data.gov.uk/id/local-authority/12UE,Huntingdonshire District Council,200900,CRAEMER UK LTD,76155,14/02/2023,3049655,Recycling Collection,09/03/2023,1645,8225,9870,Wheeled Bins,Recycling Bins,61201
http://statistics.data.gov.uk/id/local-authority/12UE,Huntingdonshire District Council,200900,CRAEMER UK LTD,75770,08/02/2023,3049537,Recycling Collection Jan23,03/03/2023,1630.2,8151,9781.2,Wheeled Bins,Recycling Bins,61201
http://statistics.data.gov.uk/id/local-authority/12UE,Huntingdonshire District Council,200900,CRAEMER UK LTD,76406,24/02/2023,3049867,Refuse Containers,24/03/2023,504,2520,3024,Wheeled Bins,Recycling Bins,61201
http://statistics.data.gov.uk/id/local-authority/12UE,Huntingdonshire District Council,200900,CRAEMER UK LTD,76405,22/02/2023,3049812,Refuse Containers,20/03/2023,802.5,4012.5,4815,Wheeled Bins,Refuse Containers/Litter Bins,61200
http://statistics.data.gov.uk/id/local-authority/12UE,Huntingdonshire District Council,200900,CRAEMER UK LTD,76405,22/02/2023,3049812,Refuse Containers,20/03/2023,802.5,4012.5,4815,Wheeled Bins,Refuse Containers/Litter Bins,61200
http://statistics.data.gov.uk/id/local-authority/12UE,Huntingdonshire District Council,200900,CRAEMER UK LTD,74872,10/01/2023,3048916,Refuse Containers,02/02/2023,160,800,960,Wheeled Bins,Refuse Containers/Litter Bins,61200
http://statistics.data.gov.uk/id/local-authority/12UE,Huntingdonshire District Council,200900,CRAEMER UK LTD,74871,13/01/2023,3048984,Refuse Containers,09/02/2023,80,400,480,Wheeled Bins,Refuse Containers/Litter Bins,61200
http://statistics.data.gov.uk/id/local-authority/12UE,Huntingdonshire District Council,201341,CROSS KEYS HOMES LTD,77553,26/01/2023,506333300,REDACTED,24/03/2023,0,515.52,515.52,Homelessness,Homeless Prevention Payments,64403
http://statistics.data.gov.uk/id/local-authority/12UE,Huntingdonshire District Council,201341,CROSS KEYS HOMES LTD,75407,02/12/2022,506301304,REDACTED,02/02/2023,0,292.52,292.52,Homelessness,Homeless Prevention Payments,64403
http://statistics.data.gov.uk/id/local-authority/12UE,Huntingdonshire District Council,201341,CROSS KEYS HOMES LTD,75785,10/02/2023,505397002,REDACTED,13/02/2023,0,1182.3,1182.3,Homelessness,Homeless Prevention Payments,64403
http://statistics.data.gov.uk/id/local-authority/12UE,Huntingdonshire District Council,201341,CROSS KEYS HOMES LTD,76199,21/02/2023,505167408,REDACTED,23/02/2023,0,3504.42,3504.42,Homelessness,Homeless Prevention Payments,64403
http://statistics.data.gov.uk/id/local-authority/12UE,Huntingdonshire District Council,201341,CROSS KEYS HOMES LTD,76881,07/03/2023,506333102,REDACTED,09/03/2023,0,520.12,520.12,Homelessness,Homeless Prevention Payments,64403
http://statistics.data.gov.uk/id/local-authority/12UE,Huntingdonshire District Council,203157,Cruse Bereavement Support (Huntingdon Branch),74914,23/01/2023,COMMUNITY CHEST GRANT 230123,Community Chest Grant 23.01.23,26/01/2023,0,1000,1000,Voluntary Sector Grants,Grants And Contributions,64600
http://statistics.data.gov.uk/id/local-authority/12UE,Huntingdonshire District Council,202506,cTHINGS LTD,76861,06/03/2023,INV-0744,Flood Sensors - Surveys,31/03/2023,1200,6000,7200,Smarter Towns,Network Hardware,64069
http://statistics.data.gov.uk/id/local-authority/12UE,Huntingdonshire District Council,202821,CVSS LIMITED,76200,21/02/2023,36378,First Issue/ Software & Hardware,20/03/2023,2036,10180,12216,Cctv Shared Service - HDC,Installation Fees,64073
http://statistics.data.gov.uk/id/local-authority/12UE,Huntingdonshire District Council,202821,CVSS LIMITED,76200,21/02/2023,36378,First Issue/ Software & Hardware,20/03/2023,1122,5610,6732,Cctv Shared Service - HDC,Installation Fees,64073
http://statistics.data.gov.uk/id/local-authority/12UE,Huntingdonshire District Council,202821,CVSS LIMITED,76038,10/02/2023,36193,OLSI Wet Pool,03/03/2023,2614,13070,15684,Cctv Shared Service - HDC,Installation Fees,64073
http://statistics.data.gov.uk/id/local-authority/12UE,Huntingdonshire District Council,202821,CVSS LIMITED,74824,12/01/2023,35632,CCTV Installation Stilton,02/02/2023,1079.8,5399,6478.8,Cctv Shared Service - HDC,Installation Fees,64073
http://statistics.data.gov.uk/id/local-authority/12UE,Huntingdonshire District Council,202821,CVSS LIMITED,76891,10/02/2023,36573,Stilton Extra Work 10.02.23,09/03/2023,317.2,1586,1903.2,Cctv Shared Service - HDC,Installation Fees,64073
http://statistics.data.gov.uk/id/local-authority/12UE,Huntingdonshire District Council,202821,CVSS LIMITED,76039,08/02/2023,36191,Wetside Project - Server Cabinet,03/03/2023,152.2,761,913.2,Cctv Shared Service - HDC,Installation Fees,64073
http://statistics.data.gov.uk/id/local-authority/12UE,Huntingdonshire District Council,202821,CVSS LIMITED,76037,10/02/2023,36192,Park & Ride Extra Works 10.02.23,03/03/2023,1043.6,5218,6261.6,Cctv Shared Service Hosting,Installation Fees,64073
http://statistics.data.gov.uk/id/local-authority/12UE,Huntingdonshire District Council,202821,CVSS LIMITED,76226,22/02/2023,36354,Supply Only,20/03/2023,158,790,948,Cctv Shared Service Hosting,Installation Fees,64073
http://statistics.data.gov.uk/id/local-authority/12UE,Huntingdonshire District Council,201395,CWE TRAINING LTD,78075,26/01/2023,12032,Non Licensed - Asbestos Awareness,31/03/2023,139,695,834,Street Cleansing,Staff Development And Training,60115
http://statistics.data.gov.uk/id/local-authority/12UE,Huntingdonshire District Council,200220,D & H SIGN & DISPLAY SERVICE D & H SIGN & DISPLAY SERVICE,75616,02/02/2023,7207,LC72CWD Supply & Fit Logos,03/03/2023,93.6,468,561.6,Vehicles & Plant,Purchase Of Vehicles Related Costs,60906
http://statistics.data.gov.uk/id/local-authority/12UE,Huntingdonshire District Council,200221,D B TRANSPORT SERVICES D B TRANSPORT SERVICES,75774,23/01/2023,14697,VE18JWF Sweep Hose/Compact Hose,17/02/2023,54.05,270.26,324.31,Green Waste Collection,Vehicle MOT,60924
http://statistics.data.gov.uk/id/local-authority/12UE,Huntingdonshire District Council,200221,D B TRANSPORT SERVICES D B TRANSPORT SERVICES,75135,13/12/2022,14625,VN66CBX 2x O/S Sweep Hose,30/01/2023,51.73,258.67,310.4,Domestic Waste Collection,Vehicle Repairs And Maintenance,60904
http://statistics.data.gov.uk/id/local-authority/12UE,Huntingdonshire District Council,202702,D J SAYWELL LTD,76509,22/02/2023,51417,Pax Pits Materials,20/03/2023,586,2930,3516,Paxton Pits,Materials,61709
http://statistics.data.gov.uk/id/local-authority/12UE,Huntingdonshire District Council,202702,D J SAYWELL LTD,74949,20/01/2023,51391,Pax Pits Galvanised Brackets,09/02/2023,177,885,1062,Paxton Pits,Materials,61709
http://statistics.data.gov.uk/id/local-authority/12UE,Huntingdonshire District Council,200226,DAL-ROD (CAMRIDGESHIRE) DAL-ROD (CAMRIDGESHIRE),74995,21/09/2022,61622,PFH Urinal Servicing 17.09.22,26/01/2023,130.4,652,782.4,Pathfinder House,Cleaning Services,60501
http://statistics.data.gov.uk/id/local-authority/12UE,Huntingdonshire District Council,200226,DAL-ROD (CAMRIDGESHIRE) DAL-ROD (CAMRIDGESHIRE),74990,24/08/2022,61355,PFH Empty Grease Trap 17.08.22,26/01/2023,64,320,384,Pathfinder House,Cleaning Services,60501
http://statistics.data.gov.uk/id/local-authority/12UE,Huntingdonshire District Council,200226,DAL-ROD (CAMRIDGESHIRE) DAL-ROD (CAMRIDGESHIRE),74993,25/11/2022,62444,PFH Empty Grease Trap 24.11.22,26/01/2023,64,320,384,Pathfinder House,Cleaning Services,60501
http://statistics.data.gov.uk/id/local-authority/12UE,Huntingdonshire District Council,200226,DAL-ROD (CAMRIDGESHIRE) DAL-ROD (CAMRIDGESHIRE),76225,23/02/2023,63695,PFH Empty Grease Trap 15.02.23,24/03/2023,64,320,384,Pathfinder House,Cleaning Services,60501
http://statistics.data.gov.uk/id/local-authority/12UE,Huntingdonshire District Council,200226,DAL-ROD (CAMRIDGESHIRE) DAL-ROD (CAMRIDGESHIRE),77123,07/03/2023,63931,Drainage Clearance Works,31/03/2023,341,1705,2046,Car Park Management,Maintenance - Building,60201
http://statistics.data.gov.uk/id/local-authority/12UE,Huntingdonshire District Council,200226,DAL-ROD (CAMRIDGESHIRE) DAL-ROD (CAMRIDGESHIRE),74992,28/09/2022,61722,HBS Camera Survey,26/01/2023,54,270,324,Huntingdon Bus Station,Maintenance - Building,60201
http://statistics.data.gov.uk/id/local-authority/12UE,Huntingdonshire District Council,200226,DAL-ROD (CAMRIDGESHIRE) DAL-ROD (CAMRIDGESHIRE),75057,26/01/2023,63340,OLR Planned Maintenance,23/02/2023,50,250,300,OLH - Site & Centre Management,Maintenance - Building,60201
http://statistics.data.gov.uk/id/local-authority/12UE,Huntingdonshire District Council,200226,DAL-ROD (CAMRIDGESHIRE) DAL-ROD (CAMRIDGESHIRE),75440,01/02/2023,63420,OLH Clear Blocked Urinal,23/02/2023,50,250,300,OLH - Site & Centre Management,Maintenance - Building,60201
http://statistics.data.gov.uk/id/local-authority/12UE,Huntingdonshire District Council,200226,DAL-ROD (CAMRIDGESHIRE) DAL-ROD (CAMRIDGESHIRE),74991,16/11/2022,62310,PFH CCTV Survey Drainage,26/01/2023,139,695,834,Pathfinder House,Maintenance - Building,60201
http://statistics.data.gov.uk/id/local-authority/12UE,Huntingdonshire District Council,203050,REDACTED,74337,05/10/2022,HDC DRIVING OCT22,5x 2 Hour Driving Lessons,12/01/2023,0,350,350,Cctv Huntingdonshire,Staff Development And Training,60115
http://statistics.data.gov.uk/id/local-authority/12UE,Huntingdonshire District Council,203130,Darna Project Management,75162,27/01/2023,HDC02,REDACTED,02/02/2023,1440,7200,8640,Market Towns,Agency Staff,60011
http://statistics.data.gov.uk/id/local-authority/12UE,Huntingdonshire District Council,203130,Darna Project Management,76792,24/02/2023,HDC03,REDACTED,09/03/2023,1440,7200,8640,Market Towns,Agency Staff,60011
http://statistics.data.gov.uk/id/local-authority/12UE,Huntingdonshire District Council,203130,Darna Project Management,74137,23/12/2022,HDC01,REDACTED,02/02/2023,1080,5400,6480,Market Towns,Agency Staff,60011
http://statistics.data.gov.uk/id/local-authority/12UE,Huntingdonshire District Council,203130,Darna Project Management,75206,30/01/2023,753172,Returned Payment,06/01/2023,0,6480,6480,Paymaster Account,Paymaster Account,10082
http://statistics.data.gov.uk/id/local-authority/12UE,Huntingdonshire District Council,201715,DATASHREDDERS LTD,75477,31/01/2023,108549,Shredding,23/02/2023,74.4,372,446.4,Pathfinder House,Shredding,64055
http://statistics.data.gov.uk/id/local-authority/12UE,Huntingdonshire District Council,200230,REDACTED,74544,31/12/2022,197,Fleet Valet Dec22,26/01/2023,0,35,35,Pool Cars,Vehicle Cleaning,60923
http://statistics.data.gov.uk/id/local-authority/12UE,Huntingdonshire District Council,200230,REDACTED,74544,31/12/2022,197,Fleet Valet Dec22,26/01/2023,0,35,35,Pool Cars,Vehicle Cleaning,60923
http://statistics.data.gov.uk/id/local-authority/12UE,Huntingdonshire District Council,200230,REDACTED,74544,31/12/2022,197,Fleet Valet Dec22,26/01/2023,0,35,35,Pool Cars,Vehicle Cleaning,60923
http://statistics.data.gov.uk/id/local-authority/12UE,Huntingdonshire District Council,200230,REDACTED,74544,31/12/2022,197,Fleet Valet Dec22,26/01/2023,0,35,35,Pool Cars,Vehicle Cleaning,60923
http://statistics.data.gov.uk/id/local-authority/12UE,Huntingdonshire District Council,200230,REDACTED,74544,31/12/2022,197,Fleet Valet Dec22,26/01/2023,0,35,35,Pool Cars,Vehicle Cleaning,60923
http://statistics.data.gov.uk/id/local-authority/12UE,Huntingdonshire District Council,200230,REDACTED,74544,31/12/2022,197,Fleet Valet Dec22,26/01/2023,0,35,35,Pool Cars,Vehicle Cleaning,60923
http://statistics.data.gov.uk/id/local-authority/12UE,Huntingdonshire District Council,200230,REDACTED,74544,31/12/2022,197,Fleet Valet Dec22,26/01/2023,0,35,35,Pool Cars,Vehicle Cleaning,60923
http://statistics.data.gov.uk/id/local-authority/12UE,Huntingdonshire District Council,200230,REDACTED,74544,31/12/2022,197,Fleet Valet Dec22,26/01/2023,0,35,35,Pool Cars,Vehicle Cleaning,60923
http://statistics.data.gov.uk/id/local-authority/12UE,Huntingdonshire District Council,200230,REDACTED,74544,31/12/2022,197,Fleet Valet Dec22,26/01/2023,0,40,40,Street Cleansing,Vehicle Cleaning,60923
http://statistics.data.gov.uk/id/local-authority/12UE,Huntingdonshire District Council,202375,DAVID TIFFIN/WALDEN HOUSE LTD,77764,24/03/2023,REDACTED,REDACTED,27/03/2023,0,820,820,Homelessness,Homeless Prevention Payments,64403
http://statistics.data.gov.uk/id/local-authority/12UE,Huntingdonshire District Council,203145,DCJ Technical Services,76695,27/02/2023,DCJ 3205,Holt Island Solar Lighting,24/03/2023,0,400,400,Holt Island,Building Construction,60269
http://statistics.data.gov.uk/id/local-authority/12UE,Huntingdonshire District Council,203083,Dell Corporation Limited,73851,16/12/2022,7402875657,3CICT OPTIPLEX 30000,12/01/2023,4811.14,24055.68,28866.82,Cambridge City Business Case ,Ict Hardware,64070
http://statistics.data.gov.uk/id/local-authority/12UE,Huntingdonshire District Council,203083,Dell Corporation Limited,74549,11/01/2023,7402880093,IT Hardware - Monitor/Keyboard/Mouse,02/02/2023,265.2,1326,1591.2,City Recoverable,Ict Hardware,64070
http://statistics.data.gov.uk/id/local-authority/12UE,Huntingdonshire District Council,203083,Dell Corporation Limited,75760,31/01/2023,7402885759,IT Hardware -,23/02/2023,679.96,3399.8,4079.76,City Recoverable,Ict Hardware,64070
http://statistics.data.gov.uk/id/local-authority/12UE,Huntingdonshire District Council,203083,Dell Corporation Limited,74549,11/01/2023,7402880093,IT Hardware - Monitor/Keyboard/Mouse,02/02/2023,11.4,57,68.4,City Recoverable,Ict Hardware,64070
http://statistics.data.gov.uk/id/local-authority/12UE,Huntingdonshire District Council,203083,Dell Corporation Limited,74549,11/01/2023,7402880093,IT Hardware - Monitor/Keyboard/Mouse,02/02/2023,7.8,39,46.8,City Recoverable,Ict Hardware,64070
http://statistics.data.gov.uk/id/local-authority/12UE,Huntingdonshire District Council,203083,Dell Corporation Limited,74548,15/12/2022,7402875628,IT Hardware,16/01/2023,188.67,943.36,1132.03,City Recoverable,Ict Hardware,64070
http://statistics.data.gov.uk/id/local-authority/12UE,Huntingdonshire District Council,203083,Dell Corporation Limited,73798,16/12/2022,7402875656,IT Hardware - Desktops,12/01/2023,4999.81,24999.04,29998.85,HDC Council Anywhere,Ict Hardware,64070
http://statistics.data.gov.uk/id/local-authority/12UE,Huntingdonshire District Council,203083,Dell Corporation Limited,73852,15/12/2022,7402875516,3CICT FLEX,12/01/2023,660.35,3301.76,3962.11,SCDC Council Anywhere,Ict Hardware,64070
http://statistics.data.gov.uk/id/local-authority/12UE,Huntingdonshire District Council,203083,Dell Corporation Limited,77021,03/03/2023,7402895608,IT Hardware - Monitors/Docking Stations,31/03/2023,126,630,756,SCDC Recoverable,Ict Hardware,64070
http://statistics.data.gov.uk/id/local-authority/12UE,Huntingdonshire District Council,203083,Dell Corporation Limited,77021,03/03/2023,7402895608,IT Hardware - Monitors/Docking Stations,31/03/2023,110.19,550.95,661.14,SCDC Recoverable,Ict Hardware,64070
http://statistics.data.gov.uk/id/local-authority/12UE,Huntingdonshire District Council,200236,DENNIS EAGLE LTD DENNIS EAGLE LTD,75112,14/11/2022,457769,DE EcoTrak - Whole Fleet,30/01/2023,6.2,31,37.2,Bulky Refuse,Land Line Rental,64077
http://statistics.data.gov.uk/id/local-authority/12UE,Huntingdonshire District Council,200236,DENNIS EAGLE LTD DENNIS EAGLE LTD,75112,14/11/2022,457769,DE EcoTrak - Whole Fleet,30/01/2023,37.8,189,226.8,Domestic Waste Collection,Land Line Rental,64077
http://statistics.data.gov.uk/id/local-authority/12UE,Huntingdonshire District Council,200236,DENNIS EAGLE LTD DENNIS EAGLE LTD,75112,14/11/2022,457769,DE EcoTrak - Whole Fleet,30/01/2023,68.52,342.6,411.12,Domestic Waste Collection,Land Line Rental,64077
http://statistics.data.gov.uk/id/local-authority/12UE,Huntingdonshire District Council,200236,DENNIS EAGLE LTD DENNIS EAGLE LTD,75112,14/11/2022,457769,DE EcoTrak - Whole Fleet,30/01/2023,37.8,189,226.8,Domestic Waste Collection,Land Line Rental,64077
http://statistics.data.gov.uk/id/local-authority/12UE,Huntingdonshire District Council,200236,DENNIS EAGLE LTD DENNIS EAGLE LTD,75112,14/11/2022,457769,DE EcoTrak - Whole Fleet,30/01/2023,64.8,324,388.8,Domestic Waste Collection,Land Line Rental,64077
http://statistics.data.gov.uk/id/local-authority/12UE,Huntingdonshire District Council,200236,DENNIS EAGLE LTD DENNIS EAGLE LTD,75112,14/11/2022,457769,DE EcoTrak - Whole Fleet,30/01/2023,64.8,324,388.8,Domestic Waste Collection,Land Line Rental,64077
http://statistics.data.gov.uk/id/local-authority/12UE,Huntingdonshire District Council,200236,DENNIS EAGLE LTD DENNIS EAGLE LTD,75112,14/11/2022,457769,DE EcoTrak - Whole Fleet,30/01/2023,68.52,342.6,411.12,Domestic Waste Collection,Land Line Rental,64077
http://statistics.data.gov.uk/id/local-authority/12UE,Huntingdonshire District Council,200236,DENNIS EAGLE LTD DENNIS EAGLE LTD,75112,14/11/2022,457769,DE EcoTrak - Whole Fleet,30/01/2023,68.52,342.6,411.12,Domestic Waste Collection,Land Line Rental,64077
http://statistics.data.gov.uk/id/local-authority/12UE,Huntingdonshire District Council,200236,DENNIS EAGLE LTD DENNIS EAGLE LTD,75112,14/11/2022,457769,DE EcoTrak - Whole Fleet,30/01/2023,64.8,324,388.8,Domestic Waste Collection,Land Line Rental,64077
http://statistics.data.gov.uk/id/local-authority/12UE,Huntingdonshire District Council,200236,DENNIS EAGLE LTD DENNIS EAGLE LTD,75112,14/11/2022,457769,DE EcoTrak - Whole Fleet,30/01/2023,64.8,324,388.8,Domestic Waste Collection,Land Line Rental,64077
http://statistics.data.gov.uk/id/local-authority/12UE,Huntingdonshire District Council,200236,DENNIS EAGLE LTD DENNIS EAGLE LTD,75112,14/11/2022,457769,DE EcoTrak - Whole Fleet,30/01/2023,68.52,342.6,411.12,Domestic Waste Collection,Land Line Rental,64077
http://statistics.data.gov.uk/id/local-authority/12UE,Huntingdonshire District Council,200236,DENNIS EAGLE LTD DENNIS EAGLE LTD,75112,14/11/2022,457769,DE EcoTrak - Whole Fleet,30/01/2023,64.8,324,388.8,Green Waste Collection,Land Line Rental,64077
http://statistics.data.gov.uk/id/local-authority/12UE,Huntingdonshire District Council,200236,DENNIS EAGLE LTD DENNIS EAGLE LTD,75112,14/11/2022,457769,DE EcoTrak - Whole Fleet,30/01/2023,68.52,342.6,411.12,Green Waste Collection,Land Line Rental,64077
http://statistics.data.gov.uk/id/local-authority/12UE,Huntingdonshire District Council,200236,DENNIS EAGLE LTD DENNIS EAGLE LTD,75112,14/11/2022,457769,DE EcoTrak - Whole Fleet,30/01/2023,68.52,342.6,411.12,Green Waste Collection,Land Line Rental,64077
http://statistics.data.gov.uk/id/local-authority/12UE,Huntingdonshire District Council,200236,DENNIS EAGLE LTD DENNIS EAGLE LTD,75112,14/11/2022,457769,DE EcoTrak - Whole Fleet,30/01/2023,68.52,342.6,411.12,Green Waste Collection,Land Line Rental,64077
http://statistics.data.gov.uk/id/local-authority/12UE,Huntingdonshire District Council,200236,DENNIS EAGLE LTD DENNIS EAGLE LTD,75112,14/11/2022,457769,DE EcoTrak - Whole Fleet,30/01/2023,68.52,342.6,411.12,Green Waste Collection,Land Line Rental,64077
http://statistics.data.gov.uk/id/local-authority/12UE,Huntingdonshire District Council,200236,DENNIS EAGLE LTD DENNIS EAGLE LTD,75112,14/11/2022,457769,DE EcoTrak - Whole Fleet,30/01/2023,68.52,342.6,411.12,Green Waste Collection,Land Line Rental,64077
http://statistics.data.gov.uk/id/local-authority/12UE,Huntingdonshire District Council,200236,DENNIS EAGLE LTD DENNIS EAGLE LTD,75112,14/11/2022,457769,DE EcoTrak - Whole Fleet,30/01/2023,68.52,342.6,411.12,Green Waste Collection,Land Line Rental,64077
http://statistics.data.gov.uk/id/local-authority/12UE,Huntingdonshire District Council,200236,DENNIS EAGLE LTD DENNIS EAGLE LTD,75112,14/11/2022,457769,DE EcoTrak - Whole Fleet,30/01/2023,64.8,324,388.8,Green Waste Collection,Land Line Rental,64077
http://statistics.data.gov.uk/id/local-authority/12UE,Huntingdonshire District Council,200236,DENNIS EAGLE LTD DENNIS EAGLE LTD,75112,14/11/2022,457769,DE EcoTrak - Whole Fleet,30/01/2023,68.52,342.6,411.12,Narrow Access,Land Line Rental,64077
http://statistics.data.gov.uk/id/local-authority/12UE,Huntingdonshire District Council,200236,DENNIS EAGLE LTD DENNIS EAGLE LTD,75112,14/11/2022,457769,DE EcoTrak - Whole Fleet,30/01/2023,37.8,189,226.8,Recycling Collections,Land Line Rental,64077
http://statistics.data.gov.uk/id/local-authority/12UE,Huntingdonshire District Council,200236,DENNIS EAGLE LTD DENNIS EAGLE LTD,75112,14/11/2022,457769,DE EcoTrak - Whole Fleet,30/01/2023,37.8,189,226.8,Recycling Collections,Land Line Rental,64077
http://statistics.data.gov.uk/id/local-authority/12UE,Huntingdonshire District Council,200236,DENNIS EAGLE LTD DENNIS EAGLE LTD,75112,14/11/2022,457769,DE EcoTrak - Whole Fleet,30/01/2023,64.8,324,388.8,Recycling Collections,Land Line Rental,64077
http://statistics.data.gov.uk/id/local-authority/12UE,Huntingdonshire District Council,200236,DENNIS EAGLE LTD DENNIS EAGLE LTD,75112,14/11/2022,457769,DE EcoTrak - Whole Fleet,30/01/2023,68.52,342.6,411.12,Recycling Collections,Land Line Rental,64077
http://statistics.data.gov.uk/id/local-authority/12UE,Huntingdonshire District Council,200236,DENNIS EAGLE LTD DENNIS EAGLE LTD,75112,14/11/2022,457769,DE EcoTrak - Whole Fleet,30/01/2023,64.8,324,388.8,Recycling Collections,Land Line Rental,64077
http://statistics.data.gov.uk/id/local-authority/12UE,Huntingdonshire District Council,200236,DENNIS EAGLE LTD DENNIS EAGLE LTD,75112,14/11/2022,457769,DE EcoTrak - Whole Fleet,30/01/2023,68.52,342.6,411.12,Recycling Collections,Land Line Rental,64077
http://statistics.data.gov.uk/id/local-authority/12UE,Huntingdonshire District Council,200236,DENNIS EAGLE LTD DENNIS EAGLE LTD,75112,14/11/2022,457769,DE EcoTrak - Whole Fleet,30/01/2023,64.8,324,388.8,Recycling Collections,Land Line Rental,64077
http://statistics.data.gov.uk/id/local-authority/12UE,Huntingdonshire District Council,200236,DENNIS EAGLE LTD DENNIS EAGLE LTD,75112,14/11/2022,457769,DE EcoTrak - Whole Fleet,30/01/2023,68.52,342.6,411.12,Recycling Collections,Land Line Rental,64077
http://statistics.data.gov.uk/id/local-authority/12UE,Huntingdonshire District Council,200236,DENNIS EAGLE LTD DENNIS EAGLE LTD,75112,14/11/2022,457769,DE EcoTrak - Whole Fleet,30/01/2023,64.8,324,388.8,Trade Refuse,Land Line Rental,64077
http://statistics.data.gov.uk/id/local-authority/12UE,Huntingdonshire District Council,200236,DENNIS EAGLE LTD DENNIS EAGLE LTD,75112,14/11/2022,457769,DE EcoTrak - Whole Fleet,30/01/2023,68.52,342.6,411.12,Weekly Bags,Land Line Rental,64077
http://statistics.data.gov.uk/id/local-authority/12UE,Huntingdonshire District Council,200236,DENNIS EAGLE LTD DENNIS EAGLE LTD,73920,19/12/2022,DE11549454,OPS AIR SPRING,12/01/2023,-0.01,0,-0.01,Finance,Over/Under VAT Rounding,68350
http://statistics.data.gov.uk/id/local-authority/12UE,Huntingdonshire District Council,200236,DENNIS EAGLE LTD DENNIS EAGLE LTD,75124,18/01/2023,DE1155595,VE18JWD Ram,09/02/2023,144.11,720.54,864.65,Domestic Waste Collection,Vehicle Repairs And Maintenance,60904
http://statistics.data.gov.uk/id/local-authority/12UE,Huntingdonshire District Council,200236,DENNIS EAGLE LTD DENNIS EAGLE LTD,78024,28/02/2023,467220,VE18JWD Rewire Rear Steer,31/03/2023,112.77,563.85,676.62,Domestic Waste Collection,Vehicle Repairs And Maintenance,60904
http://statistics.data.gov.uk/id/local-authority/12UE,Huntingdonshire District Council,200236,DENNIS EAGLE LTD DENNIS EAGLE LTD,77430,03/03/2023,DE11568189,VE18JWD Filter Kits/Cartridge,31/03/2023,52.92,264.62,317.54,Domestic Waste Collection,Vehicle Repairs And Maintenance,60904
http://statistics.data.gov.uk/id/local-authority/12UE,Huntingdonshire District Council,200236,DENNIS EAGLE LTD DENNIS EAGLE LTD,75134,18/01/2023,463309,VE18JXA Repair To Wiring Loom,09/02/2023,165,825,990,Domestic Waste Collection,Vehicle Repairs And Maintenance,60904
http://statistics.data.gov.uk/id/local-authority/12UE,Huntingdonshire District Council,200236,DENNIS EAGLE LTD DENNIS EAGLE LTD,73920,19/12/2022,DE11549454,OPS AIR SPRING,12/01/2023,128.34,641.68,770.02,Domestic Waste Collection,Vehicle Repairs And Maintenance,60904
http://statistics.data.gov.uk/id/local-authority/12UE,Huntingdonshire District Council,200236,DENNIS EAGLE LTD DENNIS EAGLE LTD,73895,19/12/2022,DE11549455,OPS TANK ETC,12/01/2023,67.53,337.63,405.16,Domestic Waste Collection,Vehicle Repairs And Maintenance,60904
http://statistics.data.gov.uk/id/local-authority/12UE,Huntingdonshire District Council,200236,DENNIS EAGLE LTD DENNIS EAGLE LTD,73990,23/12/2022,DE11550706,VE18JXA Shackle Assembly/Pin,20/01/2023,66.48,332.4,398.88,Domestic Waste Collection,Vehicle Repairs And Maintenance,60904
http://statistics.data.gov.uk/id/local-authority/12UE,Huntingdonshire District Council,200236,DENNIS EAGLE LTD DENNIS EAGLE LTD,77293,23/02/2023,DE11566018,VN66CBX Link Rod/Stud,24/03/2023,59.23,296.14,355.37,Domestic Waste Collection,Vehicle Repairs And Maintenance,60904
http://statistics.data.gov.uk/id/local-authority/12UE,Huntingdonshire District Council,200236,DENNIS EAGLE LTD DENNIS EAGLE LTD,77295,24/02/2023,DE11566353,VN66CBX Dipstick,24/03/2023,57.09,285.43,342.52,Domestic Waste Collection,Vehicle Repairs And Maintenance,60904
http://statistics.data.gov.uk/id/local-authority/12UE,Huntingdonshire District Council,200236,DENNIS EAGLE LTD DENNIS EAGLE LTD,74811,12/01/2023,DE11554437,VU67HXY Pipe/Actuator,09/02/2023,76.48,382.38,458.86,Domestic Waste Collection,Vehicle Repairs And Maintenance,60904
http://statistics.data.gov.uk/id/local-authority/12UE,Huntingdonshire District Council,200236,DENNIS EAGLE LTD DENNIS EAGLE LTD,75688,02/02/2023,DE11560451,VX70ZMO MOT Parts,03/03/2023,187.08,935.4,1122.48,Domestic Waste Collection,Vehicle Repairs And Maintenance,60904
http://statistics.data.gov.uk/id/local-authority/12UE,Huntingdonshire District Council,200236,DENNIS EAGLE LTD DENNIS EAGLE LTD,75123,18/01/2023,DE11555996,VK22BXY MOT Parts,09/02/2023,116.89,584.46,701.35,Green Waste Collection,Vehicle Repairs And Maintenance,60904
http://statistics.data.gov.uk/id/local-authority/12UE,Huntingdonshire District Council,200236,DENNIS EAGLE LTD DENNIS EAGLE LTD,75121,18/01/2023,463311,VU66NUH Reprogram Body ECU,09/02/2023,52.8,264,316.8,Green Waste Collection,Vehicle Repairs And Maintenance,60904
http://statistics.data.gov.uk/id/local-authority/12UE,Huntingdonshire District Council,200236,DENNIS EAGLE LTD DENNIS EAGLE LTD,74506,30/12/2022,DE11551400,VN66NUJ Bearing/Pin/Latch,26/01/2023,68.44,342.19,410.63,Green Waste Collection,Vehicle Repairs And Maintenance,60904
http://statistics.data.gov.uk/id/local-authority/12UE,Huntingdonshire District Council,200236,DENNIS EAGLE LTD DENNIS EAGLE LTD,75282,20/01/2023,DE11556887,VE18JNX Brake Chamber,09/02/2023,254.36,1271.82,1526.18,Recycling Collections,Vehicle Repairs And Maintenance,60904
http://statistics.data.gov.uk/id/local-authority/12UE,Huntingdonshire District Council,200236,DENNIS EAGLE LTD DENNIS EAGLE LTD,76445,13/02/2023,DE11563136,VE18JNX Parts,09/03/2023,251.02,1255.12,1506.14,Recycling Collections,Vehicle Repairs And Maintenance,60904
http://statistics.data.gov.uk/id/local-authority/12UE,Huntingdonshire District Council,200236,DENNIS EAGLE LTD DENNIS EAGLE LTD,73918,20/12/2022,DE11549784,OPS STARTER MOTOR,12/01/2023,227.16,1135.8,1362.96,Recycling Collections,Vehicle Repairs And Maintenance,60904
http://statistics.data.gov.uk/id/local-authority/12UE,Huntingdonshire District Council,200236,DENNIS EAGLE LTD DENNIS EAGLE LTD,76447,23/02/2023,466691,VE18JNX Engine Repairs,24/03/2023,127.2,636,763.2,Recycling Collections,Vehicle Repairs And Maintenance,60904
http://statistics.data.gov.uk/id/local-authority/12UE,Huntingdonshire District Council,200236,DENNIS EAGLE LTD DENNIS EAGLE LTD,74515,29/12/2022,DE11551157,VE18JNX Sensor/Injector,26/01/2023,50.46,252.31,302.77,Recycling Collections,Vehicle Repairs And Maintenance,60904
http://statistics.data.gov.uk/id/local-authority/12UE,Huntingdonshire District Council,200236,DENNIS EAGLE LTD DENNIS EAGLE LTD,74756,09/01/2023,DE11553205,VK20XWJ Various Parts,02/02/2023,111.01,555.04,666.05,Recycling Collections,Vehicle Repairs And Maintenance,60904
http://statistics.data.gov.uk/id/local-authority/12UE,Huntingdonshire District Council,200236,DENNIS EAGLE LTD DENNIS EAGLE LTD,76444,14/02/2023,DE11563534,VN66CBY Wiper Linkage/Motor,09/03/2023,108.65,543.27,651.92,Recycling Collections,Vehicle Repairs And Maintenance,60904
http://statistics.data.gov.uk/id/local-authority/12UE,Huntingdonshire District Council,200236,DENNIS EAGLE LTD DENNIS EAGLE LTD,75122,18/01/2023,463312,VU67HXZ Supply&Fit New Pump/Unloader Vle,09/02/2023,862.75,4313.74,5176.49,Recycling Collections,Vehicle Repairs And Maintenance,60904
http://statistics.data.gov.uk/id/local-authority/12UE,Huntingdonshire District Council,200236,DENNIS EAGLE LTD DENNIS EAGLE LTD,75421,24/01/2023,DE11557665,VX70ZMU Door Switch/Valve/Cover/Latch,09/02/2023,145.51,727.57,873.08,Recycling Collections,Vehicle Repairs And Maintenance,60904
http://statistics.data.gov.uk/id/local-authority/12UE,Huntingdonshire District Council,200236,DENNIS EAGLE LTD DENNIS EAGLE LTD,76925,17/02/2023,DE11564499,MOT Parts VX70ZMU,17/03/2023,52.92,264.62,317.54,Recycling Collections,Vehicle Repairs And Maintenance,60904
http://statistics.data.gov.uk/id/local-authority/12UE,Huntingdonshire District Council,200236,DENNIS EAGLE LTD DENNIS EAGLE LTD,76449,22/02/2023,466633,VU67HXX Supply & Fit Nox Sensors,20/03/2023,432.06,2160.32,2592.38,Trade Refuse,Vehicle Repairs And Maintenance,60904
http://statistics.data.gov.uk/id/local-authority/12UE,Huntingdonshire District Council,200236,DENNIS EAGLE LTD DENNIS EAGLE LTD,77284,02/03/2023,DE11567851,VU67HXX Valve/Gasket/Strap,31/03/2023,142.56,712.82,855.38,Trade Refuse,Vehicle Repairs And Maintenance,60904
http://statistics.data.gov.uk/id/local-authority/12UE,Huntingdonshire District Council,200236,DENNIS EAGLE LTD DENNIS EAGLE LTD,77282,01/03/2023,DE11567485,VK20NTO MOT Parts,24/03/2023,132.06,660.3,792.36,Weekly Bags,Vehicle Repairs And Maintenance,60904
http://statistics.data.gov.uk/id/local-authority/12UE,Huntingdonshire District Council,201313,DENNIS EASTON FUNERAL SERVICE,76306,14/02/2023,60336705/522643 0,REDACTED,27/02/2023,0,885,885,Burials Under Health Act,Cremation And Burial Costs,62600
http://statistics.data.gov.uk/id/local-authority/12UE,Huntingdonshire District Council,202489,DIRECT HEALTHCARE GROUP LTD,76347,17/02/2023,GB02CISI024894,REDACTED,17/03/2023,0,4879,4879,Disables Facilities Grants,Mandatory Grants,64601
http://statistics.data.gov.uk/id/local-authority/12UE,Huntingdonshire District Council,203052,Dolphin Lifts Midland Limited,75505,31/01/2023,49795,REDACTED,23/02/2023,0,5240,5240,Disables Facilities Grants,Mandatory Grants,64601
http://statistics.data.gov.uk/id/local-authority/12UE,Huntingdonshire District Council,203052,Dolphin Lifts Midland Limited,74763,16/01/2023,49634,REDACTED,09/02/2023,0,4650,4650,Disables Facilities Grants,Mandatory Grants,64601
http://statistics.data.gov.uk/id/local-authority/12UE,Huntingdonshire District Council,203052,Dolphin Lifts Midland Limited,77778,08/02/2023,49840,REDACTED,27/03/2023,0,4335,4335,Disables Facilities Grants,Mandatory Grants,64601
http://statistics.data.gov.uk/id/local-authority/12UE,Huntingdonshire District Council,203052,Dolphin Lifts Midland Limited,73980,22/12/2022,49508,REDACTED,20/01/2023,0,3555,3555,Disables Facilities Grants,Mandatory Grants,64601
http://statistics.data.gov.uk/id/local-authority/12UE,Huntingdonshire District Council,203052,Dolphin Lifts Midland Limited,75348,30/01/2023,49751,REDACTED,23/02/2023,0,2725,2725,Disables Facilities Grants,Mandatory Grants,64601
http://statistics.data.gov.uk/id/local-authority/12UE,Huntingdonshire District Council,203052,Dolphin Lifts Midland Limited,75559,23/09/2022,48673,REDACTED,09/02/2023,0,2510,2510,Disables Facilities Grants,Mandatory Grants,64601
http://statistics.data.gov.uk/id/local-authority/12UE,Huntingdonshire District Council,200250,DTS SOLUTIONS (UK) LTD DTS SOLUTIONS (UK) LTD,76100,20/02/2023,S010789,Pax Pits Materials,20/03/2023,103.9,519.5,623.4,Paxton Pits,Equipment,61713
http://statistics.data.gov.uk/id/local-authority/12UE,Huntingdonshire District Council,200250,DTS SOLUTIONS (UK) LTD DTS SOLUTIONS (UK) LTD,75989,27/01/2023,S010648,TRBnet Support 1 Year 24.01.23,23/02/2023,498,2490,2988,Vehicle Maintenance,Ict Software,64071
http://statistics.data.gov.uk/id/local-authority/12UE,Huntingdonshire District Council,200252,E.ON E.ON,74114,29/10/2021,KCR-0001,Reversed Account Charges,06/01/2023,-16.61,-332.15,-348.76,Industrial Properties,Electricity,60303
http://statistics.data.gov.uk/id/local-authority/12UE,Huntingdonshire District Council,200252,E.ON E.ON,74114,29/10/2021,KCR-0001,Reversed Account Charges,06/01/2023,0.01,-0.01,0,Finance,Over/Under VAT Rounding,68350
http://statistics.data.gov.uk/id/local-authority/12UE,Huntingdonshire District Council,200255,EAST OF ENGLAND LGA EAST OF ENGLAND LGA,75333,07/07/2022,1002579,REDACTED,02/02/2023,500,2500,3000,Managing Directors Team,Consultancy Fees,62400
http://statistics.data.gov.uk/id/local-authority/12UE,Huntingdonshire District Council,200255,EAST OF ENGLAND LGA EAST OF ENGLAND LGA,75926,28/10/2022,1002724,REDACTED,17/02/2023,150,750,900,Member Allowances & Support,Member Training,60123
http://statistics.data.gov.uk/id/local-authority/12UE,Huntingdonshire District Council,202236,EASTFIELD GUESTHOUSE LTD,76139,20/02/2023,HUN0260,Nags Head TA - 13-19.02.23,23/02/2023,435,2175,2610,Homelessness,B&B Accommodation,64401
http://statistics.data.gov.uk/id/local-authority/12UE,Huntingdonshire District Council,202236,EASTFIELD GUESTHOUSE LTD,76251,13/02/2023,HUN0258,Nags Head TA - 06-12.02.23,23/02/2023,391.5,1957.5,2349,Homelessness,B&B Accommodation,64401
http://statistics.data.gov.uk/id/local-authority/12UE,Huntingdonshire District Council,202236,EASTFIELD GUESTHOUSE LTD,77171,13/03/2023,HUN0266,Nags Head TA - 06-12.03.23,17/03/2023,58,290,348,Homelessness,B&B Accommodation,64401
http://statistics.data.gov.uk/id/local-authority/12UE,Huntingdonshire District Council,202236,EASTFIELD GUESTHOUSE LTD,77215,06/03/2023,HUN0264,TA Nags Head - 27.02-05.03.23,17/03/2023,203,1015,1218,Homelessness,B&B Accommodation,64401
http://statistics.data.gov.uk/id/local-authority/12UE,Huntingdonshire District Council,202236,EASTFIELD GUESTHOUSE LTD,77304,27/02/2023,HUN0262,TA - 20-26.02.23,17/03/2023,304.5,1522.5,1827,Homelessness,B&B Accommodation,64401
http://statistics.data.gov.uk/id/local-authority/12UE,Huntingdonshire District Council,202236,EASTFIELD GUESTHOUSE LTD,77863,20/03/2023,HUN0268,TA - 13-19.03.23,28/03/2023,246.5,1232.5,1479,Homelessness,B&B Accommodation,64401
http://statistics.data.gov.uk/id/local-authority/12UE,Huntingdonshire District Council,202236,EASTFIELD GUESTHOUSE LTD,76257,06/02/2023,HUN0256,Nags Heads TA - 31.01-05.02.23,23/02/2023,282.75,1413.75,1696.5,Homelessness,B&B Accommodation,64401
http://statistics.data.gov.uk/id/local-authority/12UE,Huntingdonshire District Council,202236,EASTFIELD GUESTHOUSE LTD,75262,24/10/2022,HUN0226,Nags Head TA - 17-23.10.22,02/02/2023,611,3055,3666,Homelessness,B&B Accommodation,64401
http://statistics.data.gov.uk/id/local-authority/12UE,Huntingdonshire District Council,202236,EASTFIELD GUESTHOUSE LTD,74726,09/01/2023,HUN0247,TA - 02-08.01.23,20/01/2023,98,490,588,Homelessness,B&B Accommodation,64401
http://statistics.data.gov.uk/id/local-authority/12UE,Huntingdonshire District Council,202236,EASTFIELD GUESTHOUSE LTD,74726,09/01/2023,HUN0247,TA - 02-08.01.23,20/01/2023,84,420,504,Homelessness,B&B Accommodation,64401
http://statistics.data.gov.uk/id/local-authority/12UE,Huntingdonshire District Council,202236,EASTFIELD GUESTHOUSE LTD,74726,09/01/2023,HUN0247,TA - 02-08.01.23,20/01/2023,70,350,420,Homelessness,B&B Accommodation,64401
http://statistics.data.gov.uk/id/local-authority/12UE,Huntingdonshire District Council,202236,EASTFIELD GUESTHOUSE LTD,75332,30/01/2023,HUN0253,TA - 23-29.01.23,02/02/2023,196,980,1176,Homelessness,B&B Accommodation,64401
http://statistics.data.gov.uk/id/local-authority/12UE,Huntingdonshire District Council,202236,EASTFIELD GUESTHOUSE LTD,74211,26/12/2022,HUN0243,TA - 19-25.12.22,06/01/2023,196,980,1176,Homelessness,B&B Accommodation,64401
http://statistics.data.gov.uk/id/local-authority/12UE,Huntingdonshire District Council,202236,EASTFIELD GUESTHOUSE LTD,75127,23/01/2023,HUN0251,TA - 16-22.01.23,30/01/2023,98,490,588,Homelessness,B&B Accommodation,64401
http://statistics.data.gov.uk/id/local-authority/12UE,Huntingdonshire District Council,202236,EASTFIELD GUESTHOUSE LTD,75127,23/01/2023,HUN0251,TA - 16-22.01.23,30/01/2023,70,350,420,Homelessness,B&B Accommodation,64401
http://statistics.data.gov.uk/id/local-authority/12UE,Huntingdonshire District Council,202236,EASTFIELD GUESTHOUSE LTD,74472,02/01/2023,HUN0245,TA - 26.12-01.01.23,16/01/2023,140,700,840,Homelessness,B&B Accommodation,64401
http://statistics.data.gov.uk/id/local-authority/12UE,Huntingdonshire District Council,202236,EASTFIELD GUESTHOUSE LTD,74725,16/01/2023,HUN0249,TA - 09-15.01.23,20/01/2023,28,140,168,Homelessness,B&B Accommodation,64401
http://statistics.data.gov.uk/id/local-authority/12UE,Huntingdonshire District Council,202236,EASTFIELD GUESTHOUSE LTD,74725,16/01/2023,HUN0249,TA - 09-15.01.23,20/01/2023,98,490,588,Homelessness,B&B Accommodation,64401
http://statistics.data.gov.uk/id/local-authority/12UE,Huntingdonshire District Council,202236,EASTFIELD GUESTHOUSE LTD,74240,26/12/2022,HUN0244,Nags Head TA - 19-25.12.22,09/01/2023,16,80,96,Homelessness,B&B Accommodation,64401
http://statistics.data.gov.uk/id/local-authority/12UE,Huntingdonshire District Council,202236,EASTFIELD GUESTHOUSE LTD,74588,09/01/2023,HUN0248,TA - 02-08.01.23,16/01/2023,32,160,192,Homelessness,B&B Accommodation,64401
http://statistics.data.gov.uk/id/local-authority/12UE,Huntingdonshire District Council,202236,EASTFIELD GUESTHOUSE LTD,74727,16/01/2023,HUN0250,Nags Head TA - 09-15.01.23,20/01/2023,112,560,672,Homelessness,B&B Accommodation,64401
http://statistics.data.gov.uk/id/local-authority/12UE,Huntingdonshire District Council,202236,EASTFIELD GUESTHOUSE LTD,75331,30/01/2023,HUN0254,Nags Head TA - 23-29.01.23,02/02/2023,16,80,96,Homelessness,B&B Accommodation,64401
http://statistics.data.gov.uk/id/local-authority/12UE,Huntingdonshire District Council,202236,EASTFIELD GUESTHOUSE LTD,74083,19/12/2022,HUN0241,TA - 12-18.12.22,06/01/2023,14,70,84,Homelessness,B&B Accommodation,64401
http://statistics.data.gov.uk/id/local-authority/12UE,Huntingdonshire District Council,202236,EASTFIELD GUESTHOUSE LTD,76139,20/02/2023,HUN0260,Nags Head TA - 13-19.02.23,23/02/2023,101.5,507.5,609,Homelessness,B&B Accommodation,64401
http://statistics.data.gov.uk/id/local-authority/12UE,Huntingdonshire District Council,202236,EASTFIELD GUESTHOUSE LTD,76251,13/02/2023,HUN0258,Nags Head TA - 06-12.02.23,23/02/2023,87,435,522,Homelessness,B&B Accommodation,64401
http://statistics.data.gov.uk/id/local-authority/12UE,Huntingdonshire District Council,202236,EASTFIELD GUESTHOUSE LTD,77171,13/03/2023,HUN0266,Nags Head TA - 06-12.03.23,17/03/2023,101.5,507.5,609,Homelessness,B&B Accommodation,64401
http://statistics.data.gov.uk/id/local-authority/12UE,Huntingdonshire District Council,202236,EASTFIELD GUESTHOUSE LTD,77215,06/03/2023,HUN0264,TA Nags Head - 27.02-05.03.23,17/03/2023,101.5,507.5,609,Homelessness,B&B Accommodation,64401
http://statistics.data.gov.uk/id/local-authority/12UE,Huntingdonshire District Council,202236,EASTFIELD GUESTHOUSE LTD,77304,27/02/2023,HUN0262,TA - 20-26.02.23,17/03/2023,101.5,507.5,609,Homelessness,B&B Accommodation,64401
http://statistics.data.gov.uk/id/local-authority/12UE,Huntingdonshire District Council,202236,EASTFIELD GUESTHOUSE LTD,77863,20/03/2023,HUN0268,TA - 13-19.03.23,28/03/2023,101.5,507.5,609,Homelessness,B&B Accommodation,64401
http://statistics.data.gov.uk/id/local-authority/12UE,Huntingdonshire District Council,202236,EASTFIELD GUESTHOUSE LTD,75262,24/10/2022,HUN0226,Nags Head TA - 17-23.10.22,02/02/2023,91,455,546,Homelessness,B&B Accommodation,64401
http://statistics.data.gov.uk/id/local-authority/12UE,Huntingdonshire District Council,202236,EASTFIELD GUESTHOUSE LTD,74726,09/01/2023,HUN0247,TA - 02-08.01.23,20/01/2023,98,490,588,Homelessness,B&B Accommodation,64401
http://statistics.data.gov.uk/id/local-authority/12UE,Huntingdonshire District Council,202236,EASTFIELD GUESTHOUSE LTD,74472,02/01/2023,HUN0245,TA - 26.12-01.01.23,16/01/2023,42,210,252,Homelessness,B&B Accommodation,64401
http://statistics.data.gov.uk/id/local-authority/12UE,Huntingdonshire District Council,202236,EASTFIELD GUESTHOUSE LTD,76139,20/02/2023,HUN0260,Nags Head TA - 13-19.02.23,23/02/2023,43.5,217.5,261,Homelessness,B&B Accommodation,64401
http://statistics.data.gov.uk/id/local-authority/12UE,Huntingdonshire District Council,202236,EASTFIELD GUESTHOUSE LTD,77171,13/03/2023,HUN0266,Nags Head TA - 06-12.03.23,17/03/2023,101.5,507.5,609,Homelessness,B&B Accommodation,64401
http://statistics.data.gov.uk/id/local-authority/12UE,Huntingdonshire District Council,202236,EASTFIELD GUESTHOUSE LTD,77215,06/03/2023,HUN0264,TA Nags Head - 27.02-05.03.23,17/03/2023,101.5,507.5,609,Homelessness,B&B Accommodation,64401
http://statistics.data.gov.uk/id/local-authority/12UE,Huntingdonshire District Council,202236,EASTFIELD GUESTHOUSE LTD,77304,27/02/2023,HUN0262,TA - 20-26.02.23,17/03/2023,101.5,507.5,609,Homelessness,B&B Accommodation,64401
http://statistics.data.gov.uk/id/local-authority/12UE,Huntingdonshire District Council,202236,EASTFIELD GUESTHOUSE LTD,77863,20/03/2023,HUN0268,TA - 13-19.03.23,28/03/2023,101.5,507.5,609,Homelessness,B&B Accommodation,64401
http://statistics.data.gov.uk/id/local-authority/12UE,Huntingdonshire District Council,202236,EASTFIELD GUESTHOUSE LTD,76139,20/02/2023,HUN0260,Nags Head TA - 13-19.02.23,23/02/2023,101.5,507.5,609,Homelessness,B&B Accommodation,64401
http://statistics.data.gov.uk/id/local-authority/12UE,Huntingdonshire District Council,202236,EASTFIELD GUESTHOUSE LTD,76251,13/02/2023,HUN0258,Nags Head TA - 06-12.02.23,23/02/2023,43.5,217.5,261,Homelessness,B&B Accommodation,64401
http://statistics.data.gov.uk/id/local-authority/12UE,Huntingdonshire District Council,202236,EASTFIELD GUESTHOUSE LTD,77171,13/03/2023,HUN0266,Nags Head TA - 06-12.03.23,17/03/2023,101.5,507.5,609,Homelessness,B&B Accommodation,64401
http://statistics.data.gov.uk/id/local-authority/12UE,Huntingdonshire District Council,202236,EASTFIELD GUESTHOUSE LTD,77215,06/03/2023,HUN0264,TA Nags Head - 27.02-05.03.23,17/03/2023,101.5,507.5,609,Homelessness,B&B Accommodation,64401
http://statistics.data.gov.uk/id/local-authority/12UE,Huntingdonshire District Council,202236,EASTFIELD GUESTHOUSE LTD,77304,27/02/2023,HUN0262,TA - 20-26.02.23,17/03/2023,101.5,507.5,609,Homelessness,B&B Accommodation,64401
http://statistics.data.gov.uk/id/local-authority/12UE,Huntingdonshire District Council,202236,EASTFIELD GUESTHOUSE LTD,77863,20/03/2023,HUN0268,TA - 13-19.03.23,28/03/2023,43.5,217.5,261,Homelessness,B&B Accommodation,64401
http://statistics.data.gov.uk/id/local-authority/12UE,Huntingdonshire District Council,202236,EASTFIELD GUESTHOUSE LTD,76139,20/02/2023,HUN0260,Nags Head TA - 13-19.02.23,23/02/2023,72.5,362.5,435,Homelessness,B&B Accommodation,64401
http://statistics.data.gov.uk/id/local-authority/12UE,Huntingdonshire District Council,202236,EASTFIELD GUESTHOUSE LTD,77171,13/03/2023,HUN0266,Nags Head TA - 06-12.03.23,17/03/2023,101.5,507.5,609,Homelessness,B&B Accommodation,64401
http://statistics.data.gov.uk/id/local-authority/12UE,Huntingdonshire District Council,202236,EASTFIELD GUESTHOUSE LTD,77215,06/03/2023,HUN0264,TA Nags Head - 27.02-05.03.23,17/03/2023,101.5,507.5,609,Homelessness,B&B Accommodation,64401
http://statistics.data.gov.uk/id/local-authority/12UE,Huntingdonshire District Council,202236,EASTFIELD GUESTHOUSE LTD,77304,27/02/2023,HUN0262,TA - 20-26.02.23,17/03/2023,101.5,507.5,609,Homelessness,B&B Accommodation,64401
http://statistics.data.gov.uk/id/local-authority/12UE,Huntingdonshire District Council,202236,EASTFIELD GUESTHOUSE LTD,77863,20/03/2023,HUN0268,TA - 13-19.03.23,28/03/2023,101.5,507.5,609,Homelessness,B&B Accommodation,64401
http://statistics.data.gov.uk/id/local-authority/12UE,Huntingdonshire District Council,202236,EASTFIELD GUESTHOUSE LTD,77863,20/03/2023,HUN0268,TA - 13-19.03.23,28/03/2023,14.5,72.5,87,Homelessness,B&B Accommodation,64401
http://statistics.data.gov.uk/id/local-authority/12UE,Huntingdonshire District Council,202236,EASTFIELD GUESTHOUSE LTD,76251,13/02/2023,HUN0258,Nags Head TA - 06-12.02.23,23/02/2023,58,290,348,Homelessness,B&B Accommodation,64401
http://statistics.data.gov.uk/id/local-authority/12UE,Huntingdonshire District Council,202236,EASTFIELD GUESTHOUSE LTD,76257,06/02/2023,HUN0256,Nags Heads TA - 31.01-05.02.23,23/02/2023,94.25,471.25,565.5,Homelessness,B&B Accommodation,64401
http://statistics.data.gov.uk/id/local-authority/12UE,Huntingdonshire District Council,202236,EASTFIELD GUESTHOUSE LTD,75332,30/01/2023,HUN0253,TA - 23-29.01.23,02/02/2023,98,490,588,Homelessness,B&B Accommodation,64401
http://statistics.data.gov.uk/id/local-authority/12UE,Huntingdonshire District Council,202236,EASTFIELD GUESTHOUSE LTD,75127,23/01/2023,HUN0251,TA - 16-22.01.23,30/01/2023,98,490,588,Homelessness,B&B Accommodation,64401
http://statistics.data.gov.uk/id/local-authority/12UE,Huntingdonshire District Council,202236,EASTFIELD GUESTHOUSE LTD,74725,16/01/2023,HUN0249,TA - 09-15.01.23,20/01/2023,70,350,420,Homelessness,B&B Accommodation,64401
http://statistics.data.gov.uk/id/local-authority/12UE,Huntingdonshire District Council,202236,EASTFIELD GUESTHOUSE LTD,77171,13/03/2023,HUN0266,Nags Head TA - 06-12.03.23,17/03/2023,43.5,217.5,261,Homelessness,B&B Accommodation,64401
http://statistics.data.gov.uk/id/local-authority/12UE,Huntingdonshire District Council,202236,EASTFIELD GUESTHOUSE LTD,77215,06/03/2023,HUN0264,TA Nags Head - 27.02-05.03.23,17/03/2023,72.5,362.5,435,Homelessness,B&B Accommodation,64401
http://statistics.data.gov.uk/id/local-authority/12UE,Huntingdonshire District Council,202236,EASTFIELD GUESTHOUSE LTD,76251,13/02/2023,HUN0258,Nags Head TA - 06-12.02.23,23/02/2023,29,145,174,Homelessness,B&B Accommodation,64401
http://statistics.data.gov.uk/id/local-authority/12UE,Huntingdonshire District Council,202236,EASTFIELD GUESTHOUSE LTD,76257,06/02/2023,HUN0256,Nags Heads TA - 31.01-05.02.23,23/02/2023,40.39,201.97,242.36,Homelessness,B&B Accommodation,64401
http://statistics.data.gov.uk/id/local-authority/12UE,Huntingdonshire District Council,202236,EASTFIELD GUESTHOUSE LTD,74211,26/12/2022,HUN0243,TA - 19-25.12.22,06/01/2023,98,490,588,Homelessness,B&B Accommodation,64401
http://statistics.data.gov.uk/id/local-authority/12UE,Huntingdonshire District Council,202236,EASTFIELD GUESTHOUSE LTD,74472,02/01/2023,HUN0245,TA - 26.12-01.01.23,16/01/2023,42,210,252,Homelessness,B&B Accommodation,64401
http://statistics.data.gov.uk/id/local-authority/12UE,Huntingdonshire District Council,202236,EASTFIELD GUESTHOUSE LTD,74073,12/12/2022,HUN0239,TA - 05-11.12.22,06/01/2023,98,490,588,Homelessness,B&B Accommodation,64401
http://statistics.data.gov.uk/id/local-authority/12UE,Huntingdonshire District Council,202236,EASTFIELD GUESTHOUSE LTD,74083,19/12/2022,HUN0241,TA - 12-18.12.22,06/01/2023,98,490,588,Homelessness,B&B Accommodation,64401
http://statistics.data.gov.uk/id/local-authority/12UE,Huntingdonshire District Council,202236,EASTFIELD GUESTHOUSE LTD,76251,13/02/2023,HUN0258,Nags Head TA - 06-12.02.23,23/02/2023,101.5,507.5,609,Homelessness,B&B Accommodation,64401
http://statistics.data.gov.uk/id/local-authority/12UE,Huntingdonshire District Council,202236,EASTFIELD GUESTHOUSE LTD,76257,06/02/2023,HUN0256,Nags Heads TA - 31.01-05.02.23,23/02/2023,94.25,471.25,565.5,Homelessness,B&B Accommodation,64401
http://statistics.data.gov.uk/id/local-authority/12UE,Huntingdonshire District Council,202236,EASTFIELD GUESTHOUSE LTD,74726,09/01/2023,HUN0247,TA - 02-08.01.23,20/01/2023,98,490,588,Homelessness,B&B Accommodation,64401
http://statistics.data.gov.uk/id/local-authority/12UE,Huntingdonshire District Council,202236,EASTFIELD GUESTHOUSE LTD,75332,30/01/2023,HUN0253,TA - 23-29.01.23,02/02/2023,98,490,588,Homelessness,B&B Accommodation,64401
http://statistics.data.gov.uk/id/local-authority/12UE,Huntingdonshire District Council,202236,EASTFIELD GUESTHOUSE LTD,74211,26/12/2022,HUN0243,TA - 19-25.12.22,06/01/2023,98,490,588,Homelessness,B&B Accommodation,64401
http://statistics.data.gov.uk/id/local-authority/12UE,Huntingdonshire District Council,202236,EASTFIELD GUESTHOUSE LTD,75127,23/01/2023,HUN0251,TA - 16-22.01.23,30/01/2023,98,490,588,Homelessness,B&B Accommodation,64401
http://statistics.data.gov.uk/id/local-authority/12UE,Huntingdonshire District Council,202236,EASTFIELD GUESTHOUSE LTD,74472,02/01/2023,HUN0245,TA - 26.12-01.01.23,16/01/2023,98,490,588,Homelessness,B&B Accommodation,64401
http://statistics.data.gov.uk/id/local-authority/12UE,Huntingdonshire District Council,202236,EASTFIELD GUESTHOUSE LTD,74725,16/01/2023,HUN0249,TA - 09-15.01.23,20/01/2023,98,490,588,Homelessness,B&B Accommodation,64401
http://statistics.data.gov.uk/id/local-authority/12UE,Huntingdonshire District Council,202236,EASTFIELD GUESTHOUSE LTD,74083,19/12/2022,HUN0241,TA - 12-18.12.22,06/01/2023,56,280,336,Homelessness,B&B Accommodation,64401
http://statistics.data.gov.uk/id/local-authority/12UE,Huntingdonshire District Council,202236,EASTFIELD GUESTHOUSE LTD,77171,13/03/2023,HUN0266,Nags Head TA - 06-12.03.23,17/03/2023,101.5,507.5,609,Homelessness,B&B Accommodation,64401
http://statistics.data.gov.uk/id/local-authority/12UE,Huntingdonshire District Council,202236,EASTFIELD GUESTHOUSE LTD,77863,20/03/2023,HUN0268,TA - 13-19.03.23,28/03/2023,101.5,507.5,609,Homelessness,B&B Accommodation,64401
http://statistics.data.gov.uk/id/local-authority/12UE,Huntingdonshire District Council,202236,EASTFIELD GUESTHOUSE LTD,77041,06/03/2023,HUN0259,TA 27.02-05.03.23,13/03/2023,101.5,507.5,609,Homelessness,B&B Accommodation,64401
http://statistics.data.gov.uk/id/local-authority/12UE,Huntingdonshire District Council,202236,EASTFIELD GUESTHOUSE LTD,77214,13/03/2023,HUN0261,TA - 06-12.03.23,17/03/2023,101.5,507.5,609,Homelessness,B&B Accommodation,64401
http://statistics.data.gov.uk/id/local-authority/12UE,Huntingdonshire District Council,202236,EASTFIELD GUESTHOUSE LTD,77785,20/03/2023,HUN0263,TA - 13-19.03.23,28/03/2023,101.5,507.5,609,Homelessness,B&B Accommodation,64401
http://statistics.data.gov.uk/id/local-authority/12UE,Huntingdonshire District Council,202236,EASTFIELD GUESTHOUSE LTD,77016,27/02/2023,HUN0257,TA - 23-26.02.23,09/03/2023,58,290,348,Homelessness,B&B Accommodation,64401
http://statistics.data.gov.uk/id/local-authority/12UE,Huntingdonshire District Council,202236,EASTFIELD GUESTHOUSE LTD,76251,13/02/2023,HUN0258,Nags Head TA - 06-12.02.23,23/02/2023,29,145,174,Homelessness,B&B Accommodation,64401
http://statistics.data.gov.uk/id/local-authority/12UE,Huntingdonshire District Council,202236,EASTFIELD GUESTHOUSE LTD,77171,13/03/2023,HUN0266,Nags Head TA - 06-12.03.23,17/03/2023,101.5,507.5,609,Homelessness,B&B Accommodation,64401
http://statistics.data.gov.uk/id/local-authority/12UE,Huntingdonshire District Council,202236,EASTFIELD GUESTHOUSE LTD,77215,06/03/2023,HUN0264,TA Nags Head - 27.02-05.03.23,17/03/2023,101.5,507.5,609,Homelessness,B&B Accommodation,64401
http://statistics.data.gov.uk/id/local-authority/12UE,Huntingdonshire District Council,202236,EASTFIELD GUESTHOUSE LTD,77304,27/02/2023,HUN0262,TA - 20-26.02.23,17/03/2023,101.5,507.5,609,Homelessness,B&B Accommodation,64401
http://statistics.data.gov.uk/id/local-authority/12UE,Huntingdonshire District Council,202236,EASTFIELD GUESTHOUSE LTD,77863,20/03/2023,HUN0268,TA - 13-19.03.23,28/03/2023,101.5,507.5,609,Homelessness,B&B Accommodation,64401
http://statistics.data.gov.uk/id/local-authority/12UE,Huntingdonshire District Council,202236,EASTFIELD GUESTHOUSE LTD,76257,06/02/2023,HUN0256,Nags Heads TA - 31.01-05.02.23,23/02/2023,94.25,471.25,565.5,Homelessness,B&B Accommodation,64401
http://statistics.data.gov.uk/id/local-authority/12UE,Huntingdonshire District Council,202236,EASTFIELD GUESTHOUSE LTD,75262,24/10/2022,HUN0226,Nags Head TA - 17-23.10.22,02/02/2023,91,455,546,Homelessness,B&B Accommodation,64401
http://statistics.data.gov.uk/id/local-authority/12UE,Huntingdonshire District Council,202236,EASTFIELD GUESTHOUSE LTD,74726,09/01/2023,HUN0247,TA - 02-08.01.23,20/01/2023,98,490,588,Homelessness,B&B Accommodation,64401
http://statistics.data.gov.uk/id/local-authority/12UE,Huntingdonshire District Council,202236,EASTFIELD GUESTHOUSE LTD,75332,30/01/2023,HUN0253,TA - 23-29.01.23,02/02/2023,98,490,588,Homelessness,B&B Accommodation,64401
http://statistics.data.gov.uk/id/local-authority/12UE,Huntingdonshire District Council,202236,EASTFIELD GUESTHOUSE LTD,74211,26/12/2022,HUN0243,TA - 19-25.12.22,06/01/2023,98,490,588,Homelessness,B&B Accommodation,64401
http://statistics.data.gov.uk/id/local-authority/12UE,Huntingdonshire District Council,202236,EASTFIELD GUESTHOUSE LTD,75127,23/01/2023,HUN0251,TA - 16-22.01.23,30/01/2023,98,490,588,Homelessness,B&B Accommodation,64401
http://statistics.data.gov.uk/id/local-authority/12UE,Huntingdonshire District Council,202236,EASTFIELD GUESTHOUSE LTD,74472,02/01/2023,HUN0245,TA - 26.12-01.01.23,16/01/2023,98,490,588,Homelessness,B&B Accommodation,64401
http://statistics.data.gov.uk/id/local-authority/12UE,Huntingdonshire District Council,202236,EASTFIELD GUESTHOUSE LTD,74073,12/12/2022,HUN0239,TA - 05-11.12.22,06/01/2023,98,490,588,Homelessness,B&B Accommodation,64401
http://statistics.data.gov.uk/id/local-authority/12UE,Huntingdonshire District Council,202236,EASTFIELD GUESTHOUSE LTD,74725,16/01/2023,HUN0249,TA - 09-15.01.23,20/01/2023,98,490,588,Homelessness,B&B Accommodation,64401
http://statistics.data.gov.uk/id/local-authority/12UE,Huntingdonshire District Council,202236,EASTFIELD GUESTHOUSE LTD,74083,19/12/2022,HUN0241,TA - 12-18.12.22,06/01/2023,98,490,588,Homelessness,B&B Accommodation,64401
http://statistics.data.gov.uk/id/local-authority/12UE,Huntingdonshire District Council,202236,EASTFIELD GUESTHOUSE LTD,74100,19/12/2022,HUN0242,Nags Head TA - 12-18.12.22,06/01/2023,112,560,672,Homelessness,B&B Accommodation,64401
http://statistics.data.gov.uk/id/local-authority/12UE,Huntingdonshire District Council,202236,EASTFIELD GUESTHOUSE LTD,74101,12/12/2022,HUN0240,Nags Head TA - 05-11.12.22,06/01/2023,112,560,672,Homelessness,B&B Accommodation,64401
http://statistics.data.gov.uk/id/local-authority/12UE,Huntingdonshire District Council,202236,EASTFIELD GUESTHOUSE LTD,74240,26/12/2022,HUN0244,Nags Head TA - 19-25.12.22,09/01/2023,112,560,672,Homelessness,B&B Accommodation,64401
http://statistics.data.gov.uk/id/local-authority/12UE,Huntingdonshire District Council,202236,EASTFIELD GUESTHOUSE LTD,74242,02/01/2023,HUN0246,Nags Head TA - 26.12-01.01.23,09/01/2023,112,560,672,Homelessness,B&B Accommodation,64401
http://statistics.data.gov.uk/id/local-authority/12UE,Huntingdonshire District Council,202236,EASTFIELD GUESTHOUSE LTD,74588,09/01/2023,HUN0248,TA - 02-08.01.23,16/01/2023,112,560,672,Homelessness,B&B Accommodation,64401
http://statistics.data.gov.uk/id/local-authority/12UE,Huntingdonshire District Council,202236,EASTFIELD GUESTHOUSE LTD,74727,16/01/2023,HUN0250,Nags Head TA - 09-15.01.23,20/01/2023,112,560,672,Homelessness,B&B Accommodation,64401
http://statistics.data.gov.uk/id/local-authority/12UE,Huntingdonshire District Council,202236,EASTFIELD GUESTHOUSE LTD,75170,23/01/2023,HUN0252,Nags Head TA - 16-22.01.23,30/01/2023,112,560,672,Homelessness,B&B Accommodation,64401
http://statistics.data.gov.uk/id/local-authority/12UE,Huntingdonshire District Council,202236,EASTFIELD GUESTHOUSE LTD,75331,30/01/2023,HUN0254,Nags Head TA - 23-29.01.23,02/02/2023,16,80,96,Homelessness,B&B Accommodation,64401
http://statistics.data.gov.uk/id/local-authority/12UE,Huntingdonshire District Council,202236,EASTFIELD GUESTHOUSE LTD,76139,20/02/2023,HUN0260,Nags Head TA - 13-19.02.23,23/02/2023,101.5,507.5,609,Homelessness,B&B Accommodation,64401
http://statistics.data.gov.uk/id/local-authority/12UE,Huntingdonshire District Council,202236,EASTFIELD GUESTHOUSE LTD,76251,13/02/2023,HUN0258,Nags Head TA - 06-12.02.23,23/02/2023,101.5,507.5,609,Homelessness,B&B Accommodation,64401
http://statistics.data.gov.uk/id/local-authority/12UE,Huntingdonshire District Council,202236,EASTFIELD GUESTHOUSE LTD,77171,13/03/2023,HUN0266,Nags Head TA - 06-12.03.23,17/03/2023,101.5,507.5,609,Homelessness,B&B Accommodation,64401
http://statistics.data.gov.uk/id/local-authority/12UE,Huntingdonshire District Council,202236,EASTFIELD GUESTHOUSE LTD,77215,06/03/2023,HUN0264,TA Nags Head - 27.02-05.03.23,17/03/2023,101.5,507.5,609,Homelessness,B&B Accommodation,64401
http://statistics.data.gov.uk/id/local-authority/12UE,Huntingdonshire District Council,202236,EASTFIELD GUESTHOUSE LTD,77304,27/02/2023,HUN0262,TA - 20-26.02.23,17/03/2023,101.5,507.5,609,Homelessness,B&B Accommodation,64401
http://statistics.data.gov.uk/id/local-authority/12UE,Huntingdonshire District Council,202236,EASTFIELD GUESTHOUSE LTD,77863,20/03/2023,HUN0268,TA - 13-19.03.23,28/03/2023,101.5,507.5,609,Homelessness,B&B Accommodation,64401
http://statistics.data.gov.uk/id/local-authority/12UE,Huntingdonshire District Council,202236,EASTFIELD GUESTHOUSE LTD,76257,06/02/2023,HUN0256,Nags Heads TA - 31.01-05.02.23,23/02/2023,94.25,471.25,565.5,Homelessness,B&B Accommodation,64401
http://statistics.data.gov.uk/id/local-authority/12UE,Huntingdonshire District Council,202236,EASTFIELD GUESTHOUSE LTD,75262,24/10/2022,HUN0226,Nags Head TA - 17-23.10.22,02/02/2023,91,455,546,Homelessness,B&B Accommodation,64401
http://statistics.data.gov.uk/id/local-authority/12UE,Huntingdonshire District Council,202236,EASTFIELD GUESTHOUSE LTD,74100,19/12/2022,HUN0242,Nags Head TA - 12-18.12.22,06/01/2023,112,560,672,Homelessness,B&B Accommodation,64401
http://statistics.data.gov.uk/id/local-authority/12UE,Huntingdonshire District Council,202236,EASTFIELD GUESTHOUSE LTD,74101,12/12/2022,HUN0240,Nags Head TA - 05-11.12.22,06/01/2023,112,560,672,Homelessness,B&B Accommodation,64401
http://statistics.data.gov.uk/id/local-authority/12UE,Huntingdonshire District Council,202236,EASTFIELD GUESTHOUSE LTD,74240,26/12/2022,HUN0244,Nags Head TA - 19-25.12.22,09/01/2023,112,560,672,Homelessness,B&B Accommodation,64401
http://statistics.data.gov.uk/id/local-authority/12UE,Huntingdonshire District Council,202236,EASTFIELD GUESTHOUSE LTD,74242,02/01/2023,HUN0246,Nags Head TA - 26.12-01.01.23,09/01/2023,112,560,672,Homelessness,B&B Accommodation,64401
http://statistics.data.gov.uk/id/local-authority/12UE,Huntingdonshire District Council,202236,EASTFIELD GUESTHOUSE LTD,74588,09/01/2023,HUN0248,TA - 02-08.01.23,16/01/2023,112,560,672,Homelessness,B&B Accommodation,64401
http://statistics.data.gov.uk/id/local-authority/12UE,Huntingdonshire District Council,202236,EASTFIELD GUESTHOUSE LTD,74727,16/01/2023,HUN0250,Nags Head TA - 09-15.01.23,20/01/2023,112,560,672,Homelessness,B&B Accommodation,64401
http://statistics.data.gov.uk/id/local-authority/12UE,Huntingdonshire District Council,202236,EASTFIELD GUESTHOUSE LTD,75170,23/01/2023,HUN0252,Nags Head TA - 16-22.01.23,30/01/2023,112,560,672,Homelessness,B&B Accommodation,64401
http://statistics.data.gov.uk/id/local-authority/12UE,Huntingdonshire District Council,202236,EASTFIELD GUESTHOUSE LTD,75331,30/01/2023,HUN0254,Nags Head TA - 23-29.01.23,02/02/2023,112,560,672,Homelessness,B&B Accommodation,64401
http://statistics.data.gov.uk/id/local-authority/12UE,Huntingdonshire District Council,202236,EASTFIELD GUESTHOUSE LTD,75262,24/10/2022,HUN0226,Nags Head TA - 17-23.10.22,02/02/2023,91,455,546,Homelessness,B&B Accommodation,64401
http://statistics.data.gov.uk/id/local-authority/12UE,Huntingdonshire District Council,202236,EASTFIELD GUESTHOUSE LTD,74726,09/01/2023,HUN0247,TA - 02-08.01.23,20/01/2023,98,490,588,Homelessness,B&B Accommodation,64401
http://statistics.data.gov.uk/id/local-authority/12UE,Huntingdonshire District Council,202236,EASTFIELD GUESTHOUSE LTD,75332,30/01/2023,HUN0253,TA - 23-29.01.23,02/02/2023,98,490,588,Homelessness,B&B Accommodation,64401
http://statistics.data.gov.uk/id/local-authority/12UE,Huntingdonshire District Council,202236,EASTFIELD GUESTHOUSE LTD,74211,26/12/2022,HUN0243,TA - 19-25.12.22,06/01/2023,98,490,588,Homelessness,B&B Accommodation,64401
http://statistics.data.gov.uk/id/local-authority/12UE,Huntingdonshire District Council,202236,EASTFIELD GUESTHOUSE LTD,75127,23/01/2023,HUN0251,TA - 16-22.01.23,30/01/2023,98,490,588,Homelessness,B&B Accommodation,64401
http://statistics.data.gov.uk/id/local-authority/12UE,Huntingdonshire District Council,202236,EASTFIELD GUESTHOUSE LTD,74472,02/01/2023,HUN0245,TA - 26.12-01.01.23,16/01/2023,98,490,588,Homelessness,B&B Accommodation,64401
http://statistics.data.gov.uk/id/local-authority/12UE,Huntingdonshire District Council,202236,EASTFIELD GUESTHOUSE LTD,74073,12/12/2022,HUN0239,TA - 05-11.12.22,06/01/2023,98,490,588,Homelessness,B&B Accommodation,64401
http://statistics.data.gov.uk/id/local-authority/12UE,Huntingdonshire District Council,202236,EASTFIELD GUESTHOUSE LTD,74725,16/01/2023,HUN0249,TA - 09-15.01.23,20/01/2023,98,490,588,Homelessness,B&B Accommodation,64401
http://statistics.data.gov.uk/id/local-authority/12UE,Huntingdonshire District Council,202236,EASTFIELD GUESTHOUSE LTD,74083,19/12/2022,HUN0241,TA - 12-18.12.22,06/01/2023,98,490,588,Homelessness,B&B Accommodation,64401
http://statistics.data.gov.uk/id/local-authority/12UE,Huntingdonshire District Council,202236,EASTFIELD GUESTHOUSE LTD,75590,06/02/2023,HUN0255,TA - 30.01-02.02.23,09/02/2023,56,280,336,Homelessness,B&B Accommodation,64401
